{"text_format":"1","workbook":"xlsx","n_sheets":4,"sheets":["Contact","code pays+Département","pays","Département"],"not_rendered":{"charts":0,"images":0,"macros":1,"external_links":0,"defined_names":7,"comments":0,"pivot_tables":0},"unopened":[],"bounds":{"document_bytes":16777216,"sheet_cells":100000,"rows_first":2000,"rows_last":500,"rows_between":2000,"halvings":0,"cell_chars":16384,"cell_head_chars":4096},"cells_cut":0,"cells_raw":0,"read":"whole","date_system":"1900"}

{"sheet":"Contact","index":0,"n_rows":10,"n_cols":16,"rows_kept":10,"cut":false,"hidden":false,"merged":[[1,9,1,10],[0,9,0,10]]}
[null,"Indicatif",null,null,null,null,"Contact ",{"$f":"COUNTA(nom)","v":1},null,"Imférieur 14 Code Pays",null,{"$f":"COUNTIF(A4:A10,\"<14\")","v":0}]
[null,null,null,null,null,null,null,null,null,"Superieur 14 Code Pays",null,{"$f":"COUNTIF(A4:A10,\">14\")","v":0}]
["Code Pays","QRZ","Fréquence MHz","Mode","Prénom","N° D","Département","Région","Chef-Lieu","Pays","Date","Heure","CP","Villes","Commune","Condition De Trafic"]
[null,null,null,null,null,{"$f":"IF(TableauContact[[#This Row],[CP]]<>\"\",LEFT(TableauContact[[#This Row],[CP]],2),\"\")","v":"12"},{"$f":"IF(F4=\"\",\"\",VLOOKUP(F4*1,Département!$J$2:$N$112,2,FALSE))","v":"Aveyron"},{"$f":"IF(F4=\"\",\"\",VLOOKUP(F4*1,Département!$J$2:$N$112,5,FALSE))","v":"Midi-Pyrénées"},{"$f":"IF(F4=\"\",\"\",VLOOKUP(F4*1,Département!$J$2:$N$112,3,FALSE))","v":"Rodez"},{"$f":"IF(A4=\"\",\"\",VLOOKUP(A4*1,pays!$G$2:$L$354,2,FALSE))","v":""},{"$f":"IF(A4=0,0,IF(K4>0,K4,TODAY()))","v":"00:00:00"},{"$f":"IF(A4=0,0,IF(L4>0,L4,NOW()))","v":"00:00:00"},12600,"Brommat"]
[null,null,null,null,null,{"$f":"IF(TableauContact[[#This Row],[CP]]<>\"\",LEFT(TableauContact[[#This Row],[CP]],2),\"\")","v":"12"},{"$f":"IF(F5=\"\",\"\",VLOOKUP(F5*1,Département!$J$2:$N$112,2,FALSE))","v":"Aveyron"},{"$f":"IF(F5=\"\",\"\",VLOOKUP(F5*1,Département!$J$2:$N$112,5,FALSE))","v":"Midi-Pyrénées"},{"$f":"IF(F5=\"\",\"\",VLOOKUP(F5*1,Département!$J$2:$N$112,3,FALSE))","v":"Rodez"},{"$f":"IF(A5=\"\",\"\",VLOOKUP(A5*1,pays!$G$2:$L$354,2,FALSE))","v":""},"00:00:00","00:00:00",12600,"Lacroix Barrez"]
[null,null,null,null,null,{"$f":"IF(TableauContact[[#This Row],[CP]]<>\"\",LEFT(TableauContact[[#This Row],[CP]],2),\"\")","v":"12"},{"$f":"IF(F6=\"\",\"\",VLOOKUP(F6*1,Département!$J$2:$N$112,2,FALSE))","v":"Aveyron"},{"$f":"IF(F6=\"\",\"\",VLOOKUP(F6*1,Département!$J$2:$N$112,5,FALSE))","v":"Midi-Pyrénées"},{"$f":"IF(F6=\"\",\"\",VLOOKUP(F6*1,Département!$J$2:$N$112,3,FALSE))","v":"Rodez"},{"$f":"IF(A6=\"\",\"\",VLOOKUP(A6*1,pays!$G$2:$L$354,2,FALSE))","v":""},"00:00:00","00:00:00",12600,"Mur de Barrez"]
[null,null,null,null,null,{"$f":"IF(TableauContact[[#This Row],[CP]]<>\"\",LEFT(TableauContact[[#This Row],[CP]],2),\"\")","v":"12"},{"$f":"IF(F7=\"\",\"\",VLOOKUP(F7*1,Département!$J$2:$N$112,2,FALSE))","v":"Aveyron"},{"$f":"IF(F7=\"\",\"\",VLOOKUP(F7*1,Département!$J$2:$N$112,5,FALSE))","v":"Midi-Pyrénées"},{"$f":"IF(F7=\"\",\"\",VLOOKUP(F7*1,Département!$J$2:$N$112,3,FALSE))","v":"Rodez"},{"$f":"IF(A7=\"\",\"\",VLOOKUP(A7*1,pays!$G$2:$L$354,2,FALSE))","v":""},"00:00:00","00:00:00",12600,"Murols"]
[null,null,null,null,null,{"$f":"IF(TableauContact[[#This Row],[CP]]<>\"\",LEFT(TableauContact[[#This Row],[CP]],2),\"\")","v":"12"},{"$f":"IF(F8=\"\",\"\",VLOOKUP(F8*1,Département!$J$2:$N$112,2,FALSE))","v":"Aveyron"},{"$f":"IF(F8=\"\",\"\",VLOOKUP(F8*1,Département!$J$2:$N$112,5,FALSE))","v":"Midi-Pyrénées"},{"$f":"IF(F8=\"\",\"\",VLOOKUP(F8*1,Département!$J$2:$N$112,3,FALSE))","v":"Rodez"},{"$f":"IF(A8=\"\",\"\",VLOOKUP(A8*1,pays!$G$2:$L$354,2,FALSE))","v":""},"00:00:00","00:00:00",12600,"Taussac"]
[null,null,null,null,null,{"$f":"IF(TableauContact[[#This Row],[CP]]<>\"\",LEFT(TableauContact[[#This Row],[CP]],2),\"\")","v":"12"},{"$f":"IF(F9=\"\",\"\",VLOOKUP(F9*1,Département!$J$2:$N$112,2,FALSE))","v":"Aveyron"},{"$f":"IF(F9=\"\",\"\",VLOOKUP(F9*1,Département!$J$2:$N$112,5,FALSE))","v":"Midi-Pyrénées"},{"$f":"IF(F9=\"\",\"\",VLOOKUP(F9*1,Département!$J$2:$N$112,3,FALSE))","v":"Rodez"},{"$f":"IF(A9=\"\",\"\",VLOOKUP(A9*1,pays!$G$2:$L$354,2,FALSE))","v":""},"00:00:00","00:00:00",12600,"Therondels"]
[null,null,null,null,null,{"$f":"IF(TableauContact[[#This Row],[CP]]<>\"\",LEFT(TableauContact[[#This Row],[CP]],2),\"\")","v":""},{"$f":"IF(F10=\"\",\"\",VLOOKUP(F10*1,Département!$J$2:$N$112,2,FALSE))","v":""},{"$f":"IF(F10=\"\",\"\",VLOOKUP(F10*1,Département!$J$2:$N$112,5,FALSE))","v":""},{"$f":"IF(F10=\"\",\"\",VLOOKUP(F10*1,Département!$J$2:$N$112,3,FALSE))","v":""},{"$f":"IF(A10=\"\",\"\",VLOOKUP(A10*1,pays!$G$2:$L$354,2,FALSE))","v":""},{"$f":"IF(A10=0,0,IF(K10>0,K10,TODAY()))","v":"00:00:00"},{"$f":"IF(A10=0,0,IF(L10>0,L10,NOW()))","v":"00:00:00"}]

{"sheet":"code pays+Département","index":1,"n_rows":12,"n_cols":10,"rows_kept":12,"cut":false,"hidden":false,"merged":[]}
[]
[]
[null,"Entré Département",null," Département",null,"Région",null,"Préfecture",null,"Sous Préfectures"]
[]
[null,39,null,{"$f":"IF(B5=\"\",\"\",VLOOKUP(B5,pays!$A$2:$E$111,2,FALSE))","v":"Jura"},null,{"$f":"IF(B5=\"\",\"\",VLOOKUP(B5,pays!$A$2:$E$111,5,FALSE))","v":"Franche-Comté"},null,{"$f":"IF(B5=\"\",\"\",VLOOKUP(B5,pays!$A$2:$E$111,3,FALSE))","v":"Lons-le-Saunier"},null,{"$f":"IF(B5=\"\",\"\",VLOOKUP(B5,pays!$A$2:$E$111,4,FALSE))","v":"Dole, Saint-Claude"}]
[]
[]
[]
[]
[null,"Entrée Division",null,"Pays",null,"Capital",null,"Union Europénnes"," Schengen","Annotations"]
[]
[null,20,null,{"$f":"IF($B$12=\"\",\"\",VLOOKUP($B$12,pays!$G$2:$L$354,2,FALSE))","v":"Norvège"},null,{"$f":"IF($B$12=\"\",\"\",VLOOKUP($B$12,pays!$G$2:$L$354,3,FALSE))","v":"Oslo"},null,{"$f":"IF($B$12=\"\",\"\",VLOOKUP($B$12,pays!$G$2:$L$354,5,FALSE))","v":"Nom"},{"$f":"IF($B$12=\"\",\"\",VLOOKUP($B$12,pays!$G$2:$L$354,6,FALSE))","v":"Oui"},{"$f":"IF($B$12=\"\",\"\",VLOOKUP($B$12,pays!$G$2:$L$354,4,FALSE))","v":"Est un pays scandinave comprenant montagnes, glaciers et fjords côtiers profonds. "}]

{"sheet":"pays","index":2,"n_rows":354,"n_cols":12,"rows_kept":354,"cut":false,"hidden":false,"merged":[]}
[]
["Numéro","Département","Chef-lieu/préfecture","Sous/Préfecture","Région administrative",null,"Préfix","Pays","CAPITAL","Annotations","L'U.E"," Schengen"]
[1,"Ain","Bourg-en-Bresse","Belley, Gex, Nantua","Rhône-Alpes",null,1,"Italie","Rome","Pays européen bordé par la Méditerranée et l'Adriatique","Oui","Oui"]
[2,"Aisne","Laon","Château-Thierry, Saint-Quentin, Soissons, Vervins","Picardie",null,2,"Etats-Unis D'amérique","Washington","Les États-Unis sont un pays constitué de 50 états","Nom","Nom"]
[3,"Allier","Moulins","Montluçon, Vichy","Auvergne",null,3,"Brésil","Brasilia","Le Brésil, vaste pays d'Amérique du Sud, s'étend du bassin amazonien","Nom","Nom"]
[4,"Alpes-de-Haute-Provence","Digne-les-Bains","Barcelonnette, Castellane, Forcalquier","Provence-Alpes-Côte d'Azur",null,4,"Argentine","Buenos Aires","L'Argentine est un grand pays d'Amérique du Sud au relief très varié","Nom","Nom"]
[5,"Hautes-Alpes","Gap","Briançon","Provence-Alpes-Côte d'Azur",null,5,"Vénézuéla","Caracas","Est un pays de la côte nord de l’Amérique du Sud, aux attractions naturelles variées","Nom","Nom"]
[6,"Alpes-Maritimes","Nice","Grasse","Provence-Alpes-Côte d'Azur",null,6,"Colombie","Bogota","Est un pays situé dans l’extrême nord du continent sud-américain","Nom","Nom"]
[7,"Ardèche","Privas","Largentière, Tournon-sur-Rhône","Rhône-Alpes",null,7,"Amtilles","Fort-Royal","Archipel réparti entre la mer des Caraïbes, le golfe du Mexique et l'océan Atlantique","Nom","Nom"]
[8,"Ardennes","Charleville-Mézières","Rethel, Sedan, Vouziers","Champagne-Ardenne",null,8,"Perou","Lima","Est un pays d'Amérique du Sud couvrant une partie de la forêt amazonienne","Nom","Nom"]
[9,"Ariège","Foix","Pamiers, Saint-Girons","Midi-Pyrénées",null,9,"Canada","Ottawa","Est un pays nord-américain situé entre les États-Unis au sud et le cercle polaire au nord","Nom","Nom"]
[10,"Aube","Troyes","Bar-sur-Aube, Nogent-sur-Seine","Champagne-Ardenne",null,10,"Mexique","Mexico City","Situé entre les États-Unis et l'Amérique centrale","Nom","Nom"]
[11,"Aude","Carcassonne","Limoux, Narbonne","Languedoc-Roussillon",null,11,"Porto Rico","San Juan","Est une île des Caraïbes et un territoire non incorporé des États-Unis","Nom","Nom"]
[12,"Aveyron","Rodez","Millau, Villefranche-de-Rouergue","Midi-Pyrénées",null,12,"Uruguay","Montevideo","Est un pays d'Amérique du Sud réputé pour son arrière-pays verdoyant bordée de plages ","Nom","Nom"]
[13,"Bouches-du-Rhône","Marseille","Aix-en-Provence, Arles, Istres","Provence-Alpes-Côte d'Azur",null,13,"Allemagne","Berlin","Est un pays d'Europe de l'Ouest dont le paysage se compose de forêts, et de rivières","Oui","Oui"]
[14,"Calvados","Caen","Bayeux, Lisieux, Vire Normandie","Basse-Normandie",null,14,"Françe","Paris","Est un pays de l'Europe occidentale, compte des villes médiévales, des villages alpins ","Oui","Oui"]
[15,"Cantal","Aurillac","Mauriac, Saint-Flour","Auvergne",null,15,"Suisse","Genève","Est un pays montagneux d'Europe centrale abritant de nombreux lacs et villages","Nom","Oui"]
[16,"Charente","Angoulême","Cognac, Confolens","Poitou-Charentes",null,16,"Belgique","Bruxelles","Est un pays de l'Europe de l'Ouest réputé pour ses villes médiévales","Oui","Oui"]
[17,"Charente-Maritime","La Rochelle","Jonzac, Rochefort, Saintes, Saint-Jean-d'Angély","Poitou-Charentes",null,17,"Islande","Reykjavík","Est un pays insulaire nordique aux paysages spectaculaires composés de volcans","Nom","Nom"]
[18,"Cher","Bourges","Saint-Amand-Montrond, Vierzon","Centre",null,18,"Grece","Athènes","Est un pays du sud-est de l'Europe, composé de milliers d'îles ","Oui","Oui"]
[19,"Corrèze","Tulle","Brive-la-Gaillarde, Ussel","Limousin",null,19,"Pays-bas","Amsterdam","Situé au nord-ouest de l'Europe et réputé pour son paysage plat composé de canaux","Oui","Oui"]
["2A","Corse-du-Sud","Ajaccio","Sartène","Corse",null,20,"Norvège","Oslo","Est un pays scandinave comprenant montagnes, glaciers et fjords côtiers profonds. ","Nom","Oui"]
["2B","Haute-Corse","Bastia","Calvi, Corte","Corse",null,21,"Suède","Stockholm","Est un pays scandinave composé de milliers d'îles côtières et lacs intérieurs","Oui","Oui"]
[21,"Côte-d'Or","Dijon","Beaune, Montbard","Bourgogne",null,22,"Guyane française","Cayenne","Est une région d'outre-mer située sur la côte nord-est de l'Amérique du Sud","Oui","Nom"]
[22,"Côtes-d'Armor","Saint-Brieuc","Dinan, Guingamp, Lannion","Bretagne",null,23,"Jamaique","Kingston","Est un Pays insulaire des Caraïbes,a une topographie luxuriante faite de montagnes","Nom","Nom"]
[23,"Creuse","Guéret","Aubusson","Limousin",null,24,"Panama","Panama","Est un pays situé sur l'isthme rattachant l'Amérique centrale et l'Amérique du Sud","Nom","Nom"]
[24,"Dordogne","Périgueux","Bergerac, Nontron, Sarlat-la-Canéda","Aquitaine",null,25,"Japon","Tokyo","Est un pays insulaire situé dans l'océan Pacifique. Il comporte des villes denses","Nom","Nom"]
[25,"Doubs","Besançon","Montbéliard, Pontarlier","Franche-Comté",null,26,"Angleterre","Londres","L'Angleterre, berceau de Shakespeare et des Beatles, est un pays des îles britanniques","Nom","Nom"]
[26,"Drôme","Valence","Die, Nyons","Rhône-Alpes",null,27,"Islande","Reykjavik","Est un pays insulaire nordique aux paysages spectaculaires composés de volcans","Nom","Oui"]
[27,"Eure","Évreux","Les Andelys, Bernay","Haute-Normandie",null,28,"Honduras","Tegucigalpa","Est un pays d'Amérique centrale bordé par la mer des Caraïbes au nord et l'océan Pacifique au sud","Nom","Nom"]
[28,"Eure-et-Loir","Chartres","Châteaudun, Dreux, Nogent-le-Rotrou","Centre -Val de Loire",null,29,"Irlande","Dublin","Est un Pays occupe la majeure partie de l'île au large des côtes de l'Angleterre et du Pays de Galles","Oui","Nom"]
[29,"Finistère","Quimper","Brest, Châteaulin, Morlaix","Bretagne",null,30,"Espagne","Madrid","Est un pays européen situé sur la péninsule ibérique et comprenant 17 régions autonomes","Oui","Oui"]
[30,"Gard","Nîmes","Alès, Le Vigan","Languedoc-Roussillon",null,31,"Portugal","Lisbonne","Est un pays du sud de l'Europe, sur la péninsule Ibérique, délimité en partie par l'Espagne","Oui","Oui"]
[31,"Haute-Garonne","Toulouse","Muret, Saint-Gaudens","Midi-Pyrénées",null,32,"Chili","Santiago","Est un étroit couloir de terre qui s’étend le long de la côte ouest de l’Amérique du Sud","Nom","Nom"]
[32,"Gers","Auch","Condom, Mirande","Midi-Pyrénées",null,33,"Alaska","Jumeau","Est un pays au nord-ouest du Canada, est le plus grand État des États-Unis","Nom","Nom"]
[33,"Gironde","Bordeaux","Arcachon, Blaye, Langon, Lesparre-Médoc, Libourne","Aquitaine",null,34,"Iles-Canarie","Santa Cruz de Tenerife","Sont un archipel de l'océan Atlantique situé au large des côtes du Maroc","Nom","Nom"]
[34,"Hérault","Montpellier","Béziers, Lodève","Languedoc-Roussillon",null,35,"Autriche","Vienne"," Est un pays germanophone d'Europe centrale caractérisé par une architecture baroque","Oui","Oui"]
[35,"Ille-et-Vilaine","Rennes","Fougères, Redon, Saint-Malo","Bretagne",null,36,"Saint-Marin","Saint-Marin","Est un micro-État montagneux enclavé dans le centre-nord de l'Italie","Oui","Oui"]
[36,"Indre","Châteauroux","Le Blanc, La Châtre, Issoudun","Centre",null,37,"République Dominiquaine","Saint-Domingue","Est un pays des Caraïbes qui partage l'île d'Hispaniola avec Haïti à l'ouest","Nom","Nom"]
[37,"Indre-et-Loire","Tours","Chinon, Loches","Centre",null,38,"Groenland","Nuuk","Est une île immense et un territoire danois autonome situé entre l'Atlantique Nord et l'océan Arctique","Nom","Nom"]
[38,"Isère","Grenoble","La Tour-du-Pin, Vienne","Rhône-Alpes",null,39,"Angola","Luanda","Est un pays sud-africain Vous pourrez y admirer les plages tropicales sur l'Atlantique","Nom","Nom"]
[39,"Jura","Lons-le-Saunier","Dole, Saint-Claude","Franche-Comté",null,40,"Liechtenstein","Vaduz","Est une principauté alémanique de 25 km de long entre l'Autriche et la Suisse","Nom","Oui"]
[40,"Landes","Mont-de-Marsan","Dax","Aquitaine",null,41,"Nouvel-Zélande","Wellington","2 îles principales abritant toutes deux des volcans et des glaciers","Nom","Nom"]
[41,"Loir-et-Cher","Blois","Romorantin-Lanthenay, Vendôme","Centre",null,42,"Liberia","Monrovia","Est un pays d'Afrique de l'Ouest bordé au sud-sud-est et à l'ouest-sud-ouest par l'océan Atlantique","Nom","Nom"]
[42,"Loire","Saint-Étienne","Montbrison, Roanne","Rhône-Alpes",null,43,"Australie","Canberra","Est un pays et continent entouré par les océans Indien et Pacifique","Nom","Nom"]
[43,"Haute-Loire","Le Puy-en-Velay","Brioude, Yssingeaux","Auvergne",null,44,"Afrique Du Sud","Pretoria","Est un pays situé à l'extrémité australe du continent africain et composé de différents écosystèmes","Nom","Nom"]
[44,"Loire-Atlantique","Nantes","Châteaubriant, Saint-Nazaire","Pays de la Loire",null,45,"Yougoslavie","Belgrade","Est un État d'Europe du Sud-Est qui existe sous différents noms et formes entre 1918 et 2006","Nom","Nom"]
[45,"Loiret","Orléans","Montargis, Pithiviers","Centre",null,46,"ALLEMAGNE DE L'EST","Berlin","9 novembre 1989 : le Mur tombe","Nom","Nom"]
[46,"Lot","Cahors","Figeac, Gourdon","Midi-Pyrénées",null,47,"Denmarck","Copenhague","Est un pays scandinave qui regroupe la péninsule de Jutland et de nombreuses îles","Oui","Oui"]
[47,"Lot-et-Garonne","Agen","Marmande, Nérac, Villeneuve-sur-Lot","Aquitaine",null,48,"Arabie-Saoudite","Riad","Est un pays désertique qui inclut la majeure partie de la péninsule arabique","Nom","Nom"]
[48,"Lozère","Mende","Florac Trois Rivières","Languedoc-Roussillon",null,49,"Les Baleares","Palma","Les îles Baléares forment un archipel situé au large de la côte est de l'Espagne","Nom","Nom"]
[49,"Maine-et-Loire","Angers","Cholet, Saumur, Segré-en-Anjou Bleu","Pays de la Loire",null,50,"Russie","Moscou","Est un État fédéral transcontinental,le plus vaste État de la planète","Nom","Nom"]
[50,"Manche","Saint-Lô","Avranches, Cherbourg-en-Cotentin, Coutances","Basse-Normandie",null,51,"Androre","Andorre-la-Vieille","Est une petite principauté indépendante située entre la France et l'Espagne","Nom","(Nom) Union douanière"]
[51,"Marne","Châlons-en-Champagne","Épernay, Reims, Vitry-le-François","Champagne-Ardenne",null,52,"Îles Féroé","Tórshavn","Les Îles Féroé sont un archipel autonome faisant partie du Royaume du Danemark","Oui","Nom"]
[52,"Haute-Marne","Chaumont","Langres, Saint-Dizier","Champagne-Ardenne",null,53,"Salvador","San Salvador","Est une petite nation d'Amérique centrale, connue pour ses plages sur l'océan Pacifique","Nom","Nom"]
[53,"Mayenne","Laval","Château-Gontier-sur-Mayenne, Mayenne","Pays de la Loire",null,54,"Luxembourg","Luxembourg","Est un petit pays européen bordé par la Belgique, la France et l'Allemagne","Oui","Oui"]
[54,"Meurthe-et-Moselle","Nancy","Lunéville, Toul, Val de Briey","Lorraine",null,55,"Gibratar","Gibraltar","Est un territoire britannique d'outre-mer sur un promontoire situé sur la côte sud de l'Espagne","Nom","Nom"]
[55,"Meuse","Bar-le-Duc","Commercy, Verdun","Lorraine",null,56,"Finlande","Helsinki","Est une nation d'Europe du Nord bordant la Suède, la Norvège et la Russie","Oui","Oui"]
[56,"Morbihan","Vannes","Lorient, Pontivy","Bretagne",null,57,"Inde","New Delhi","Est un Pays Qui offre un paysage varié, des pics de l'Himalaya au littoral de l'océan Indien","Nom","Nom"]
[57,"Moselle","Metz","Forbach, Sarrebourg, Sarreguemines, Thionville","Lorraine",null,58,"Malaysi","Kuala Lumpur","Est un Pays d'Asie du Sud-Est occupant une partie de la péninsule Malaise et de l'île de Bornéo","Nom","Nom"]
[58,"Nièvre","Nevers","Château-Chinon (Ville), Clamecy, Cosne-Cours-sur-Loire","Bourgogne",null,59,"Dodecanese-islands","Rhodes","Est un archipel de la mer Égée regroupant plus de 160 iles et ilots","Nom","Nom"]
[59,"Nord","Lille","Avesnes-sur-Helpe, Cambrai, Douai, Dunkerque, Valenciennes","Nord-Pas-de-Calais",null,60,"HONG KONG","Hong Kong","Ancienne colonie britannique,Hong Kong est un territoire indépendant situé au sud-est de la Chine","Nom","Nom"]
[60,"Oise","Beauvais","Clermont, Compiègne, Senlis","Picardie",null,61,"Équateur","Quito","Est un pays chevauchant l'équateur, sur la côte ouest de l'Amérique du Sud","Nom","Nom"]
[61,"Orne","Alençon","Argentan, Mortagne-au-Perche","Basse-Normandie",null,62,"Îles Guam","Hagåtña","Île située dans l'est-sud-est de la mer des Philippines Elle est la plus grande île de Micronésie","Nom","Nom"]
[62,"Pas-de-Calais","Arras","Béthune, Boulogne-sur-Mer, Calais, Lens, Montreuil-sur-Mer, Saint-Omer","Nord-Pas-de-Calais",null,63,"Îles Sainte-Hélène","Jamestown","Est une île volcanique de 122 km², située dans l'océan Atlantique","Nom","Nom"]
[63,"Puy-de-Dôme","Clermont-Ferrand","Ambert, Issoire, Riom, Thiers","Auvergne",null,64,"Sénégale","Dacar","Est un État d'Afrique de l'Ouest. Il est bordé par l'océan Atlantique l'ouest, la Mauritanie","Nom","Nom"]
[64,"Pyrénées-Atlantiques","Pau","Bayonne, Oloron-Sainte-Marie","Aquitaine",null,65,"Sierra-Léone","Freetown","Est un pays d'Afrique de l'Ouest situé sur la côte Atlantique","Nom","Nom"]
[65,"Hautes-Pyrénées","Tarbes","Argelès-Gazost, Bagnères-de-Bigorre","Midi-Pyrénées",null,66,"Mauritani","Nouakchott","Est un pays forme longue la république islamique de Mauritanie,est un État d'Afrique du Nord-Ouest","Nom","Nom"]
[66,"Pyrénées-Orientales","Perpignan","Céret, Prades","Languedoc-Roussillon",null,67,"Paraguay","Asuncion","Est un pays un pays enclavé situé entre l'Argentine et Brésil Il abrite de vastes régions marécageuses","Nom","Nom"]
[67,"Bas-Rhin","Strasbourg","Haguenau, Molsheim, Saverne, Sélestat","Alsace",null,68,"Irlande du Nord","Belfast","Est l'une des nations du Royaume-Uni. Elle est réputée pour ses châteaux normands","Nom","Nom"]
[68,"Haut-Rhin","Colmar","Altkirch, Mulhouse, Thann","Alsace",null,69,"Costa-Rica","San José","Est un pays recouvert d'une forêt tropicale humide et situé entre la mer des Caraïbes","Nom","Nom"]
[69,"Rhône","Lyon","Villefranche-sur-Saône","Rhône-Alpes",null,70,"Amérique-Samoa-Islands","Tutuila","Est un pays paradis tropical et authentique sur le territoire américain","Nom","Nom"]
[70,"Haute-Saône","Vesoul","Lure","Franche-Comté",null,71,"îles Midway"," l'État d'Hawaï","En anglais Midway Islands ou Midway Atoll, en hawaïen Pihemanu","Nom","Nom"]
[71,"Saône-et-Loire","Mâcon","Autun, Chalon-sur-Saône, Charolles, Louhans","Bourgogne",null,72,"Guatemala","Guatemala-Ville","Est un pays au sud du Mexique, possède volcans, forêts tropicales et anciens sites mayas","Nom","Nom"]
[72,"Sarthe","Le Mans","La Flèche, Mamers","Pays de la Loire",null,73,"Suriname","Paramaribo","Est un petit pays de la côte nord-est de l'Amérique du Sud","Nom","Nom"]
[73,"Savoie","Chambéry","Albertville, Saint-Jean-de-Maurienne","Rhône-Alpes",null,74,"Namibie","Windhoek","Ce pays abrite une faune et une flore diversifiées, dont une importante population de guépard","Nom","Nom"]
[74,"Haute-Savoie","Annecy","Bonneville, Saint-Julien-en-Genevois, Thonon-les-Bains","Rhône-Alpes",null,75,"Les Açores","Ponta Delgada","Font partie des régions ultrapériphériques européenne.Elles sont une région autonome du Portugal","Nom","Nom"]
[75,"Paris","Paris (C)",null,"Île-de-France",null,76,"Maroc","Rabat","Est un pays pays d'Afrique du Nord sur le littoral de l'Atlantique et de la Méditerranée","Nom","Nom"]
[76,"Seine-Maritime","Rouen","Dieppe, Le Havre","Haute-Normandie",null,77,"Ghana","Accra","Nation d'Afrique de l'Ouest située sur le golfe de Guinée, est connu pour sa faune varié","Nom","Nom"]
[77,"Seine-et-Marne","Melun","Fontainebleau, Meaux, Provins, Torcy","Île-de-France",null,78,"Zambie","Lusaka","Est un pays de terres sauvages et d'une faune diversifiée,avec de nombreux parcs et zones de safari","Nom","Nom"]
[78,"Yvelines","Versailles","Mantes-la-Jolie, Rambouillet, Saint-Germain-en-Laye","Île-de-France",null,79,"Les Philippines","Manila","Est un pays d'Asie du Sud-Est, à l'ouest du Pacifique, comptant plus de 7 000 îles. Manille","Nom","Nom"]
[79,"Deux-Sèvres","Niort","Bressuire, Parthenay","Poitou-Charentes",null,80,"Bolive","La Paz (Sucre)","On voie la vaste cordillère des Andes, que le désert d’Atacama forêt tropicale du bassin amazonien","Nom","Nom"]
[80,"Somme","Amiens","Abbeville, Montdidier, Péronne","Picardie",null,81,"San-Andrés","San Andrés","Est une île colombienne de la mer des Caraïbes, au large de la côte du Nicaragua","Nom","Nom"]
[81,"Tarn","Albi","Castres","Midi-Pyrénées",null,82,"Guantanamo-Bay","Guantánamo","Est une prison militaire de haute sécurité situé sur la base navale américaine de Guantánamo","Nom","Nom"]
[82,"Tarn-et-Garonne","Montauban","Castelsarrasin","Midi-Pyrénées",null,83,"Tanzanie","Dodoma","Est un pays d'Afrique de l'Est réputé pour ses vastes régions sauvages","Nom","Nom"]
[83,"Var","Toulon","Brignoles, Draguignan","Provence-Alpes-Côte d'Azur",null,84,"Côte d'Ivoire","Yamoussoukro","Est un pays d'Afrique de l'Ouest doté de stations balnéaires,et d'un patrimoine colonial français","Nom","Nom"]
[84,"Vaucluse","Avignon","Apt, Carpentras","Provence-Alpes-Côte d'Azur",null,85,"Zimbabwe","Harare","Est enclavé de l'Afrique australe connu pour ses paysages spectaculaires et sa faune diversifiée","Nom","Nom"]
[85,"Vendée","La Roche-sur-Yon","Fontenay-le-Comte, Les Sables-d'Olonne","Pays de la Loire",null,86,"Népal","Katmandou","Est un pays situé entre l'Inde et le Tibet, réputé pour ses temples et ses montagnes de l'Himalaya","Nom","Nom"]
[86,"Vienne","Poitiers","Châtellerault, Montmorillon","Poitou-Charentes",null,87,"Yémen","Sanaa","Situé à la pointe sud-ouest de la péninsule d'Arabie et une frontière maritime avec Djibouti","Nom","Nom"]
[87,"Haute-Vienne","Limoges","Bellac, Rochechouart","Limousin",null,88,"Cuba","La Havane","Est un État insulaire des Caraïbes formé de l'île de Cuba","Nom","Nom"]
[88,"Vosges","Épinal","Neufchâteau, Saint-Dié-des-Vosges","Lorraine",null,89,"Nigéria","Abuja","Est un pays africain du golfe de Guinée, possède un grand nombre de réserves et sites naturels","Nom","Nom"]
[89,"Yonne","Auxerre","Avallon, Sens","Bourgogne",null,90,"Îles de Crête","Héraklion","Elle est la plus grande des îles grecques et la cinquième de la mer Méditerranée en superficie","Nom","Nom"]
[90,"Territoire de Belfort","Belfort","Pas de sous préfecture","Franche-Comté",null,91,"Indonésie","Jakarta","Est un pays d'Asie du Sud-Est composé de milliers d'îles volcaniques","Nom","Nom"]
[91,"Essonne","Évry-Courcouronnes","Étampes, Palaiseau","Île-de-France",null,92,"Libye","Tripoli","Est un état d'Afrique du Nord faisant partie du Maghreb","Nom","Nom"]
[92,"Hauts-de-Seine","Nanterre","Antony, Boulogne-Billancourt","Île-de-France",null,93,"Malte","La Valette","Est un archipel du centre de la Méditerranée, entre la Sicile et la côte d'Afrique du Nord","Nom","Oui"]
[93,"Seine-Saint-Denis","Bobigny","Le Raincy, Saint-Denis","Île-de-France",null,94,"emirat arabe uni","Abou Dabi","État fédéral composé de 7 émirats Abou Dabi , la capitale , abrite la mosquée Cheikh Zayed","Nom","Nom"]
[94,"Val-de-Marne","Créteil","L'Haÿ-les-Roses, Nogent-sur-Marne","Île-de-France",null,95,"Mongolie","Oulan-Bator","Est un pays délimité par la Chine et la Russie.(grandes étendues sauvages et sa culture nomade)","Nom","Nom"]
[95,"Val-d'Oise","Cergy","Argenteuil, Pontoise (Chef-lieu), Sarcelles","Île-de-France",null,96,"Îles Tonga","L'île Tongatapu","Le Royaume de Tonga est un État de Polynésie comportant plus de 170 îles du Pacifique Sud","Nom","Nom"]
[971,"Guadeloupe","Basse-Terre","Pointe-à-Pitre","Provence-Alpes-Côte d'Azur",null,97,"Isarël","Jérusalem","Est un pays qui borde la mer Méditerranée.Pour les Juifs,les Chrétiens et les Musulmans","Nom","Nom"]
[972,"Martinique","Fort-de-France","Le Marin, Saint-Pierre, La Trinité","Collectivité d'outre-mer française",null,98,"Singapour","Singapour","Est une cité-État insulaire au large du sud de la Malaisie.","Nom","Nom"]
[973,"Guyane","Cayenne","Saint-Laurent-du-Maroni, Saint-Georges","Collectivité d'outre-mer française",null,99,"Îles Fidji ","Suva","Est un pays du Pacifique Sud, sont un archipel composé de plus de 300 îles.","Nom","Nom"]
[974,"La Réunion","Saint-Denis","Saint-Benoît, Saint-Paul, Saint-Pierre","Collectivité d'outre-mer française",null,100,"Corée du Sud","Séoul","Elle partage l'une des frontières les plus fortement militarisées du monde avec la Corée du Nord","Oui","Oui"]
[975," Saint-Pierre-et-Miquelon","Saint Pierre","Pas de sous préfecture","Est située dans l'océan Indien",null,101,"Guinée","Konakrie","Elle est réputée pour la réserve naturelle intégrale du Mont Nimba","Nom","Nom"]
[976,"Mayotte","Mamoudzou","Pas de sous préfecture","Est situé dans l'océan Atlantique",null,102,"Koweït","Koweït","Est un pays pays arabe du Golfe persique, abrite un patrimoine culturel datant de l'Antiquité ","Nom","Nom"]
[977,"Saint-Barthélemy","Gustavia","Pas de sous préfecture","Est située dans l'océan Indien",null,103,"Haiti","Port-au-Prince","Situé sur l'île d'Hispaniola,territoire qu'il partage avec la République dominicain","Nom","Nom"]
[978,"Saint-Martin","Marigot","Pas de sous préfecture","Collectivité d'outre-mer française",null,104,"Corsse","Bastia","Île méditerranéenne de la Corse offre des villes côtières chics,forêts denses et montagnes escarpées","Oui","Oui"]
[984,"Terres-Australes et Antarctique","Collectivité d'outre-mer ","Pas de sous préfecture","Collectivité d'outre-mer française",null,105,"Botswana","Gaborone","Est un pays enclavé de l’Afrique australe. Le désert du Kalahari et le delta de l’Okavango","Nom","Nom"]
[986,"Wallis-et-Futuna","Mata'Utu","Pas de sous préfecture","Collectivité d'outre-mer française",null,106,"Ceuta & Mélilla","Melilla","constituent les seuls territoires où l'Europe et l'Afrique partagent une frontière terrestre","Nom","Nom"]
[987,"polynésie française","Papeete – Tahiti","Pas de sous préfecture","Provence-Alpes-Côte d'Azur",null,107,"Monaco","Monaco","Monaco est une petite ville-État indépendante sur la côte méditerranéenne française","Oui","Oui"]
[988,"Nouvel Calédonie","Nouméa","Pas de sous préfecture","Archipels de Crozet et Kerguelen",null,108,"Écose","Édimbourg","L'Écosse, nation la plus au nord du Royaume-Uni, comprend des régions sauvages montagneuse","Nom","Nom"]
[993,"Guinée","Conakry","  Kolaboui,Boké,Kouroussa","collectivité décentralisée",null,109,"Hongrie","Budapest","Est un pays enclavé d'Europe centrale. Budapest, sa capitale, est traversée par le Danube","Oui","Oui"]
[null,null,null,null,null,null,110,"Chypre","Nicosie","Chypre occupe la partie sud de l’île de Chypre, dans l’est de la mer Méditerranée","Oui","Nom"]
[null,null,null,null,null,null,111,"Jordanie","Amman","Est un pays arabe situé sur la rive orientale du Jourdain. Il se compose de monuments anciens","Nom","Nom"]
[null,null,null,null,null,null,112,"Liban","Beyrouth","est un État du Proche-Orient. En grande partie montagneux","Nom","Nom"]
[null,null,null,null,null,null,113,"Malasie","Kuala Lumpur","Est un pays d'Asie du Sud-Est occupant une partie de la péninsule Malaise et de l'île de Bornéo","Nom","Nom"]
[null,null,null,null,null,null,114,"Pakistan","Islamabad","Est une république islamique d'Asie du Sud entourée par l’Iran, l’Afghanistan, la Chine, l’Inde","Nom","Nom"]
[null,null,null,null,null,null,115,"Qatar","Doha","Est un pays de la péninsule arabique qui se compose d'un désert aride","Nom","Nom"]
[null,null,null,null,null,null,116,"Turquie","Ankara","La Turquie s'étend de l'Europe de l'Est à l'Asie Mineure. Culturellement","Nom","(Nom) Union douanière"]
[null,null,null,null,null,null,117,"Egypte","Le Caire","Entre l'Afrique du Nord-Est et le Moyen-Orient et son histoire remonte à l'époque des pharaons ","Nom","Nom"]
[null,null,null,null,null,null,118,"Gambie","Banjul","Est un petit pays d'Afrique de l'Ouest, bordé par le Sénégal et doté d'un étroit littoral sur l'océan Atlantique","Nom","Nom"]
[null,null,null,null,null,null,119,"Madère","Funchal","Région autonome du Portugal, est un archipel de 4 îles au large de la côte nord-ouest de l'Afrique","Nom","Nom"]
[null,null,null,null,null,null,120,"Antigua & Barbuda","Saint-John's","Est un pays indépendant du Commonwealth composé de deux îles principales","Nom","Nom"]
[null,null,null,null,null,null,121,"Les Bahamas","Nassau","Situé dans l'océan Atlantique, les Bahamas comptent plus de 700 îles et îlots","Nom","Nom"]
[null,null,null,null,null,null,122,"Île Barbade","Bridgetown","C'est l'île la plus orientale des Petites Antilles population soit un pidgin appelé bajan","Nom","Nom"]
[null,null,null,null,null,null,123,"Île aux Bermudes","Hamilton","Grande Bermude est l'île principale de l'archipel des Bermudes","Nom","Nom"]
[null,null,null,null,null,null,124,"Amsterdam","Amsterdam","Connue pour son patrimoine artistique,système élaboré de canaux et ses étroites maisons à pignons","Nom","Nom"]
[null,null,null,null,null,null,125,"Îles Caïmans","George Town","Territoire d’outre-mer britannique, comportent 3 îles situées à l’ouest de la mer des Caraïbes","Nom","Nom"]
[null,null,null,null,null,null,126,"Nicaragua","Managua","Est un pays d'Amérique centrale formé de lacs, de volcans et de plage de la mer des Caraïbes","Nom","Nom"]
[null,null,null,null,null,null,127,"Îles Vierges des États-Unis","Charlotte Amalie","Les Îles Vierges des États-Unis sont un ensemble d'îles et d'îlots de la mer des Caraïbes","Nom","Nom"]
[null,null,null,null,null,null,128,"Îles Vierges britanniques","Road Town","Forme un archipel volcanique dans les Caraïbes, sont un territoire d’outre-mer britannique","Nom","Nom"]
[null,null,null,null,null,null,129,"Ïles Macquarie","Hobart","Situe au sud-ouest de l'océan Pacifique, à mi-chemin entre la Nouvelle-Zélande et l'Antarctique","Nom","Nom"]
[null,null,null,null,null,null,130,"Île Norfolk","Kingston","Est un territoire australien du sud-ouest de l'océan Pacifique","Nom","Nom"]
[null,null,null,null,null,null,131,"Guyana","Georgetown","Est situé sur la côte nord-atlantique de l'Amérique du Sud et caractérisé par sa forêt tropicale dense","Nom","Nom"]
[null,null,null,null,null,null,132,"Îles Marshall","Majuro","En forme longue la république des Îles Marshall, sont un État de Micronésie, en Océanie","Nom","Nom"]
[null,null,null,null,null,null,133,"Îles Mariannes","Saipan","Forme des sommets émergés de quinze montagnes volcaniques dans l'est de la mer des Philippines","Nom","Nom"]
[null,null,null,null,null,null,134,"République Palaos","Ngerulumud","Sont un archipel de plus de 500 îles situé en Micronésie, dans l'ouest de l'océan Pacifique","Nom","Nom"]
[null,null,null,null,null,null,135,"Les Îles Salomon","Honiara","Sont un État regroupant des centaines d'îles du sud du Pacifique","Nom","Nom"]
[null,null,null,null,null,null,136,"Martinique","Fort-De-France","Est une île des Caraïbes qui fait partie des petites Antilles. Région d'outre-mer de la France","Oui","Nom"]
[null,null,null,null,null,null,137,"Île De Man","Douglas","Est une dépendance autonome de la Couronne britannique située dans la mer d'Irlande","Nom","Nom"]
[null,null,null,null,null,null,138,"Vatican","Vatican","ville-État située au cœur de Rome est le siège de l'Église catholique romaine et la résidence du pape","Nom","Nom"]
[null,null,null,null,null,null,139,"SOUTHERN YEMEN","Aucun chef-lieu","Était un État communistequi a existé de 1967 à 1990 dans les provinces du sud et de l'est","Nom","Nom"]
[null,null,null,null,null,null,140,"L'Antarctique","Aucun chef-lieu","L'Antarctique, parfois appelé « le Continent Austral » ou « le Continent Blanc","Nom","Nom"]
[null,null,null,null,null,null,141,"St,Pierre & Miquelon","Saint-Pierre","Est un archipel français au sud de l'île canadienne de Terre-Neuve Collectivité D'outre Mer Française","Oui","Nom"]
[null,null,null,null,null,null,142,"Lesotho","Maseru","Est un pays pays de haute altitude,aussi un royaume enclavé dans le territoire de l'Afrique du Sud","Nom","Nom"]
[null,null,null,null,null,null,143,"Sainte-Lucie","Castries","Est un État insulaire de l'est des Caraïbes doté de deux montagnes très effilées","Nom","Nom"]
[null,null,null,null,null,null,144,"Île de Pâques","Hanga Roa","Qui appartient au Chili,île volcanique reculée de Polynésie, dont le nom autochtone est (Rapa Nui)","Nom","Nom"]
[null,null,null,null,null,null,145,"Galapagos","Puerto Baquerizo Moreno","Elles sont considérées comme l'une des destinations majeures au monde","Nom","Nom"]
[null,null,null,null,null,null,146,"Algérie","Alger","Est un pays nord-africain doté d'un littoral sur la mer Méditerranée et d'un intérieur désertique","Nom","Nom"]
[null,null,null,null,null,null,147,"Tunisie","Tunis","Est un pays d'Afrique du Nord situé sur la côte méditerranéenne et en bordure du désert du Sahara","Nom","Nom"]
[null,null,null,null,null,null,148,"L'île de l'Ascension","non incorporée","L'île de l'Ascension,est une île de l'océan Atlantique sud, située dans l'hémisphère austra","Nom","Nom"]
[null,null,null,null,null,null,149,"Sascandavie","Oslo","Elle est située sur la côte sud du pays, au fond du Oslofjord","Nom","Nom"]
[null,null,null,null,null,null,150,"Bahreïn","Manama","Parti d'une trentaine d'îles du golfe Persique,est une étape importante sur les routes commerciales","Nom","Nom"]
[null,null,null,null,null,null,151,"Irak","Bagdad","Est un pays du Proche-Orient,situé au nord de la péninsule arabique appelé (le pays des deux fleuves)","Nom","Nom"]
[null,null,null,null,null,null,152,"Maldives","Malé","Sont un pays tropical de l'océan Indien composé de 26 atolls en forme d'anneaux îles coralliennes ","Nom","Nom"]
[null,null,null,null,null,null,153,"Thailande","Bangkok","Elle est réputée pour ses plages tropicales, ses palais royaux opulents","Nom","Nom"]
[null,null,null,null,null,null,154,"Iran","Téhéran","Forme longue la république islamique d'Iran, Pays d'Asie de l'Ouest,historiquement appelé la Perse","Nom","Nom"]
[null,null,null,null,null,null,155,"Taïwan","Taipie","Taïwan est un petit État insulaire situé à 180 km à l'est de la Chine, offrant des villes modernes","Nom","Nom"]
[null,null,null,null,null,null,156,"Cameroon","Yaoundé","d'autres définitions d'Afrique de l'Ouest, situé entre le Nigeria au nord-nord-ouest, le Tchad .","Nom","Nom"]
[null,null,null,null,null,null,157,"Montserrat-Island","Plymouth","Située dans l'arc formé par les Petites Antilles de la mer des Caraïbes.C'est un territoire britannique","Nom","Nom"]
[null,null,null,null,null,null,158,"Trinité-et-Tobago","Port-D'Espagne","Est un État des Caraïbes composé de 2 îles et situé près du Venezuela","Nom","Nom"]
[null,null,null,null,null,null,159,"Somalie","Mogadiscio","Est bordé par la Libye au nord-ouest, l’Égypte au nord, la mer Rouge à l'est-nord-est ","Nom","Nom"]
[null,null,null,null,null,null,160,"Soudan","Khartoum","Forme longue la République fédérale de Somalie,situé à l'extrémité orientale de la Corne de l'Afrique","Nom","Nom"]
[null,null,null,null,null,null,161,"Pologne","Varsovie","Pays d'Europe de l'Est situé au bord de la mer Baltique qui est réputé pour son architecture médiévale","Oui","Oui"]
[null,null,null,null,null,null,162,"Zaïre","Kinshasa","L'actuelle république démocratique du Congo portait le nom de Zaïr","Nom","Nom"]
[null,null,null,null,null,null,163,"Galles","Cardiff","Est un pays du sud-ouest de la Grande-Bretagne connu pour son littoral accidenté","Nom","Nom"]
[null,null,null,null,null,null,164,"Togo","Lomé","Situé dans le golfe de Guinée. Il est connu pour ses plages bordées de palmiers","Nom","Nom"]
[null,null,null,null,null,null,165,"Sardaigne","Cagliari","Est une grande île italienne de la mer Méditerranée, qui compte près de 2 000 km de côté","Nom","Nom"]
[null,null,null,null,null,null,166,"St,Martin","Philipsburg","Sa partie nord,appelée Saint-Martin,est française,et sa partie sud,Sint Maarten,est néerlandaise","Nom","Nom"]
[null,null,null,null,null,null,167,"l'Ile aux Fleurs","Saint-Hélier","État de Rio Grande , au Sud du Brésil, un État qui s'est développé grâce à l'élevage et à l'agriculture","Nom","Nom"]
[null,null,null,null,null,null,168,"Îles Maurice","Port-Louis","L'île ne compte plus de volcan en activité. On y trouve cependant des restes de cratères endormis","Nom","Nom"]
[null,null,null,null,null,null,169,"Guernsey-Ilands","Saint-Pierre-Port","Un groupe d'îles à peu près au nord de Saint-Malo et à l'ouest de la péninsule du Cotentin","Nom","Nom"]
[null,null,null,null,null,null,170,"Burkina-Faso","Ouagadougou","Couramment appelé Burkina, est un pays d'Afrique de l'Ouest sans accès à la mer","Nom","Nom"]
[null,null,null,null,null,null,171,"Svalbard-Islands","Longyearbyen","Est un archipel norvégien situé dans l'océan Arctique, entre le Groenland à l'ouest","Nom","Nom"]
[null,null,null,null,null,null,172,"Nouvel-Calédonie","Nouméa","La Nouvelle-Calédonie est un territoire français constitué de dizaines d'îles dans le Pacifique Sud","Oui","Nom"]
[null,null,null,null,null,null,173,"Réunion","Saint-Denis","L'île de la Réunion est un département français de l'océan Indien.","Oui","Nom"]
[null,null,null,null,null,null,174,"Ouganda","Kampala","Est un pays enclavé d'Afrique de l'Est, dont le paysage varié et l'immense lac Victoria","Nom","Nom"]
[null,null,null,null,null,null,175,"Tchad","N'Djamena","le Tchad constitue un point de passage entre l'Afrique du Nord et l'Afrique subsaharienne","Nom","Nom"]
[null,null,null,null,null,null,176,"Affrique Central","Yaoundé","Comprenant le sud du Sahara, l'est du bouclier ouest-africain et l'ouest de la vallée du Grand Rift","Nom","Nom"]
[null,null,null,null,null,null,177,"Sri-Lanka","Colombo","Est un pays insulaire situé au sud de l'Inde, dans l'océan Indien","Nom","Nom"]
[null,null,null,null,null,null,178,"Bulgarie","Sofia","Territoire littoral de la mer Noire aux terres montagneuses et aux fleuves,dont le Danube","Oui","Nom"]
[null,null,null,null,null,null,179,"Tchécoslovaquie","Prague","La Tchécoslovaquie est un État souverain qui exista en Europe centrale durant 68 ans","Oui","Oui"]
[null,null,null,null,null,null,180,"Oman","Mascate","Se compose d'un désert, d'oasis dans le lit de rivières et de longs littoraux sur le golfe Persique","Nom","Nom"]
[null,null,null,null,null,null,181,"Syrie","Damas","Située sur la côte orientale de la mer Méditerranée","Nom","Nom"]
[null,null,null,null,null,null,182,"Guinée","Konakrie","Est un pays d'Afrique de l'Ouest bordé par l'océan Atlantique ","Nom","Nom"]
[null,null,null,null,null,null,183,"Benin","Porto-Novo","Est un pays francophone d'Afrique de l’Ouest. Il est le berceau de la religion vaudou","Nom","Nom"]
[null,null,null,null,null,null,184,"Burundi","Gitega","Situé dans la région des Grands Lacs et bordé à l'ouest par la république démocratique du Congo","Nom","Nom"]
[null,null,null,null,null,null,185,"Comores","Moroni","Dans l'océan Indien du canal du Mozambique.La plus grande île de cet État-nation","Nom","Nom"]
[null,null,null,null,null,null,186,"Djibouti","Djibouti","Est un pays principalement francophone et arabophone qui offre brousse aride","Nom","Nom"]
[null,null,null,null,null,null,187,"Kenya","Nairobi","Le Kenya est un pays d'Afrique de l'Est possédant un littoral sur l'océan Indien","Nom","Nom"]
[null,null,null,null,null,null,188,"Madagascar","Tananarive","Madagascar est une île immense et un pays situé au large de la côte sud-est de l'Afrique","Nom","Nom"]
[null,null,null,null,null,null,189,"Mayotte","Mamoudzou","Situé entre Madagascar et du Mozambique.C'est un département et une région française","Oui","Nom"]
[null,null,null,null,null,null,190,"Seychelles","Victoria","Sont un archipel de 115 îles situé dans l'océan Indien, au large de l'Afrique orientale","Nom","Nom"]
[null,null,null,null,null,null,191,"Eswatini","Mbabane,Lobamba","Eswatini dit (Le Swaziland), petite monarchie enclavée au sud de l'Afrique","Nom","Nom"]
[null,null,null,null,null,null,192,"Îles Cocos","West Island","Archipel corallien de l’océan Indien, formé autour de deux atolls principaux.","Nom","Nom"]
[null,null,null,null,null,null,193,"Cocos-Keeling","West Island","Archipel corallien de l’océan Indien, formé autour de deux atolls principaux.","Nom","Nom"]
[null,null,null,null,null,null,194,"Dominica-Island","Roseau","Est un pays insulairedans les Caraïbes situé dans le cadre de la chaîne des îles du Vent","Nom","Nom"]
[null,null,null,null,null,null,195,"Grenade","Saint-George's","Est une ville située dans la région de l'Andalousie au sud de l'Espagne","Nom","Nom"]
[null,null,null,null,null,null,196,"Guadaloupe","Basse-Terre","Territoire français d'outre-mer, est un groupe d'îles situé dans le sud de la mer des Caraïbes","Oui","Nom"]
[null,null,null,null,null,null,197,"Vanuatu","Port Vila","Est un pays du sud  composé d'environ 80 îles qui s'étendent sur 1 300 kilomètres","Nom","Nom"]
[null,null,null,null,null,null,198,"Îles Malouines(Îles Falkland)","Port Stanbley","Archipel éloigné de l'Atlantique Sud.Avec leurs terres arides et leurs côtes bordées de falaises","Nom","Nom"]
[null,null,null,null,null,null,199,"Équateur","Quito","Sur la côte ouest de l'Amérique du Sud. Ses paysages variés regroupent jungle amazonienne","Nom","Nom"]
[null,null,null,null,null,null,200,"South-Shetland","Lerwick","Archipel de l’Antarctique situé à 116 kilomètres au nord-nord-ouest de la péninsule Antarctique","Nom","Nom"]
[null,null,null,null,null,null,201,"Polynésie","Papeete","Territoire d'Outre-mer de la France, comprend plus de 100 îles dans le Pacifique sud","Oui","Nom"]
[null,null,null,null,null,null,202,"Bhutan","Thimphou","Le Bhoutan, royaume bouddhiste situé dans l’est de la chaîne de l’Himalaya","Nom","Nom"]
[null,null,null,null,null,null,203,"Chine","Pékin","La Chine est un pays très peuplé d’Asie de l’est. Son territoire immense présente des paysages variés","Nom","Nom"]
[null,null,null,null,null,null,204,"Mozabique","Maputo","Dans l'archipel des Quirimbas s'étendant sur 250 km d'îles coralliennes","Nom","Nom"]
[null,null,null,null,null,null,205,"Cape-Ver","Praia","Est un État insulaire composé d’un archipel d’îles volcaniques.","Nom","Nom"]
[null,null,null,null,null,null,206,"Éthiopie","Addis-Abeba","Située sur la Corne de l'Afrique, est un pays enclavé et aride, traversé par la vallée du grand rift","Nom","Nom"]
[null,null,null,null,null,null,207,"St,Martin","Marigot","Sa partie nord, appelée Saint-Martin, est française, et sa partie sud, Sint Maarten, est néerlandaise","Oui","Nom"]
[null,null,null,null,null,null,208,"Glorieuses","Aucun habitant","Archipel inhabité formé sur un atoll situé dans l'océan Indien,Collectivité D'outre Mer Française","Nom","Nom"]
[null,null,null,null,null,null,209,"Juan-de-Nova","Aucun habitant","Située dans le canal du Mozambique, c'est un territoire français revendiqué par Madagascar","Nom","Nom"]
[null,null,null,null,null,null,210,"Wallis & Futuna","Matā'utu","Collectivité D'outre Mer Française","oui","Nom"]
[null,null,null,null,null,null,211,"Jan-Mayen","Olonkinbyen","Territoire de la Norvège constitué île située à la limite entre les mers de Norvège et du Groenland","Nom","Nom"]
[null,null,null,null,null,null,212,"Aland","Mariehamn","Est une province de Finlande et la seule entité territoriale de ce pays à jouir d'un statut d'autonomie","Nom","Nom"]
[null,null,null,null,null,null,213,"Market-Reef","Hammarland","Est une petite île de la mer Baltique partagée entre la Finlande et la Suède","Nom","Nom"]
[null,null,null,null,null,null,214,"Congo","Brazzaville","Est un pays d'Afrique centrale dotée de réserves de forêts tropicales abritant des gorilles","Nom","Nom"]
[null,null,null,null,null,null,215,"Gabon","Libreville","Est un pays pays d'Afrique centrale situé sur la côte atlantique, possède d'importants parcs protégés","Nom","Nom"]
[null,null,null,null,null,null,216,"Mali","Bamako","Est un État d'Afrique de l'Ouest, frontalier de la Mauritanie à l'ouest, de l'Algérie au nord","Nom","Nom"]
[null,null,null,null,null,null,217,"Île Christmas(ile de nôel)","Flying Fish Cove","En français « île de Noël »,territoire extérieur australien situé dans le Nord-Est de l’océan Indien","Nom","Nom"]
[null,null,null,null,null,null,218,"Belize","Belmopan","Est un pays situé sur la côte est de l'Amérique centrale qui s'ouvre sur la mer des Caraïbes","Nom","Nom"]
[null,null,null,null,null,null,219,"Anguilla","The Valley","Territoire situé dans les Caraïbes orientales","Nom","Nom"]
[null,null,null,null,null,null,220,"Saint-Vincent et les Grenadines","Kingstown","Saint-Vincent-et-les-Grenadines est un pays situé au sud des Caraïbes comprenant une île principale","Nom","Nom"]
[null,null,null,null,null,null,221,"Les Îles Orcades du Sud","Aucune","Sont un groupe de petites îles appartenant à un archipel situé dans l'océan Atlantique Sud","Nom","Nom"]
[null,null,null,null,null,null,222,"Îles Sandwich du Sud","Aucune","Les Saoma sont un pays constituant la partie occidentale des îles Saoma en Polynésie.","Nom","Nom"]
[null,null,null,null,null,null,223,"Western-Samoa","Apia","Partie de la Géorgie du Sud-et-les îles Sandwich du Sud, un territoire d'outre-mer du Royaume-Uni","Nom","Nom"]
[null,null,null,null,null,null,224,"Western-Kiribati","Tarawa-Sud1","Est une île pays d' Océanie dans l' océan Pacifique central .","Nom","Nom"]
[null,null,null,null,null,null,225,"Brunei","Bandar Seri Begawan","Le territoire du pays est coupé en deux parties cernées par la Malaisie et la mer de Chine","Nom","Nom"]
[null,null,null,null,null,null,226,"Malawi","Lilongwe","Composée de montagnes traversées par la vallée du Grand Rift et le vaste lac Malawi.","Nom","Nom"]
[null,null,null,null,null,null,227,"Rwanda","Kigali","Pays enclavé avec un paysage montagneux verdoyant. Son célèbre Parc national des volcans","Nom","Nom"]
[null,null,null,null,null,null,228,"Chagos","Diego Garcia","L'archipel des Chagos est un ensemble de sept atolls situés dans le Nord de l'océan Indien","Nom","Nom"]
[null,null,null,null,null,null,229,"Heard-Island","Aucune","Territoire extérieur de l'Australie situé dans le sud de l'océan Indien, sur la plaque antarctique","Nom","Nom"]
[null,null,null,null,null,null,230,"Fédérated",null,null,"Nom","Nom"]
[null,null,null,null,null,null,231,"St,Peter & St,Paul","Aucune","Sur l'Île-du-Prince-Édouard, au Canada, au sud-ouest de Tignish","Nom","Nom"]
[null,null,null,null,null,null,232,"Aruba","Oranjestad","Est une petite île des Antilles néerlandaises située au large du Venezuela","Nom","Nom"]
[null,null,null,null,null,null,233,"Roumanie","Bucarest","Est un pays d’Europe du Sud-Est connu pour la région forestière de la Transylvanie","Oui","Nom"]
[null,null,null,null,null,null,234,"Afgahanisan","Kaboul","Un pays d'Asie du Sud ou d'Asie centrale sans accès à la mer","Nom","Nom"]
[null,null,null,null,null,null,235,"I,T,U, Geneva","Genéve","Union Internationale des Télécommunications","Nom","Nom"]
[null,null,null,null,null,null,236,"Bangladesh","Dacca","Situé à l'est de l'Inde, dans le golfe du Bengale","Nom","Nom"]
[null,null,null,null,null,null,237,"Birmanie","Naypyidaw","Est continentale ayant une frontière commune avec la Chine ","Nom","Nom"]
[null,null,null,null,null,null,238,"Camboge","Phnom Penh","Le Cambodge est une monarchie constitutionnelle","Nom","Nom"]
[null,null,null,null,null,null,239,"Laos","Vientiane","Est un pays sans accès à la mer d'Asie du Sud-est,entouré par la Birmanie","Nom","Nom"]
[null,null,null,null,null,null,240,"Macao","Macao","Est une région administrative spéciale(RAS)de la république populaire de Chine ","Nom","Nom"]
[null,null,null,null,null,null,241,"Spratly-Island","Aucune","Appelées Chapelet d'îles,sont un archipel de 14 petites îles coralliennes","Nom","Nom"]
[null,null,null,null,null,null,242,"Vietnam","Hanoï","Le Vietnam est un pays d'Asie du Sud-Est sur la mer de Chine méridionale","Nom","Nom"]
[null,null,null,null,null,null,243,"Agaléga","Aucune","Est un archipel de l'océan Indien,territoire éloigné de la République de Maurice","Nom","Nom"]
[null,null,null,null,null,null,244,"Pagalu","Aucun habitant","Est une île (class T - hypsographiques) en Provincia de Annobon","Nom","Nom"]
[null,null,null,null,null,null,245,"Niger","Niamey","Est un pays d'Afrique de l'Ouest ","Nom","Nom"]
[null,null,null,null,null,null,246,"Sao Tomé-et-Principe","São Tomé","État insulaire africain proche de l'équateur, fait partie d'une chaîne volcanique","Nom","Nom"]
[null,null,null,null,null,null,247,"Île de la Navasse","Aucune","L'île fait partie des îles mineures Des Étas-Unis","Nom","Nom"]
[null,null,null,null,null,null,248,"Îles Turks et Caïques","Cockburn Town","Est un territoire britannique d'outre-mer au sud-est des Bahamas","Nom","Nom"]
[null,null,null,null,null,null,249,"Îles Cook du Nord","Aucune","Est un un État-archipel d'Océanie","Nom","Nom"]
[null,null,null,null,null,null,250,"Îles Cook ","Avarua","Est un un État-archipel d'Océanie","Nom","Nom"]
[null,null,null,null,null,null,251,"Albani","Tirana","Située dans le Sud-Est de l’Europe, sur la péninsule balkanique","Nom","Nom"]
[null,null,null,null,null,null,252,"Îles Revillagigedo","Aucune","Situé dans l'est de l'océan Pacifique nord","Nom","Nom"]
[null,null,null,null,null,null,253,"Îles Andaman-et-Nicobar","Port Blair","Les îles Andaman sont un archipel indien du golfe du Bengale ","Nom","Nom"]
[null,null,null,null,null,null,254,"Le Mont Athos","Aucune","Une péninsule de la région historique de Macédoine.","Nom","Nom"]
[null,null,null,null,null,null,255,"Îles Kerguelen","Aucun habitant","Îles dans les Terres australes et antarctiques françaises","Nom","Nom"]
[null,null,null,null,null,null,256,"Île Marion","Aucune","Archipel du Prince-Édouard","Nom","Nom"]
[null,null,null,null,null,null,257,"Îlrd Rodrigues","Aucune","la plus petite des îles principales de l’archipel des Mascareignes","Nom","Nom"]
[null,null,null,null,null,null,258,"Île Gough","Aucun habitant","Archipel : Tristan da Cunha Île dans l'océan Atlantique","Nom","Nom"]
[null,null,null,null,null,null,259,"Île Tromelin","Aucun habitant","L'île Tromelin est une île française de l'océan Indien","Nom","Nom"]
[null,null,null,null,null,null,260,"Île Howland","Aucun habitant","Est une île inhabitée des États-Unis située dans l'océan Pacifique","Nom","Nom"]
[null,null,null,null,null,null,261,"Île Chatham","Aucun habitant","Situé à l'est de l'île du Sud,dans l'océan Pacifique Sud","Nom","Nom"]
[null,null,null,null,null,null,262,"Atoll Johnston","Aucun habitant","Situé dans l'océan Pacifique Nord","Nom","Nom"]
[null,null,null,null,null,null,263,"Kermadec islands","Aucun habitant","Situé au nord-est de l'île du Nord de la Nouvelle-Zélande ","Nom","Nom"]
[null,null,null,null,null,null,264,"Récif Kingman","Aucun habitant","Situé entre Hawaï et les Samoa américaines","Nom","Nom"]
[null,null,null,null,null,null,265,"Central kiribati","Tarawa","République insulaire dans le Pacifique central","Nom","Nom"]
[null,null,null,null,null,null,266,"Eastern kiribati","Tarawa","République insulaire dans le Pacifique central","Nom","Nom"]
[null,null,null,null,null,null,267,"Kure island","Aucun habitant","Archipel:Îles hawaïennes du Nord-Ouest Océan Pacifique","Nom","Nom"]
[null,null,null,null,null,null,268,"Île Lord Howe","Aucun habitant","Elle est rattachée administrativement à la Nouvelle-Galles du Sud","Nom","Nom"]
[null,null,null,null,null,null,269,"Mellish reef","Aucune","Îles de la mer de Corail, Australie","Nom","Nom"]
[null,null,null,null,null,null,270,"Minami torishima island","Aucune","Également connu sous le nom de l'île Marcus","Nom","Nom"]
[null,null,null,null,null,null,271,"Republic of nauru","Anabar","État insulaire d'Océanie situé en Micronésie","Nom","Nom"]
[null,null,null,null,null,null,272,"Niue island","Niué","État insulaire situé dans l'océan Pacifique sud","Nom","Nom"]
[null,null,null,null,null,null,273,"Jarvis & palmyra islands","Aucun habitant","Archipel Îles de la Ligne Dans L'Océan Pacifique","Nom","Nom"]
[null,null,null,null,null,null,274,"Îles Pitcairn","Adamstown","Seul territoire britannique d'outre-mer dans l'océan Pacifique","Nom","Nom"]
[null,null,null,null,null,null,275,"Tokelau islands","Nukunonu","Archipel d'atolls polynésiens du Nord-Ouest de l'océan Paciﬁque Sud","Nom","Nom"]
[null,null,null,null,null,null,276,"Tuvalu islands","Funafuti","Situés dans l'ouest de l'océan Pacifique Sud,au sud de l'équateur","Nom","Nom"]
[null,null,null,null,null,null,277,"Île de Sable","Aucun habitant","Est une petite île canadienne dans l'océan Atlantique","Nom","Nom"]
[null,null,null,null,null,null,278,"Île Wake","Aucun habitant","Est un atoll situé dans le nord de l'océan Pacifique","Nom","Nom"]
[null,null,null,null,null,null,279,"Willis islets","Aucun habitant","Station de surveillance météorologique de Willis Island (Mer de Corail)","Nom","Nom"]
[null,null,null,null,null,null,280,"Aves island ","Aucun habitant","Situé à l'ouest de la Guadeloupe ","Nom","Nom"]
[null,null,null,null,null,null,281,"Ogasawara islands","Aucun habitant","Archipel du Japon composé de 41 îles","Nom","Nom"]
[null,null,null,null,null,null,282,"Auckland & campbell isl",null,null,"Nom","Nom"]
[null,null,null,null,null,null,283,"Île Saint-Christophe-et-Niévès","Basseterre","la plus grande des 2 îles des Caraïbes formant l'État de Saint-Christophe-et-Niévès","Nom","Nom"]
[null,null,null,null,null,null,284,"Île De Saint Paul","Saint Paul","Elle est située dans la mer de Bering et appartient à l'Alaska","Nom","Nom"]
[null,null,null,null,null,null,285,"Fernando de noronha isla","Aucun habitant","Archipel au Brésil","Nom","Nom"]
[null,null,null,null,null,null,286,"Juan fernandez islands","Aucun habitant","dans l'Est de l'océan Pacifique sud","Nom","Nom"]
[null,null,null,null,null,null,287,"Malpelo island","Aucun habitant","L'île de Malpelo est une île de Colombie dans l'océan Pacifique","Nom","Nom"]
[null,null,null,null,null,null,288,"Île Basilique Saint - Ambroise","Aucun habitant","Elles sont rattachées administrativement à la région de Valparaíso","Nom","Nom"]
[null,null,null,null,null,null,289,"South georgia islands","King Edward PointKing","Est un territoire britannique d'outre-mer situé dans le Sud de l'océan Atlantique","Nom","Nom"]
[null,null,null,null,null,null,290,"Trindade et Martim Vaz","Aucun habitant","Situé dans l'océan Atlantique Sud,à l'est du continent sud-américain","Nom","Nom"]
[null,null,null,null,null,null,291,"Dhekelia & akrotiri","Dhekelia","Est un Territoire Britannique d'outre-mer","Nom","Nom"]
[null,null,null,null,null,null,292,"abu-ail & jabal-al-taire","Aucun habitant","île de la mer Rouge( Appeler Oiseau Montagne )","Nom","Nom"]
[null,null,null,null,null,null,293,"Guinea bissau ","Bissau","Est un pays tropical situé sur la côte atlantique de l'Afrique de l'Ouest","Nom","Nom"]
[null,null,null,null,null,null,294,"Peter 1st island","Aucun habitant","située dans l'océan Pacifique sud revendiquée par la Norvège","Nom","Nom"]
[null,null,null,null,null,null,295,"SOUTHERN SUDAN","Djouba","Mom usuel de la forme officielle république du Soudan du Sud","Nom","Nom"]
[null,null,null,null,null,null,296,"Île de Clipperton","Pince Sud","Île française composée d'un unique atollsitué dans l'Est de l'océan Pacifique nord ","Nom","Nom"]
[null,null,null,null,null,null,297,"Île Bouvet","Aucun habitant","L'île Bouvet est une île volcanique norvégienne inhabitée","Nom","Nom"]
[null,null,null,null,null,null,298,"Iles Crozet","Aucun habitant","Archipel dans les Terres australes et antarctiques françaises","Nom","Nom"]
[null,null,null,null,null,null,299,"Desecheo island","Aucun habitant","Est une petite île inhabitée de l’archipel de Porto Rico","Nom","Nom"]
[null,null,null,null,null,null,300,"West sahara-rio de oro","Villa Cisneros","Colonie puis province de l'Empire Espagnol","Nom","Nom"]
[null,null,null,null,null,null,301,"Armeniae","Erevan","Situé dans la région montagneuse du Caucase","Nom","Nom"]
[null,null,null,null,null,null,302,"Asiatic russia",null,null,"Nom","Nom"]
[null,null,null,null,null,null,303,"Azerbaijan","Bakou","Est une ancienne république soviétique","Nom","Nom"]
[null,null,null,null,null,null,304,"Estonia","Tallinn","Est un pays d'Europe du Nord qui borde la mer Baltique et le golfe de Finlande","Oui","Oui"]
[null,null,null,null,null,null,305,"Franz josef land ","Aucun habitant","Est un ensemble d'îles de l'extrême Nord de la Russie","Nom","Nom"]
[null,null,null,null,null,null,306,"Georgia ","Tbilissi ","Pays indépendant situé dans le Caucase","Nom","Nom"]
[null,null,null,null,null,null,307,"Kaliningradsk",null,null,"Nom","Nom"]
[null,null,null,null,null,null,308,"Kazakhstan","Astana","Pays d'Asie centrale et ancienne république soviétique","Nom","Nom"]
[null,null,null,null,null,null,309,"Kirghizistan","Bichkek","Est un pays d'Asie centrale montagneux le long de la route de la soie","Nom","Nom"]
[null,null,null,null,null,null,310,"Lettonie","Riga","Situé sur la mer Baltique, entre la Lituanie et l'Estonie","Oui","Oui"]
[null,null,null,null,null,null,311,"Lituanie","Vilnius","Est le pays le plus au sud des États baltes. Ancien pays du bloc soviétique","Oui","Oui"]
[null,null,null,null,null,null,312,"Moldavie","Chișinău","Est un pays d'Europe orientale et une ancienne république soviétique","Nom","Nom"]
[null,null,null,null,null,null,313,"Tadjikistan","Douchanbé","Est un pays montagneux d'Asie centrale, sans accès à la mer","Nom","Nom"]
[null,null,null,null,null,null,314,"Turkoman",null,null,"Nom","Nom"]
[null,null,null,null,null,null,315,"Ukraine","Kiev","L'Ukraine est un vaste pays d'Europe de l'Est","?","?"]
[null,null,null,null,null,null,316,"Ouzbékistan","Tachkent","Pays d'Asie centrale et une ancienne république soviétique","Nom","Nom"]
[null,null,null,null,null,null,317,"White russia",null,null,"Nom","Nom"]
[null,null,null,null,null,null,318,"Survey military of malta ",null,null,"Nom","Nom"]
[null,null,null,null,null,null,319,"United nations new york",null,null,"Nom","Nom"]
[null,null,null,null,null,null,320,"Banaba island ",null,"Banaba ou île Océan, en anglais Banaba et Ocean Island","Nom","Nom"]
[null,null,null,null,null,null,321,"Conway reef","Aucun habitant","Le récif Conway ou Theva-i-Ra Est un atoll des Fidji","Nom","Nom"]
[null,null,null,null,null,null,322,"WALVIS BAY","Aucun habitant","Walvis Bay est une ville portuaire située sur la côte de la Namibie","Nom","Nom"]
[null,null,null,null,null,null,323,"Yemen republic","Sanaa","Situé à la pointe sud-ouest de la péninsule d'Arabie et une frontière maritime avec Djibouti","Nom","Nom"]
[null,null,null,null,null,null,324,"Îles Pingouins","Aucun habitant","Les îles sont dispersées sur une longue région côtière","Nom","Nom"]
[null,null,null,null,null,null,325,"Rotuma island ","Sumi","Est un archipel,classé comme une dépendance spéciale des Fidji","Nom","Nom"]
[null,null,null,null,null,null,326,"Malyj vytsotskj","Saimaa","Appeler (Ravansaari) est une île de Finlande située au Nord-Ouest de la Russie","Nom","Nom"]
[null,null,null,null,null,null,327,"Slovénie","Ljubljana","Est un pays d’Europe centrale connu pour ses montagnes","Oui","Oui"]
[null,null,null,null,null,null,328,"Croatia","Zagreb","Est un pays d'Europe de l'Est,côte adriatique. Si elle compte plus d'un millier d'îles","Oui","Oui"]
[null,null,null,null,null,null,329,"Tchéquie","Prague","La République tchèque est un pays d'Europe centrale","Oui","Oui"]
[null,null,null,null,null,null,330,"République slovaque","Bratislava","Est un pays enclavé,Europe centrale,Il est bordé par la Pologne au nord,l'Ukraine à l'est","Oui","Oui"]
[null,null,null,null,null,null,331,"Bosnie-Herzégovine","Sarajevo","Est un pays situé sur la péninsule balkanique, dans le sud-est de l'Europe","Nom","Nom"]
[null,null,null,null,null,null,332,"Macédoine du Nord","Skopje","Est un pays d'Europe du Sud situé dans la partie centrale de la péninsule des Balkans","Nom","Nom"]
[null,null,null,null,null,null,333,"Érythrée","Asmara","Est un pays du nord-est de l'Afrique situé sur la côte de la mer Rouge","Nom","Nom"]
[null,null,null,null,null,null,334,"Corée du Nord","Pyongyang","Est un État qui couvre la partie nord de la péninsule coréenne","Nom","Nom"]
[null,null,null,null,null,null,335,"Pratas island","Taïwan","L'île de Pratas, également connue sous le nom d'îles Tungsha ou d'îles Dongsha","Nom","Nom"]
[null,null,null,null,null,null,336,"Récif de Scarborough","Aucun habitant","Est un récif en forme d'atoll de la mer de Chine méridionale","Nom","Nom"]
[null,null,null,null,null,null,337,"Îles Australes","Aucun habitant","Est un pays d'outre-mer de la République française dans le Pacifique Sud","Nom","Nom"]
[null,null,null,null,null,null,338,"Îles Marquises","Nuku Hiva","Les îles Marquises forment un des cinq archipels de la Polynésie française","Nom","Nom"]
[null,null,null,null,null,null,339,"Temotu","Lata sur Nendo","Est la province la plus orientale des Salomon","Nom","Nom"]
[null,null,null,null,null,null,340,"Palestine","Jérusalem,Ramallah","Est un État souverain de jure","Nom","Nom"]
[null,null,null,null,null,null,341,"East timor","Dili","Est un pays d'Asie du Sud-Est occupant la moitié de l'île de Timor","Nom","Nom"]
[null,null,null,null,null,null,342,"Chesterfields islands","Aucun habitant","Les îles Chesterfield forment un archipel de la Nouvelle-Calédonie(Drapeau France)","Nom","Nom"]
[null,null,null,null,null,null,343,"Ducie island","Aucun habitant","Colonie britannique est un atoll inhabité situé dans l'océan Pacifique sud","Nom","Nom"]
[null,null,null,null,null,null,344,"République Du Monténéro","Podgorica","Est un pays constitutif de la RF Yougoslavie","Nom","Nom"]
[null,null,null,null,null,null,345,"Île Swains","Aucun habitant","L’île Swains est située dans l’océan Pacifique","Nom","Nom"]
[null,null,null,null,null,null,346,"Île Saint Barthélémy","Gustavia","Collectivité D'outre Mer Française","Oui","Nom"]
[null,null,null,null,null,null,347,"Île Curaçao","Willemstad","l'une des îles Sous-le-Vent aux Petites Antilles (Caraïbes)","Oui","Nom"]
[null,null,null,null,null,null,348,"Île Saint-Martin","Marijot","Collectivité D'outre Mer Française","Oui","Nom"]
[null,null,null,null,null,null,349,"Île Saba","The Bottom","Situé dans le nord des Petites Antilles, Caraïbes","Oui","Nom"]
[null,null,null,null,null,null,350,"Île De Bonaire","Kralendijk","Île en Pays-Bas caribéens","Oui","Oui"]
[null,null,null,null,null,null,351,"Île Saint-Eustache","Oranjestad","Pays-Bas Caraïbes territoire néerlandais d'outre-mer","Oui","Oui"]
[null,null,null,null,null,null,352,"République Du Kosovo","Pristina","Est un territoire au statut contesté situé en Europe du Sud","Nom","Nom"]

{"sheet":"Département","index":3,"n_rows":39252,"n_cols":14,"rows_kept":4500,"cut":true,"hidden":false,"merged":[],"bounds":{"rows_first":2000,"rows_last":500,"rows_between":2000,"halvings":0}}
[]
[null,null,"Liste Villes ","C.P",null,null,"Villes",null,null,"Code D","Département","Chef-lieu/préfecture","Sous/Préfecture","Région"]
[null,null,"Bourg en Bresse",1000,null,null,"Almont les Junies",null,null,1,"Ain","Bourg-en-Bresse","Belley, Gex, Nantua","Rhône-Alpes"]
[null,null,"Brou",1000,null,null,"Boisse Penchot",null,null,2,"Aisne","Laon","Château-Thierry, Saint-Quentin, Soissons, Vervins","Picardie"]
[null,null,"Saint Denis les Bourg",1000,null,null,"Bouillac",null,null,3,"Allier","Moulins","Montluçon, Vichy","Auvergne"]
[null,null,"Amareins",1090,null,null,"Decazeville",null,null,4,"Alpes-de-Haute-Provence","Digne-les-Bains","Barcelonnette, Castellane, Forcalquier","Provence-Alpes-Côte d'Azur"]
[null,null,"Cesseins",1090,null,null,"Firmi",null,null,5,"Hautes-Alpes","Gap","Briançon","Provence-Alpes-Côte d'Azur"]
[null,null,"Genouilleux",1090,null,null,"Flagnac",null,null,6,"Alpes-Maritimes","Nice","Grasse","Provence-Alpes-Côte d'Azur"]
[null,null,"Guereins",1090,null,null,"Livinhac le Haut",null,null,7,"Ardèche","Privas","Largentière, Tournon-sur-Rhône","Rhône-Alpes"]
[null,null,"Lurcy",1090,null,null,"Saint Parthem",null,null,8,"Ardennes","Charleville-Mézières","Rethel, Sedan, Vouziers","Champagne-Ardenne"]
[null,null,"Montceaux",1090,null,null,"Saint Santin",null,null,9,"Ariège","Foix","Pamiers, Saint-Girons","Midi-Pyrénées"]
[null,null,"Montmerle sur Saone",1090,null,null,null,null,null,10,"Aube","Troyes","Bar-sur-Aube, Nogent-sur-Seine","Champagne-Ardenne"]
[null,null,"Apremont",1100,null,null,null,null,null,11,"Aude","Carcassonne","Limoux, Narbonne","Languedoc-Roussillon"]
[null,null,"Arbent",1100,null,null,null,null,null,12,"Aveyron","Rodez","Millau, Villefranche-de-Rouergue","Midi-Pyrénées"]
[null,null,"Bouvent",1100,null,null,null,null,null,13,"Bouches-du-Rhône","Marseille","Aix-en-Provence, Arles, Istres","Provence-Alpes-Côte d'Azur"]
[null,null,"Geovreisset",1100,null,null,null,null,null,14,"Calvados","Caen","Bayeux, Lisieux, Vire Normandie","Basse-Normandie"]
[null,null,"Oyonnax",1100,null,null,null,null,null,15,"Cantal","Aurillac","Mauriac, Saint-Flour","Auvergne"]
[null,null,"Veyziat",1100,null,null,null,null,null,16,"Charente","Angoulême","Cognac, Confolens","Poitou-Charentes"]
[null,null,"Aranc",1110,null,null,null,null,null,17,"Charente-Maritime","La Rochelle","Jonzac, Rochefort, Saintes, Saint-Jean-d'Angély","Poitou-Charentes"]
[null,null,"Brenod",1110,null,null,null,null,null,18,"Cher","Bourges","Saint-Amand-Montrond, Vierzon","Centre"]
[null,null,"Champdor",1110,null,null,null,null,null,19,"Corrèze","Tulle","Brive-la-Gaillarde, Ussel","Limousin"]
[null,null,"Corcelles",1110,null,null,null,null,null,"2A","Corse-du-Sud","Ajaccio","Sartène","Corse"]
[null,null,"Corlier",1110,null,null,null,null,null,"2B","Haute-Corse","Bastia","Calvi, Corte","Corse"]
[null,null,"Cormaranche en Bugey",1110,null,null,null,null,null,21,"Côte-d'Or","Dijon","Beaune, Montbard","Bourgogne"]
[null,null,"Hauteville Lompnes",1110,null,null,null,null,null,22,"Côtes-d'Armor","Saint-Brieuc","Dinan, Guingamp, Lannion","Bretagne"]
[null,null,"Hostias",1110,null,null,null,null,null,23,"Creuse","Guéret","Aubusson","Limousin"]
[null,null,"Premillieu",1110,null,null,null,null,null,24,"Dordogne","Périgueux","Bergerac, Nontron, Sarlat-la-Canéda","Aquitaine"]
[null,null,"Thezillieu",1110,null,null,null,null,null,25,"Doubs","Besançon","Montbéliard, Pontarlier","Franche-Comté"]
[null,null,"Chanes",1120,null,null,null,null,null,26,"Drôme","Valence","Die, Nyons","Rhône-Alpes"]
[null,null,"Cordieux",1120,null,null,null,null,null,27,"Eure","Évreux","Les Andelys, Bernay","Haute-Normandie"]
[null,null,"Dagneux",1120,null,null,null,null,null,28,"Eure-et-Loir","Chartres","Châteaudun, Dreux, Nogent-le-Rotrou","Centre -Val de Loire"]
[null,null,"Jailleux",1120,null,null,null,null,null,29,"Finistère","Quimper","Brest, Châteaulin, Morlaix","Bretagne"]
[null,null,"La Boisse",1120,null,{"$f":"IF(G33<>\"\",1,\"\")","v":""},null,null,null,30,"Gard","Nîmes","Alès, Le Vigan","Languedoc-Roussillon"]
[null,null,"La Lechere",1120,null,"",null,null,null,31,"Haute-Garonne","Toulouse","Muret, Saint-Gaudens","Midi-Pyrénées"]
[null,null,"Montluel",1120,null,"",null,null,null,32,"Gers","Auch","Condom, Mirande","Midi-Pyrénées"]
[null,null,"Nievroz",1120,null,"",null,null,null,33,"Gironde","Bordeaux","Arcachon, Blaye, Langon, Lesparre-Médoc, Libourne","Aquitaine"]
[null,null,"Pizay",1120,null,"",null,null,null,34,"Hérault","Montpellier","Béziers, Lodève","Languedoc-Roussillon"]
[null,null,"Rapan",1120,null,"",null,null,null,35,"Ille-et-Vilaine","Rennes","Fougères, Redon, Saint-Malo","Bretagne"]
[null,null,"Sainte Croix",1120,null,"",null,null,null,36,"Indre","Châteauroux","Le Blanc, La Châtre, Issoudun","Centre"]
[null,null,"Thil",1120,null,"",null,null,null,37,"Indre-et-Loire","Tours","Chinon, Loches","Centre"]
[null,null,"Belleydoux",1130,null,"",null,null,null,38,"Isère","Grenoble","La Tour-du-Pin, Vienne","Rhône-Alpes"]
[null,null,"Charix",1130,null,"",null,null,null,39,"Jura","Lons-le-Saunier","Dole, Saint-Claude","Franche-Comté"]
[null,null,"Echallon",1130,null,"",null,null,null,40,"Landes","Mont-de-Marsan","Dax","Aquitaine"]
[null,null,"Giron",1130,null,"",null,null,null,41,"Loir-et-Cher","Blois","Romorantin-Lanthenay, Vendôme","Centre"]
[null,null,"Lalleyriat",1130,null,"",null,null,null,42,"Loire","Saint-Étienne","Montbrison, Roanne","Rhône-Alpes"]
[null,null,"Le Poizat",1130,null,"",null,null,null,43,"Haute-Loire","Le Puy-en-Velay","Brioude, Yssingeaux","Auvergne"]
[null,null,"Les Neyrolles",1130,null,"",null,null,null,44,"Loire-Atlantique","Nantes","Châteaubriant, Saint-Nazaire","Pays de la Loire"]
[null,null,"Nantua",1130,null,"",null,null,null,45,"Loiret","Orléans","Montargis, Pithiviers","Centre"]
[null,null,"Plagne",1130,null,"",null,null,null,46,"Lot","Cahors","Figeac, Gourdon","Midi-Pyrénées"]
[null,null,"Saint Germain de Joux",1130,null,"",null,null,null,47,"Lot-et-Garonne","Agen","Marmande, Nérac, Villeneuve-sur-Lot","Aquitaine"]
[null,null,"Garnerans",1140,null,"",null,null,null,48,"Lozère","Mende","Florac Trois Rivières","Languedoc-Roussillon"]
[null,null,"Illiat",1140,null,"",null,null,null,49,"Maine-et-Loire","Angers","Cholet, Saumur, Segré-en-Anjou Bleu","Pays de la Loire"]
[null,null,"Mogneneins",1140,null,"",null,null,null,50,"Manche","Saint-Lô","Avranches, Cherbourg-en-Cotentin, Coutances","Basse-Normandie"]
[null,null,"Peyzieux sur Saone",1140,null,"",null,null,null,51,"Marne","Châlons-en-Champagne","Épernay, Reims, Vitry-le-François","Champagne-Ardenne"]
[null,null,"Saint Didier sur Chalaronne",1140,null,"",null,null,null,52,"Haute-Marne","Chaumont","Langres, Saint-Dizier","Champagne-Ardenne"]
[null,null,"Saint Etienne sur Chalaronne",1140,null,"",null,null,null,53,"Mayenne","Laval","Château-Gontier-sur-Mayenne, Mayenne","Pays de la Loire"]
[null,null,"Thoissey",1140,null,"",null,null,null,54,"Meurthe-et-Moselle","Nancy","Lunéville, Toul, Val de Briey","Lorraine"]
[null,null,"Valeins",1140,null,"",null,null,null,55,"Meuse","Bar-le-Duc","Commercy, Verdun","Lorraine"]
[null,null,"Blyes",1150,null,"",null,null,null,56,"Morbihan","Vannes","Lorient, Pontivy","Bretagne"]
[null,null,"Chazey sur Ain",1150,null,"",null,null,null,57,"Moselle","Metz","Forbach, Sarrebourg, Sarreguemines, Thionville","Lorraine"]
[null,null,"Lagnieu",1150,null,"",null,null,null,58,"Nièvre","Nevers","Château-Chinon (Ville), Clamecy, Cosne-Cours-sur-Loire","Bourgogne"]
[null,null,"Leyment",1150,null,"",null,null,null,59,"Nord","Lille","Avesnes-sur-Helpe, Cambrai, Douai, Dunkerque, Valenciennes","Nord-Pas-de-Calais"]
[null,null,"Saint Sorlin en Bugey",1150,null,"",null,null,null,60,"Oise","Beauvais","Clermont, Compiègne, Senlis","Picardie"]
[null,null,"Saint Vulbas",1150,null,"",null,null,null,61,"Orne","Alençon","Argentan, Mortagne-au-Perche","Basse-Normandie"]
[null,null,"Sainte Julie",1150,null,"",null,null,null,62,"Pas-de-Calais","Arras","Béthune, Boulogne-sur-Mer, Calais, Lens, Montreuil-sur-Mer, Saint-Omer","Nord-Pas-de-Calais"]
[null,null,"Sault Brenaz",1150,null,"",null,null,null,63,"Puy-de-Dôme","Clermont-Ferrand","Ambert, Issoire, Riom, Thiers","Auvergne"]
[null,null,"Souclin",1150,null,"",null,null,null,64,"Pyrénées-Atlantiques","Pau","Bayonne, Oloron-Sainte-Marie","Aquitaine"]
[null,null,"Vaux en Bugey",1150,null,{"$f":"IF(G68<>\"\",1,\"\")","v":""},null,null,null,65,"Hautes-Pyrénées","Tarbes","Argelès-Gazost, Bagnères-de-Bigorre","Midi-Pyrénées"]
[null,null,"Villebois",1150,null,"",null,null,null,66,"Pyrénées-Orientales","Perpignan","Céret, Prades","Languedoc-Roussillon"]
[null,null,"Druillat",1160,null,"",null,null,null,67,"Bas-Rhin","Strasbourg","Haguenau, Molsheim, Saverne, Sélestat","Alsace"]
[null,null,"La Trancliere",1160,null,"",null,null,null,68,"Haut-Rhin","Colmar","Altkirch, Mulhouse, Thann","Alsace"]
[null,null,"Neuville sur Ain",1160,null,"",null,null,null,69,"Rhône","Lyon","Villefranche-sur-Saône","Rhône-Alpes"]
[null,null,"Pont d'Ain",1160,null,"",null,null,null,70,"Haute-Saône","Vesoul","Lure","Franche-Comté"]
[null,null,"Priay",1160,null,"",null,null,null,71,"Saône-et-Loire","Mâcon","Autun, Chalon-sur-Saône, Charolles, Louhans","Bourgogne"]
[null,null,"Saint Martin du Mont",1160,null,"",null,null,null,72,"Sarthe","Le Mans","La Flèche, Mamers","Pays de la Loire"]
[null,null,"Varambon",1160,null,"",null,null,null,73,"Savoie","Chambéry","Albertville, Saint-Jean-de-Maurienne","Rhône-Alpes"]
[null,null,"Cessy",1170,null,"",null,null,null,74,"Haute-Savoie","Annecy","Bonneville, Saint-Julien-en-Genevois, Thonon-les-Bains","Rhône-Alpes"]
[null,null,"Chevry",1170,null,"",null,null,null,75,"Paris","Paris ","Pas de sous préfecture","Île-de-France"]
[null,null,"Crozet",1170,null,"",null,null,null,76,"Seine-Maritime","Rouen","Dieppe, Le Havre","Haute-Normandie"]
[null,null,"Echenevex",1170,null,"",null,null,null,77,"Seine-et-Marne","Melun","Fontainebleau, Meaux, Provins, Torcy","Île-de-France"]
[null,null,"Gex",1170,null,"",null,null,null,78,"Yvelines","Versailles","Mantes-la-Jolie, Rambouillet, Saint-Germain-en-Laye","Île-de-France"]
[null,null,"Mijoux",1170,null,"",null,null,null,79,"Deux-Sèvres","Niort","Bressuire, Parthenay","Poitou-Charentes"]
[null,null,"Segny",1170,null,"",null,null,null,80,"Somme","Amiens","Abbeville, Montdidier, Péronne","Picardie"]
[null,null,"Vesancy",1170,null,"",null,null,null,81,"Tarn","Albi","Castres","Midi-Pyrénées"]
[null,null,"Arbigny",1190,null,"",null,null,null,82,"Tarn-et-Garonne","Montauban","Castelsarrasin","Midi-Pyrénées"]
[null,null,"Boissey",1190,null,"",null,null,null,83,"Var","Toulon","Brignoles, Draguignan","Provence-Alpes-Côte d'Azur"]
[null,null,"Boz",1190,null,"",null,null,null,84,"Vaucluse","Avignon","Apt, Carpentras","Provence-Alpes-Côte d'Azur"]
[null,null,"Chavannes sur Reyssouze",1190,null,"",null,null,null,85,"Vendée","La Roche-sur-Yon","Fontenay-le-Comte, Les Sables-d'Olonne","Pays de la Loire"]
[null,null,"Chevroux",1190,null,"",null,null,null,86,"Vienne","Poitiers","Châtellerault, Montmorillon","Poitou-Charentes"]
[null,null,"Gorrevod",1190,null,"",null,null,null,87,"Haute-Vienne","Limoges","Bellac, Rochechouart","Limousin"]
[null,null,"Ozan",1190,null,"",null,null,null,88,"Vosges","Épinal","Neufchâteau, Saint-Dié-des-Vosges","Lorraine"]
[null,null,"Pont de Vaux",1190,null,"",null,null,null,89,"Yonne","Auxerre","Avallon, Sens","Bourgogne"]
[null,null,"Reyssouze",1190,null,"",null,null,null,90,"Territoire de Belfort","Belfort","Pas de sous préfecture","Franche-Comté"]
[null,null,"Saint Benigne",1190,null,"",null,null,null,91,"Essonne","Évry-Courcouronnes","Étampes, Palaiseau","Île-de-France"]
[null,null,"Saint Etienne sur Reyssouze",1190,null,"",null,null,null,92,"Hauts-de-Seine","Nanterre","Antony, Boulogne-Billancourt","Île-de-France"]
[null,null,"Sermoyer",1190,null,"",null,null,null,93,"Seine-Saint-Denis","Bobigny","Le Raincy, Saint-Denis","Île-de-France"]
[null,null,"Bellegarde sur Valserine",1200,null,"",null,null,null,94,"Val-de-Marne","Créteil","L'Haÿ-les-Roses, Nogent-sur-Marne","Île-de-France"]
[null,null,"Billiat",1200,null,"",null,null,null,95,"Val-d'Oise","Cergy","Argenteuil, Pontoise (Chef-lieu), Sarcelles","Île-de-France"]
[null,null,"Chatillon en Michaille",1200,null,"",null,null,null,99,"Alpes-Maritimes","Monaco","Monaco","Provence-Alpes-Côte d'Azur"]
[null,null,"Chezery Forens",1200,null,"",null,null,null,971,"Guadeloupe","Basse-Terre","Pointe-à-Pitre","Provence-Alpes-Côte d'Azur"]
[null,null,"Confort",1200,null,"",null,null,null,972,"Martinique","Fort-de-France","Le Marin, Saint-Pierre, La Trinité","Collectivité d'outre-mer française"]
[null,null,"Craz en Michaille",1200,null,"",null,null,null,973,"Guyane","Cayenne","Saint-Laurent-du-Maroni, Saint-Georges","Collectivité d'outre-mer française"]
[null,null,"Eloise",1200,null,"",null,null,null,974,"La Réunion","Saint-Denis","Saint-Benoît, Saint-Paul, Saint-Pierre","Collectivité d'outre-mer française"]
[null,null,"Injoux Genissiat",1200,null,"",null,null,null,975," Saint-Pierre-et-Miquelon","Saint Pierre","Pas de sous préfecture","Est située dans l'océan Indien"]
[null,null,"Lancrans",1200,null,"",null,null,null,976,"Mayotte","Mamoudzou","Pas de sous préfecture","Est situé dans l'océan Atlantique"]
[null,null,"Leaz",1200,null,"",null,null,null,977,"Saint-Barthélemy","Gustavia","Pas de sous préfecture","Est située dans l'océan Indien"]
[null,null,"Montanges",1200,null,"",null,null,null,978,"Saint-Martin","Marigot","Pas de sous préfecture","Collectivité d'outre-mer française"]
[null,null,"Ochiaz",1200,null,"",null,null,null,984,"Terres-Australes et Antarctique","Collectivité d'outre-mer ","Pas de sous préfecture","Collectivité d'outre-mer française"]
[null,null,"Saint Germain sur Rhone",1200,null,"",null,null,null,986,"Wallis-et-Futuna","Mata'Utu","Pas de sous préfecture","Collectivité d'outre-mer française"]
[null,null,"Villes",1200,null,"",null,null,null,987,"polynésie française","Papeete – Tahiti","Pas de sous préfecture","Provence-Alpes-Côte d'Azur"]
[null,null,"Vouvray",1200,null,"",null,null,null,988,"Nouvel Calédonie","Nouméa","Pas de sous préfecture","Archipels de Crozet et Kerguelen"]
[null,null,"Ferney Voltaire",1210,null,"",null,null,null,993,"Guinée","Conakry","Kolaboui,Boké,Kouroussa","collectivité décentralisée"]
[null,null,"Ornex",1210,null,""]
[null,null,"Versonnex",1210,null,""]
[null,null,"Divonne les Bains",1220,null,"",null,null,null,"Il existe aussi cinq départements français d'outre-mer: "]
[null,null,"Grilly",1220,null,""]
[null,null,"Sauverny",1220,null,"",null,null,null,"971 Guadeloupe                       97100 A 97190 "]
[null,null,"Arandas",1230,null,"",null,null,null,"972 Martinique                         97200 A 97290"]
[null,null,"Argis",1230,null,"",null,null,null,"973 Guyane                                 97300 A 97390"]
[null,null,"Chaley",1230,null,"",null,null,null,"974 La Réunion                          97400 A 97480"]
[null,null,"Cleyzieu",1230,null,"",null,null,null,"976 depuis 2011).Mayotte    97600 A 97970"]
[null,null,"Conand",1230,null,"",null,null,null,"977 Saint-Barthélemy             97700  A 97710"]
[null,null,"Evosges",1230,null,""]
[null,null,"Nivollet Montgriffon",1230,null,"",null,null,null,"Même les territoires français qui ne sont pas des «départements»  possèdent une numérotation spécifique: "]
[null,null,"Oncieu",1230,null,""]
[null,null,"Saint Rambert en Bugey",1230,null,"",null,null,null,"975 pour Saint-Pierre-et-Miquelon (collectivité d'outre-mer), "]
[null,null,"Tenay",1230,null,"",null,null,null,"977 pour Saint-Barthélemy (collectivité d'outre-mer), "]
[null,null,"Torcieu",1230,null,"",null,null,null,"978 pour Saint-Martin (collectivité d'outre-mer)       97801"]
[null,null,"Certines",1240,null,"",null,null,null,"986 pour Wallis-et-Futuna",null,"98600 A 98620"]
[null,null,"Dompierre sur Veyle",1240,null,"",null,null,null,"987 pour la Polynésie française ",null,"98719 A 98725"]
[null,null,"La Chapelle du Chatelard",1240,null,"",null,null,null,"988 pour la Nouvelle-Calédonie. ",null,"98811 A 98834"]
[null,null,"Lent",1240,null,{"$f":"IF(G132<>\"\",1,\"\")","v":""},null,null,null,"Pour sa part,bien que ne faisant pas partie de la France, Monaco utilise le numéro "]
[null,null,"Marlieux",1240,null,"",null,null,null,"Pour ses codes postaux  99000"]
[null,null,"Saint Andre le Bouchoux",1240,null,""]
[null,null,"Saint Andre sur Vieux Jonc",1240,null,""]
[null,null,"Saint Germain sur Renon",1240,null,"",null,null,null,"Liste des territoires qui n’appliquent pas la convention de Schengen"]
[null,null,"Saint Paul de Varax",1240,null,"",null,null,null,"Aruba"]
[null,null,"Servas",1240,null,"",null,null,null,"Bonaire"]
[null,null,"Bohas",1250,null,"",null,null,null,"Curaçao"]
[null,null,"Bohas Meyriat Rignat",1250,null,"",null,null,null,"Groenland"]
[null,null,"Ceyzeriat",1250,null,"",null,null,null,"Guyane"]
[null,null,"Chavannes sur Suran",1250,null,"",null,null,null,"Îles Féroé"]
[null,null,"Cize",1250,null,"",null,null,null,"La Polynésie française"]
[null,null,"Corveissiat",1250,null,"",null,null,null,"La Réunion"]
[null,null,"Drom",1250,null,"",null,null,null,"Les Terres australes et antarctiques françaises"]
[null,null,"Germagnat",1250,null,"",null,null,null,"Martinique"]
[null,null,"Grand Corent",1250,null,"",null,null,null,"Mayotte"]
[null,null,"Hautecourt Romaneche",1250,null,"",null,null,null,"Mont Athos"]
[null,null,"Jasseron",1250,null,"",null,null,null,"Nouvelle-Calédonie"]
[null,null,"Journans",1250,null,"",null,null,null,"Saba ou Îles BES"]
[null,null,"Montagnat",1250,null,"",null,null,null,"Saint-Barthélemy"]
[null,null,"Pouillat",1250,null,"",null,null,null,"Saint-Eustache"]
[null,null,"Ramasse",1250,null,"",null,null,null,"Saint-Martin"]
[null,null,"Revonnas",1250,null,"",null,null,null,"Saint-Pierre-et-Miquelon"]
[null,null,"Rignat",1250,null,"",null,null,null,"Svalbard"]
[null,null,"Romaneche",1250,null,"",null,null,null,"Wallis-et-Futuna"]
[null,null,"Saint Just",1250,null,""]
[null,null,"Simandre sur Suran",1250,null,""]
[null,null,"Tossiat",1250,null,""]
[null,null,"Villereversure",1250,null,""]
[null,null,"Belmont Luthezieu",1260,null,""]
[null,null,"Brenaz",1260,null,""]
[null,null,"Champagne en Valromey",1260,null,""]
[null,null,"Charancin",1260,null,""]
[null,null,"Fitignieu",1260,null,""]
[null,null,"Hotonnes",1260,null,""]
[null,null,"Le Grand Abergement",1260,null,""]
[null,null,"Le Petit Abergement",1260,null,""]
[null,null,"Lilignod",1260,null,""]
[null,null,"Lochieu",1260,null,""]
[null,null,"Lompnieu",1260,null,""]
[null,null,"Luthezieu",1260,null,""]
[null,null,"Passin",1260,null,""]
[null,null,"Ruffieu",1260,null,""]
[null,null,"Songieu",1260,null,""]
[null,null,"Sutrieu",1260,null,""]
[null,null,"Vieu",1260,null,""]
[null,null,"Virieu le Petit",1260,null,""]
[null,null,"Beaupont",1270,null,""]
[null,null,"Coligny",1270,null,""]
[null,null,"Domsure",1270,null,""]
[null,null,"Pirajoux",1270,null,""]
[null,null,"Salavre",1270,null,""]
[null,null,"Verjon",1270,null,""]
[null,null,"Villemotier",1270,null,""]
[null,null,"Moens",1280,null,""]
[null,null,"Prevessin Moens",1280,null,""]
[null,null,"Bey",1290,null,""]
[null,null,"Biziat",1290,null,""]
[null,null,"Cormoranche sur Saone",1290,null,""]
[null,null,"Crottet",1290,null,""]
[null,null,"Cruzilles les Mepillat",1290,null,""]
[null,null,"Grieges",1290,null,""]
[null,null,"Laiz",1290,null,""]
[null,null,"Pont de Veyle",1290,null,""]
[null,null,"Saint Andre d'Huiriat",1290,null,{"$f":"IF(G196<>\"\",1,\"\")","v":""}]
[null,null,"Saint Jean sur Veyle",1290,null,""]
[null,null,"Ambleon",1300,null,""]
[null,null,"Andert et Condon",1300,null,""]
[null,null,"Arbignieu",1300,null,""]
[null,null,"Belley",1300,null,""]
[null,null,"Bregnier Cordon",1300,null,""]
[null,null,"Brens",1300,null,""]
[null,null,"Chazey Bons",1300,null,""]
[null,null,"Colomieu",1300,null,""]
[null,null,"Contrevoz",1300,null,""]
[null,null,"Conzieu",1300,null,""]
[null,null,"Cuzieu",1300,null,""]
[null,null,"Izieu",1300,null,""]
[null,null,"Magnieu",1300,null,""]
[null,null,"Marignieu",1300,null,""]
[null,null,"Massignieu de Rives",1300,null,""]
[null,null,"Murs et Gelignieux",1300,null,""]
[null,null,"Nattages",1300,null,""]
[null,null,"Parves",1300,null,""]
[null,null,"Peyrieu",1300,null,""]
[null,null,"Premeyzel",1300,null,""]
[null,null,"Saint Benoit",1300,null,""]
[null,null,"Saint Bois",1300,null,""]
[null,null,"Saint Champ",1300,null,""]
[null,null,"Saint Germain les Paroisses",1300,null,""]
[null,null,"Virignin",1300,null,""]
[null,null,"Buellas",1310,null,""]
[null,null,"Confrancon",1310,null,""]
[null,null,"Corgenon",1310,null,""]
[null,null,"Curtafond",1310,null,""]
[null,null,"Montcet",1310,null,""]
[null,null,"Montracol",1310,null,""]
[null,null,"Polliat",1310,null,""]
[null,null,"Saint Martin le Chatel",1310,null,""]
[null,null,"Saint Remy",1310,null,""]
[null,null,"Chalamont",1320,null,""]
[null,null,"Chatenay",1320,null,""]
[null,null,"Chatillon la Palud",1320,null,""]
[null,null,"Crans",1320,null,""]
[null,null,"Saint Nizier le Desert",1320,null,""]
[null,null,"Villette sur Ain",1320,null,""]
[null,null,"Amberieux en Dombes",1330,null,""]
[null,null,"Birieux",1330,null,""]
[null,null,"Bouligneux",1330,null,""]
[null,null,"Lapeyrouse",1330,null,""]
[null,null,"Le Plantay",1330,null,""]
[null,null,"Sainte Olive",1330,null,""]
[null,null,"Versailleux",1330,null,""]
[null,null,"Villars les Dombes",1330,null,""]
[null,null,"Attignat",1340,null,""]
[null,null,"Bereziat",1340,null,""]
[null,null,"Cras sur Reyssouze",1340,null,""]
[null,null,"Etrez",1340,null,""]
[null,null,"Foissiat",1340,null,""]
[null,null,"Jayat",1340,null,""]
[null,null,"Malafretaz",1340,null,""]
[null,null,"Marsonnas",1340,null,""]
[null,null,"Montrevel en Bresse",1340,null,""]
[null,null,"Saint Didier d'Aussiat",1340,null,""]
[null,null,"Saint Sulpice",1340,null,""]
[null,null,"Anglefort",1350,null,""]
[null,null,"Beon",1350,null,""]
[null,null,"Ceyzerieu",1350,null,""]
[null,null,"Cressin Rochefort",1350,null,{"$f":"IF(G260<>\"\",1,\"\")","v":""}]
[null,null,"Culoz",1350,null,""]
[null,null,"Flaxieu",1350,null,""]
[null,null,"Lavours",1350,null,""]
[null,null,"Pollieu",1350,null,""]
[null,null,"Vongnes",1350,null,""]
[null,null,"Balan",1360,null,""]
[null,null,"Beligneux",1360,null,""]
[null,null,"Bressolles",1360,null,""]
[null,null,"Camp de la Valbonne",1360,null,""]
[null,null,"La Valbonne",1360,null,""]
[null,null,"Loyettes",1360,null,""]
[null,null,"Beny",1370,null,""]
[null,null,"Courmangoux",1370,null,""]
[null,null,"Cuisiat",1370,null,""]
[null,null,"Meillonnas",1370,null,""]
[null,null,"Pressiat",1370,null,""]
[null,null,"Saint Etienne du Bois",1370,null,""]
[null,null,"Treffort Cuisiat",1370,null,""]
[null,null,"Bage la Ville",1380,null,""]
[null,null,"Bage le Chatel",1380,null,""]
[null,null,"Boissey",1380,null,""]
[null,null,"Dommartin",1380,null,""]
[null,null,"Saint Andre de Bage",1380,null,""]
[null,null,"Saint Cyr sur Menthon",1380,null,""]
[null,null,"Saint Genis sur Menthon",1380,null,""]
[null,null,"Civrieux",1390,null,""]
[null,null,"Mionnay",1390,null,""]
[null,null,"Monthieux",1390,null,""]
[null,null,"Rance",1390,null,""]
[null,null,"Saint Andre de Corcy",1390,null,""]
[null,null,"Saint Jean de Thurigneux",1390,null,""]
[null,null,"Saint Marcel",1390,null,""]
[null,null,"Tramoyes",1390,null,""]
[null,null,"Chanoz Chatenay",1400,null,""]
[null,null,"Chatillon sur Chalaronne",1400,null,""]
[null,null,"Condeissiat",1400,null,""]
[null,null,"Dompierre sur Chalaronne",1400,null,""]
[null,null,"L Abergement Clemenciat",1400,null,""]
[null,null,"Neuville les Dames",1400,null,""]
[null,null,"Romans",1400,null,""]
[null,null,"Saint Georges sur Renon",1400,null,""]
[null,null,"Sandrans",1400,null,""]
[null,null,"Sulignat",1400,null,""]
[null,null,"Champfromier",1410,null,""]
[null,null,"Chezery Forens",1410,null,""]
[null,null,"Lajoux",1410,null,""]
[null,null,"Lelex",1410,null,""]
[null,null,"Mijoux",1410,null,""]
[null,null,"Chanay",1420,null,""]
[null,null,"Corbonod",1420,null,""]
[null,null,"Lhopital",1420,null,""]
[null,null,"Seyssel",1420,null,""]
[null,null,"Surjoux",1420,null,""]
[null,null,"Ceignes",1430,null,""]
[null,null,"Chevillard",1430,null,""]
[null,null,"Condamine",1430,null,""]
[null,null,"Izenave",1430,null,""]
[null,null,"Lantenay",1430,null,""]
[null,null,"Maillat",1430,null,""]
[null,null,"Outriaz",1430,null,""]
[null,null,"Peyriat",1430,null,""]
[null,null,"Saint Martin du Frene",1430,null,""]
[null,null,"Vieu d'Izenave",1430,null,""]
[null,null,"Viriat",1440,null,{"$f":"IF(G324<>\"\",1,\"\")","v":""}]
[null,null,"Bolozon",1450,null,""]
[null,null,"Cerdon",1450,null,""]
[null,null,"Challes",1450,null,""]
[null,null,"Labalme",1450,null,""]
[null,null,"Leyssard",1450,null,""]
[null,null,"Merignat",1450,null,""]
[null,null,"Poncin",1450,null,""]
[null,null,"Saint Alban",1450,null,""]
[null,null,"Serrieres sur Ain",1450,null,""]
[null,null,"Brion",1460,null,""]
[null,null,"Geovreissiat",1460,null,""]
[null,null,"Montreal la Cluse",1460,null,""]
[null,null,"Nantua",1460,null,""]
[null,null,"Nurieux Volognat",1460,null,""]
[null,null,"Port",1460,null,""]
[null,null,"Volognat",1460,null,""]
[null,null,"Benonces",1470,null,""]
[null,null,"Briord",1470,null,""]
[null,null,"Montagnieu",1470,null,""]
[null,null,"Seillonnaz",1470,null,""]
[null,null,"Serrieres de Briord",1470,null,""]
[null,null,"Ars sur Formans",1480,null,""]
[null,null,"Beauregard",1480,null,""]
[null,null,"Chaleins",1480,null,""]
[null,null,"Fareins",1480,null,""]
[null,null,"Frans",1480,null,""]
[null,null,"Jassans Riottier",1480,null,""]
[null,null,"Messimy sur Saone",1480,null,""]
[null,null,"Savigneux",1480,null,""]
[null,null,"Villeneuve",1480,null,""]
[null,null,"Amberieu en Bugey",1500,null,""]
[null,null,"Ambronay",1500,null,""]
[null,null,"Ambutrix",1500,null,""]
[null,null,"Bettant",1500,null,""]
[null,null,"Chateau Gaillard",1500,null,""]
[null,null,"Douvres",1500,null,""]
[null,null,"Saint Denis en Bugey",1500,null,""]
[null,null,"Saint Maurice de Remens",1500,null,""]
[null,null,"Armix",1510,null,""]
[null,null,"Artemare",1510,null,""]
[null,null,"Chavornay",1510,null,""]
[null,null,"Cheignieu la Balme",1510,null,""]
[null,null,"La Burbanche",1510,null,""]
[null,null,"Ordonnaz",1510,null,""]
[null,null,"Premillieu",1510,null,""]
[null,null,"Pugieu",1510,null,""]
[null,null,"Rossillon",1510,null,""]
[null,null,"Saint Martin de Bavel",1510,null,""]
[null,null,"Talissieu",1510,null,""]
[null,null,"Virieu le Grand",1510,null,""]
[null,null,"Perrex",1540]
[null,null,"Saint Julien sur Veyle",1540]
[null,null,"Vonnas",1540]
[null,null,"Collonges",1550]
[null,null,"Farges",1550]
[null,null,"Pougny",1550]
[null,null,"Cormoz",1560]
[null,null,"Courtes",1560]
[null,null,"Curciat Dongalon",1560]
[null,null,"Lescheroux",1560]
[null,null,"Mantenay Montlin",1560]
[null,null,"Saint Jean sur Reyssouze",1560]
[null,null,"Saint Julien sur Reyssouze",1560]
[null,null,"Saint Nizier le Bouchoux",1560]
[null,null,"Saint Trivier de Courtes",1560]
[null,null,"Servignat",1560]
[null,null,"Vernoux",1560]
[null,null,"Vescours",1560]
[null,null,"Asnieres sur Saone",1570]
[null,null,"Feillens",1570]
[null,null,"Manziat",1570]
[null,null,"Vesines",1570]
[null,null,"Granges",1580]
[null,null,"Izernore",1580]
[null,null,"Matafelon Granges",1580]
[null,null,"Napt",1580]
[null,null,"Samognat",1580]
[null,null,"Sonthonnax la Montagne",1580]
[null,null,"Chancia",1590]
[null,null,"Dortan",1590]
[null,null,"Lavancia Epercy",1590]
[null,null,"Massieux",1600]
[null,null,"Miserieux",1600]
[null,null,"Parcieux",1600]
[null,null,"Reyrieux",1600]
[null,null,"Saint Bernard",1600]
[null,null,"Saint Didier de Formans",1600]
[null,null,"Sainte Euphemie",1600]
[null,null,"Toussieux",1600]
[null,null,"Trevoux",1600]
[null,null,"Crottet",1620]
[null,null,"Replonges",1620]
[null,null,"Saint Laurent sur Saone",1620]
[null,null,"Cern Site de Prevessin",1630]
[null,null,"Challex",1630]
[null,null,"Peron",1630]
[null,null,"Saint Genis Pouilly",1630]
[null,null,"Saint Jean de Gonville",1630]
[null,null,"Sergy",1630]
[null,null,"Boyeux Saint Jerome",1640]
[null,null,"Jujurieux",1640]
[null,null,"L Abergement de Varey",1640]
[null,null,"Saint Jean le Vieux",1640]
[null,null,"Chaveyriat",1660]
[null,null,"Mezeriat",1660]
[null,null,"Vandeins",1660]
[null,null,"Groslee",1680]
[null,null,"Innimond",1680]
[null,null,"Lhuis",1680]
[null,null,"Lompnas",1680]
[null,null,"Marchamp",1680]
[null,null,"Beynost",1700]
[null,null,"Le Mas Rillier",1700]
[null,null,"Les Echets",1700]
[null,null,"Miribel",1700]
[null,null,"Neyron",1700]
[null,null,"Saint Maurice de Beynost",1700]
[null,null,"Thoiry",1710]
[null,null,"Bourg Saint Christophe",1800]
[null,null,"Charnoz sur Ain",1800]
[null,null,"Faramans",1800]
[null,null,"Joyeux",1800]
[null,null,"Le Montellier",1800]
[null,null,"Loyes",1800]
[null,null,"Marfoz",1800]
[null,null,"Meximieux",1800]
[null,null,"Mollon",1800]
[null,null,"Perouges",1800]
[null,null,"Rignieux le Franc",1800]
[null,null,"Saint Eloi",1800]
[null,null,"Saint Jean de Niost",1800]
[null,null,"Saint Maurice de Gourdans",1800]
[null,null,"Villieu Loyes Mollon",1800]
[null,null,"Bellignat",1810]
[null,null,"Groissiat",1810]
[null,null,"Martignat",1810]
[null,null,"Marboz",1851]
[null,null,"Peronnas",1960]
[null,null,"Baneins",1990]
[null,null,"Chaneins",1990]
[null,null,"Relevant",1990]
[null,null,"Saint Trivier sur Moignans",1990]
[null,null,"Aulnois sous Laon",2000]
[null,null,"Barenton Bugny",2000]
[null,null,"Barenton Cel",2000]
[null,null,"Bourgignon sous Montbavin",2000]
[null,null,"Braye en Laonnois",2000]
[null,null,"Chaillevois",2000]
[null,null,"Chambry",2000]
[null,null,"Chavignon",2000]
[null,null,"Chery les Pouilly",2000]
[null,null,"Chevregny",2000]
[null,null,"Chivy les Etouvelles",2000]
[null,null,"Clacy et Thierret",2000]
[null,null,"Etouvelles",2000]
[null,null,"Filain",2000]
[null,null,"Laniscourt",2000]
[null,null,"Laon",2000]
[null,null,"Merlieux et Fouquerolles",2000]
[null,null,"Molinchart",2000]
[null,null,"Monampteuil",2000]
[null,null,"Mons en Laonnois",2000]
[null,null,"Montbavin",2000]
[null,null,"Pargny Filain",2000]
[null,null,"Royaucourt et Chailvet",2000]
[null,null,"Urcel",2000]
[null,null,"Vaucelles et Beffecourt",2000]
[null,null,"Verneuil sur Serre",2000]
[null,null,"Essigny le Petit",2100]
[null,null,"Fayet",2100]
[null,null,"Gricourt",2100]
[null,null,"Harly",2100]
[null,null,"Lesdins",2100]
[null,null,"Morcourt",2100]
[null,null,"Neuville Saint Amand",2100]
[null,null,"Omissy",2100]
[null,null,"Remaucourt",2100]
[null,null,"Rouvroy",2100]
[null,null,"Saint Quentin",2100]
[null,null,"Aisonville et Bernoville",2110]
[null,null,"Beaurevoir",2110]
[null,null,"Becquigny",2110]
[null,null,"Bohain en Vermandois",2110]
[null,null,"Brancourt le Grand",2110]
[null,null,"Croix Fonsommes",2110]
[null,null,"Etaves et Bocquiaux",2110]
[null,null,"Fieulaine",2110]
[null,null,"Fonsommes",2110]
[null,null,"Fontaine Notre Dame",2110]
[null,null,"Fontaine Uterte",2110]
[null,null,"Grougis",2110]
[null,null,"La Vallee Mulatre",2110]
[null,null,"Molain",2110]
[null,null,"Montbrehain",2110]
[null,null,"Montigny en Arrouaise",2110]
[null,null,"Premont",2110]
[null,null,"Ramicourt",2110]
[null,null,"Ribeauville",2110]
[null,null,"Saint Martin Riviere",2110]
[null,null,"Seboncourt",2110]
[null,null,"Serain",2110]
[null,null,"Vaux Andigny",2110]
[null,null,"Audigny",2120]
[null,null,"Bernot",2120]
[null,null,"Chigny",2120]
[null,null,"Colonfay",2120]
[null,null,"Crupilly",2120]
[null,null,"Flavigny le Grand et Beau",2120]
[null,null,"Grand Verly",2120]
[null,null,"Guise",2120]
[null,null,"Hauteville",2120]
[null,null,"Landifay et Bertaignemont",2120]
[null,null,"Le Herie la Vieville",2120]
[null,null,"Lesquielles Saint Germain",2120]
[null,null,"Longchamps",2120]
[null,null,"Macquigny",2120]
[null,null,"Malzy",2120]
[null,null,"Marly Gomont",2120]
[null,null,"Monceau sur Oise",2120]
[null,null,"Noyales",2120]
[null,null,"Proisy",2120]
[null,null,"Proix",2120]
[null,null,"Puisieux et Clanlieu",2120]
[null,null,"Romery",2120]
[null,null,"Sains Richaumont",2120]
[null,null,"Tupigny",2120]
[null,null,"Vadencourt",2120]
[null,null,"Villers les Guise",2120]
[null,null,"Wiege Faty",2120]
[null,null,"Arcy Sainte Restitue",2130]
[null,null,"Beuvardes",2130]
[null,null,"Branges",2130]
[null,null,"Bruyeres sur Fere",2130]
[null,null,"Cierges",2130]
[null,null,"Cohan",2130]
[null,null,"Coulonges Cohan",2130]
[null,null,"Courmont",2130]
[null,null,"Cramaille",2130]
[null,null,"Dravegny",2130]
[null,null,"Fere en Tardenois",2130]
[null,null,"Fresnes en Tardenois",2130]
[null,null,"Goussancourt",2130]
[null,null,"Loupeigne",2130]
[null,null,"Mareuil en Dole",2130]
[null,null,"Roncheres",2130]
[null,null,"Saponay",2130]
[null,null,"Sergy",2130]
[null,null,"Seringes et Nesles",2130]
[null,null,"Vezilly",2130]
[null,null,"Villeneuve sur Fere",2130]
[null,null,"Villers Agron Aiguizy",2130]
[null,null,"Villers sur Fere",2130]
[null,null,"Bancigny",2140]
[null,null,"Braye en Thierache",2140]
[null,null,"Burelles",2140]
[null,null,"Dagny Lambercy",2140]
[null,null,"Fontaine les Vervins",2140]
[null,null,"Franqueville",2140]
[null,null,"Gercy",2140]
[null,null,"Gronard",2140]
[null,null,"Harcigny",2140]
[null,null,"Hary",2140]
[null,null,"Haution",2140]
[null,null,"Houry",2140]
[null,null,"Jeantes",2140]
[null,null,"La Bouteille",2140]
[null,null,"La Vallee au Ble",2140]
[null,null,"Laigny",2140]
[null,null,"Landouzy la Cour",2140]
[null,null,"Landouzy la Ville",2140]
[null,null,"Le Sourd",2140]
[null,null,"Leme",2140]
[null,null,"Lugny",2140]
[null,null,"Marfontaine",2140]
[null,null,"Nampcelles la Cour",2140]
[null,null,"Plomion",2140]
[null,null,"Prisces",2140]
[null,null,"Rogny",2140]
[null,null,"Rougeries",2140]
[null,null,"Saint Gobert",2140]
[null,null,"Saint Pierre les Franquevill",2140]
[null,null,"Thenailles",2140]
[null,null,"Vervins",2140]
[null,null,"Voharies",2140]
[null,null,"Voulpaix",2140]
[null,null,"La Selve",2150]
[null,null,"Lappion",2150]
[null,null,"Nizy le Comte",2150]
[null,null,"Sissonne",2150]
[null,null,"Barbonval",2160]
[null,null,"Beaurieux",2160]
[null,null,"Blanzy les Fismes",2160]
[null,null,"Bouffignereux",2160]
[null,null,"Bourg et Comin",2160]
[null,null,"Chaudardes",2160]
[null,null,"Concevreux",2160]
[null,null,"Craonne",2160]
[null,null,"Craonnelle",2160]
[null,null,"Cuiry les Chaudardes",2160]
[null,null,"Cuissy et Geny",2160]
[null,null,"Gernicourt",2160]
[null,null,"Glennes",2160]
[null,null,"Guyencourt",2160]
[null,null,"Jumigny",2160]
[null,null,"La Ville aux Bois les Pon",2160]
[null,null,"Longueval Barbonval",2160]
[null,null,"Maizy",2160]
[null,null,"Merval",2160]
[null,null,"Meurival",2160]
[null,null,"Moulins",2160]
[null,null,"Moussy Verneuil",2160]
[null,null,"Muscourt",2160]
[null,null,"Oeuilly",2160]
[null,null,"Oulches la Vallee Foulon",2160]
[null,null,"Paissy",2160]
[null,null,"Pargnan",2160]
[null,null,"Perles",2160]
[null,null,"Pont Arcy",2160]
[null,null,"Pontavert",2160]
[null,null,"Revillon",2160]
[null,null,"Roucy",2160]
[null,null,"Serval",2160]
[null,null,"Soupir",2160]
[null,null,"Vassogne",2160]
[null,null,"Vauxcere",2160]
[null,null,"Vendresse Beaulne",2160]
[null,null,"Viel Arcy",2160]
[null,null,"Villers en Prayeres",2160]
[null,null,"Barzy en Thierache",2170]
[null,null,"Esqueheries",2170]
[null,null,"Fontenelle",2170]
[null,null,"Le Nouvion en Thierache",2170]
[null,null,"Leschelles",2170]
[null,null,"Aguilcourt",2190]
[null,null,"Amifontaine",2190]
[null,null,"Berry au Bac",2190]
[null,null,"Bertricourt",2190]
[null,null,"Conde sur Suippe",2190]
[null,null,"Evergnicourt",2190]
[null,null,"Guignicourt",2190]
[null,null,"Juvincourt et Damary",2190]
[null,null,"La Malmaison",2190]
[null,null,"Lor",2190]
[null,null,"Menneville",2190]
[null,null,"Neufchatel sur Aisne",2190]
[null,null,"Orainville",2190]
[null,null,"Pignicourt",2190]
[null,null,"Prouvais",2190]
[null,null,"Proviseux et Plesnoy",2190]
[null,null,"Variscourt",2190]
[null,null,"Acy",2200]
[null,null,"Ambrief",2200]
[null,null,"Belleu",2200]
[null,null,"Berzy le Sec",2200]
[null,null,"Billy sur Aisne",2200]
[null,null,"Buzancy",2200]
[null,null,"Chacrise",2200]
[null,null,"Chaudun",2200]
[null,null,"Courmelles",2200]
[null,null,"Cuisy en Almont",2200]
[null,null,"Mercin et Vaux",2200]
[null,null,"Missy aux Bois",2200]
[null,null,"Nampteuil sous Muret",2200]
[null,null,"Noyant et Aconin",2200]
[null,null,"Pasly",2200]
[null,null,"Pernant",2200]
[null,null,"Ploisy",2200]
[null,null,"Pommiers",2200]
[null,null,"Rozieres sur Crise",2200]
[null,null,"Saconin et Breuil",2200]
[null,null,"Septmonts",2200]
[null,null,"Soissons",2200]
[null,null,"Vaurezis",2200]
[null,null,"Vauxbuin",2200]
[null,null,"Venizel",2200]
[null,null,"Villeneuve Saint Germain",2200]
[null,null,"Armentieres sur Ourcq",2210]
[null,null,"Beugneux",2210]
[null,null,"Billy sur Ourcq",2210]
[null,null,"Brecy",2210]
[null,null,"Breny",2210]
[null,null,"Chouy",2210]
[null,null,"Coincy",2210]
[null,null,"Cugny les Crouttes",2210]
[null,null,"Droizy",2210]
[null,null,"Grand Rozoy",2210]
[null,null,"Grisolles",2210]
[null,null,"Hartennes et Taux",2210]
[null,null,"La Croix sur Ourcq",2210]
[null,null,"Latilly",2210]
[null,null,"Launoy",2210]
[null,null,"Le Plessier Huleu",2210]
[null,null,"Montgru Saint Hilaire",2210]
[null,null,"Muret et Crouttes",2210]
[null,null,"Nanteuil Notre Dame",2210]
[null,null,"Oulchy la Ville",2210]
[null,null,"Oulchy le Chateau",2210]
[null,null,"Parcy et Tigny",2210]
[null,null,"Rocourt Saint Martin",2210]
[null,null,"Rozet Saint Albin",2210]
[null,null,"Saint Remy Blanzy",2210]
[null,null,"Vichel Nanteuil",2210]
[null,null,"Vierzy",2210]
[null,null,"Villemontoire",2210]
[null,null,"Augy",2220]
[null,null,"Bazoches sur Vesles",2220]
[null,null,"Braine",2220]
[null,null,"Brenelle",2220]
[null,null,"Bruys",2220]
[null,null,"Cerseuil",2220]
[null,null,"Chery Chartreuve",2220]
[null,null,"Ciry Salsogne",2220]
[null,null,"Courcelles sur Vesles",2220]
[null,null,"Couvrelles",2220]
[null,null,"Cuiry Housse",2220]
[null,null,"Cys la Commune",2220]
[null,null,"Dhuizel",2220]
[null,null,"Jouaignes",2220]
[null,null,"Lesges",2220]
[null,null,"Lhuys",2220]
[null,null,"Lime",2220]
[null,null,"Maast et Violaine",2220]
[null,null,"Mont Notre Dame",2220]
[null,null,"Mont Saint Martin",2220]
[null,null,"Paars",2220]
[null,null,"Quincy sous le Mont",2220]
[null,null,"Saint Mard",2220]
[null,null,"Saint Thibaut",2220]
[null,null,"Serches",2220]
[null,null,"Sermoise",2220]
[null,null,"Tannieres",2220]
[null,null,"Vasseny",2220]
[null,null,"Vauxtin",2220]
[null,null,"Ville Savoye",2220]
[null,null,"Fresnoy le Grand",2230]
[null,null,"Alaincourt",2240]
[null,null,"Berthenicourt",2240]
[null,null,"Brissay Choigny",2240]
[null,null,"Brissy Hamegicourt",2240]
[null,null,"Cerizy",2240]
[null,null,"Chatillon sur Oise",2240]
[null,null,"Itancourt",2240]
[null,null,"Mezieres sur Oise",2240]
[null,null,"Parpeville",2240]
[null,null,"Pleine Selve",2240]
[null,null,"Regny",2240]
[null,null,"Renansart",2240]
[null,null,"Ribemont",2240]
[null,null,"Sery les Mezieres",2240]
[null,null,"Sissy",2240]
[null,null,"Surfontaine",2240]
[null,null,"Villers le Sec",2240]
[null,null,"Autremencourt",2250]
[null,null,"Berlancourt",2250]
[null,null,"Bosmont sur Serre",2250]
[null,null,"Chevennes",2250]
[null,null,"Cilly",2250]
[null,null,"Erlon",2250]
[null,null,"Housset",2250]
[null,null,"La Neuville Bosmont",2250]
[null,null,"La Neuville Housset",2250]
[null,null,"Marcy sous Marle",2250]
[null,null,"Marle",2250]
[null,null,"Montigny le Franc",2250]
[null,null,"Montigny sous Marle",2250]
[null,null,"Saint Pierremont",2250]
[null,null,"Tavaux et Pontsericourt",2250]
[null,null,"Thiernu",2250]
[null,null,"Toulis et Attencourt",2250]
[null,null,"Voyenne",2250]
[null,null,"Clairfontaine",2260]
[null,null,"Englancourt",2260]
[null,null,"Erloy",2260]
[null,null,"Froidestrees",2260]
[null,null,"Gergny",2260]
[null,null,"La Capelle",2260]
[null,null,"La Flamengrie",2260]
[null,null,"Lerzy",2260]
[null,null,"Papleux",2260]
[null,null,"Rocquigny",2260]
[null,null,"Saint Algis",2260]
[null,null,"Sommeron",2260]
[null,null,"Assis sur Serre",2270]
[null,null,"Barenton sur Serre",2270]
[null,null,"Bois les Pargny",2270]
[null,null,"Chalandry",2270]
[null,null,"Chatillon les Sons",2270]
[null,null,"Chevresis Monceau",2270]
[null,null,"Couvron et Aumencourt",2270]
[null,null,"Crecy sur Serre",2270]
[null,null,"Dercy",2270]
[null,null,"Froidmont Cohartille",2270]
[null,null,"La Ferte Chevresis",2270]
[null,null,"Mesbrecourt Richecourt",2270]
[null,null,"Monceau le Neuf et Faucou",2270]
[null,null,"Monceau les Leups",2270]
[null,null,"Montigny sur Crecy",2270]
[null,null,"Mortiers",2270]
[null,null,"Nouvion et Catillon",2270]
[null,null,"Pargny les Bois",2270]
[null,null,"Pont A Bucy",2270]
[null,null,"Pouilly sur Serre",2270]
[null,null,"Remies",2270]
[null,null,"Sons et Roncheres",2270]
[null,null,"Ambleny",2290]
[null,null,"Bagneux",2290]
[null,null,"Berny Riviere",2290]
[null,null,"Bieuxy",2290]
[null,null,"Epagny",2290]
[null,null,"Fontenoy",2290]
[null,null,"Montigny Lengrain",2290]
[null,null,"Morsain",2290]
[null,null,"Nouvron Vingre",2290]
[null,null,"Osly Courtil",2290]
[null,null,"Ressons le Long",2290]
[null,null,"Saint Bandry",2290]
[null,null,"Saint Christophe A Berry",2290]
[null,null,"Tartiers",2290]
[null,null,"Vassens",2290]
[null,null,"Vezaponin",2290]
[null,null,"Vic sur Aisne",2290]
[null,null,"Abbecourt",2300]
[null,null,"Audignicourt",2300]
[null,null,"Autreville",2300]
[null,null,"Beaumont en Beine",2300]
[null,null,"Besme",2300]
[null,null,"Bethancourt en Vaux",2300]
[null,null,"Bichancourt",2300]
[null,null,"Blerancourt",2300]
[null,null,"Bourguignon sous Coucy",2300]
[null,null,"Caillouel Crepigny",2300]
[null,null,"Camelin",2300]
[null,null,"Caumont",2300]
[null,null,"Chauny",2300]
[null,null,"Commenchon",2300]
[null,null,"Guivry",2300]
[null,null,"Guny",2300]
[null,null,"La Neuville en Beine",2300]
[null,null,"Lombray",2300]
[null,null,"Manicamp",2300]
[null,null,"Marest Dampcourt",2300]
[null,null,"Neuflieux",2300]
[null,null,"Ognes",2300]
[null,null,"Pierremande",2300]
[null,null,"Quierzy",2300]
[null,null,"Saint Aubin",2300]
[null,null,"Saint Paul aux Bois",2300]
[null,null,"Selens",2300]
[null,null,"Sinceny",2300]
[null,null,"Trosly Loire",2300]
[null,null,"Ugny le Gay",2300]
[null,null,"Villequier Aumont",2300]
[null,null,"Viry Noureuil",2300]
[null,null,"Bezu le Guery",2310]
[null,null,"Charly",2310]
[null,null,"Coupru",2310]
[null,null,"Crouttes sur Marne",2310]
[null,null,"Domptin",2310]
[null,null,"Montreuil aux Lions",2310]
[null,null,"Nogent l'Artaud",2310]
[null,null,"Pavant",2310]
[null,null,"Romeny sur Marne",2310]
[null,null,"Saulchery",2310]
[null,null,"Villiers Saint Denis",2310]
[null,null,"Allemant",2320]
[null,null,"Anizy le Chateau",2320]
[null,null,"Brancourt en Laonnois",2320]
[null,null,"Cessieres",2320]
[null,null,"Faucoucourt",2320]
[null,null,"Lizy",2320]
[null,null,"Pinon",2320]
[null,null,"Premontre",2320]
[null,null,"Suzy",2320]
[null,null,"Vaudesson",2320]
[null,null,"Vauxaillon",2320]
[null,null,"Wissignicourt",2320]
[null,null,"Artonges",2330]
[null,null,"Baulne en Brie",2330]
[null,null,"Celles les Conde",2330]
[null,null,"Conde en Brie",2330]
[null,null,"Connigis",2330]
[null,null,"Courboin",2330]
[null,null,"La Chapelle Monthodon",2330]
[null,null,"Monthurel",2330]
[null,null,"Montigny les Conde",2330]
[null,null,"Montlevon",2330]
[null,null,"Pargny la Dhuys",2330]
[null,null,"Saint Agnan",2330]
[null,null,"Saint Eugene",2330]
[null,null,"Agnicourt et Sechelles",2340]
[null,null,"Berlise",2340]
[null,null,"Chaourse",2340]
[null,null,"Clermont les Fermes",2340]
[null,null,"Dizy le Gros",2340]
[null,null,"La Ville aux Bois les Diz",2340]
[null,null,"Le Thuel",2340]
[null,null,"Lislet",2340]
[null,null,"Montcornet",2340]
[null,null,"Montloue",2340]
[null,null,"Noircourt",2340]
[null,null,"Renneval",2340]
[null,null,"Sainte Genevieve",2340]
[null,null,"Soize",2340]
[null,null,"Vigneux Hocquet",2340]
[null,null,"Vincy Reuil et Magny",2340]
[null,null,"Boncourt",2350]
[null,null,"Bucy les Pierrepont",2350]
[null,null,"Chivres en Laonnois",2350]
[null,null,"Cuirieux",2350]
[null,null,"Ebouleau",2350]
[null,null,"Gizy",2350]
[null,null,"Goudelancourt les Pierrep",2350]
[null,null,"Grandlup et Fay",2350]
[null,null,"Liesse Notre Dame",2350]
[null,null,"Machecourt",2350]
[null,null,"Marchais",2350]
[null,null,"Missy les Pierrepont",2350]
[null,null,"Pierrepont",2350]
[null,null,"Sainte Preuve",2350]
[null,null,"Vesles et Caumont",2350]
[null,null,"Archon",2360]
[null,null,"Brunehamel",2360]
[null,null,"Chery les Rozoy",2360]
[null,null,"Coingt",2360]
[null,null,"Cuiry les Iviers",2360]
[null,null,"Dohis",2360]
[null,null,"Dolignon",2360]
[null,null,"Grandrieux",2360]
[null,null,"Iviers",2360]
[null,null,"Les Autels",2360]
[null,null,"Mont Saint Jean",2360]
[null,null,"Morgny en Thierache",2360]
[null,null,"Parfondeval",2360]
[null,null,"Raillimont",2360]
[null,null,"Resigny",2360]
[null,null,"Rouvroy sur Serre",2360]
[null,null,"Rozoy sur Serre",2360]
[null,null,"Saint Clement",2360]
[null,null,"Aizy Jouy",2370]
[null,null,"Celles sur Aisne",2370]
[null,null,"Chassemy",2370]
[null,null,"Chavonne",2370]
[null,null,"Conde sur Aisne",2370]
[null,null,"Jouy",2370]
[null,null,"Ostel",2370]
[null,null,"Presles et Boves",2370]
[null,null,"Vailly sur Aisne",2370]
[null,null,"Bassoles Aulers",2380]
[null,null,"Coucy la Ville",2380]
[null,null,"Coucy le Chateau Auffrique",2380]
[null,null,"Crecy au Mont",2380]
[null,null,"Fresnes",2380]
[null,null,"Jumencourt",2380]
[null,null,"Landricourt",2380]
[null,null,"Leuilly sous Coucy",2380]
[null,null,"Pont Saint Mard",2380]
[null,null,"Quincy Basse",2380]
[null,null,"Verneuil sous Coucy",2380]
[null,null,"Mont d'Origny",2390]
[null,null,"Neuvillette",2390]
[null,null,"Origny Sainte Benoite",2390]
[null,null,"Thenelles",2390]
[null,null,"Azy sur Marne",2400]
[null,null,"Belleau",2400]
[null,null,"Bezu Saint Germain",2400]
[null,null,"Blesmes",2400]
[null,null,"Bonneil",2400]
[null,null,"Bonnesvalyn",2400]
[null,null,"Bouresches",2400]
[null,null,"Brasles",2400]
[null,null,"Charteves",2400]
[null,null,"Chateau Thierry",2400]
[null,null,"Chierry",2400]
[null,null,"Epaux Bezu",2400]
[null,null,"Epieds",2400]
[null,null,"Essomes sur Marne",2400]
[null,null,"Etampes sur Marne",2400]
[null,null,"Etrepilly",2400]
[null,null,"Gland",2400]
[null,null,"Lucy le Bocage",2400]
[null,null,"Mont Saint Pere",2400]
[null,null,"Monthiers",2400]
[null,null,"Nesles la Montagne",2400]
[null,null,"Nogentel",2400]
[null,null,"Verdilly",2400]
[null,null,"Saint Gobain",2410]
[null,null,"Saint Nicolas aux Bois",2410]
[null,null,"Septvaux",2410]
[null,null,"Aubencheul aux Bois",2420]
[null,null,"Bellenglise",2420]
[null,null,"Bellicourt",2420]
[null,null,"Bony",2420]
[null,null,"Estrees",2420]
[null,null,"Gouy",2420]
[null,null,"Hargicourt",2420]
[null,null,"Joncourt",2420]
[null,null,"Le Catelet",2420]
[null,null,"Le Haucourt",2420]
[null,null,"Lempire",2420]
[null,null,"Levergies",2420]
[null,null,"Magny la Fosse",2420]
[null,null,"Nauroy",2420]
[null,null,"Sequehart",2420]
[null,null,"Vendhuile",2420]
[null,null,"Villeret",2420]
[null,null,"Gauchy",2430]
[null,null,"Benay",2440]
[null,null,"Clastres",2440]
[null,null,"Gibercourt",2440]
[null,null,"Hinacourt",2440]
[null,null,"Ly Fontaine",2440]
[null,null,"Montescourt Lizerol",2440]
[null,null,"Remigny",2440]
[null,null,"Bergues sur Sambre",2450]
[null,null,"Boue",2450]
[null,null,"Dorengt",2450]
[null,null,"Fesmy-Le-Sart",2450]
[null,null,"La Neuville les Dorengt",2450]
[null,null,"Lavaqueresse",2450]
[null,null,"Le Sart",2450]
[null,null,"Oisy",2450]
[null,null,"La Ferte Milon",2460]
[null,null,"Mosloy",2460]
[null,null,"Silly la Poterie",2460]
[null,null,"Troesnes",2460]
[null,null,"Dammard",2470]
[null,null,"Macogny",2470]
[null,null,"Marizy Saint Mard",2470]
[null,null,"Marizy Sainte Genevieve",2470]
[null,null,"Monnes",2470]
[null,null,"Neuilly Saint Front",2470]
[null,null,"Passy en Valois",2470]
[null,null,"Priez",2470]
[null,null,"Sommelans",2470]
[null,null,"Annois",2480]
[null,null,"Artemps",2480]
[null,null,"Bray Saint Christophe",2480]
[null,null,"Cugny",2480]
[null,null,"Dury",2480]
[null,null,"Happencourt",2480]
[null,null,"Jussy",2480]
[null,null,"Ollezy",2480]
[null,null,"Pithon",2480]
[null,null,"Sommette Eaucourt",2480]
[null,null,"Attilly",2490]
[null,null,"Caulaincourt",2490]
[null,null,"Jeancourt",2490]
[null,null,"Le Verguier",2490]
[null,null,"Maissemy",2490]
[null,null,"Pontru",2490]
[null,null,"Pontruet",2490]
[null,null,"Trefcon",2490]
[null,null,"Vendelles",2490]
[null,null,"Vermand",2490]
[null,null,"Any Martin Rieux",2500]
[null,null,"Aubenton",2500]
[null,null,"Beaume",2500]
[null,null,"Besmont",2500]
[null,null,"Bucilly",2500]
[null,null,"Buire",2500]
[null,null,"Effry",2500]
[null,null,"Eparcy",2500]
[null,null,"Hirson",2500]
[null,null,"La Herie",2500]
[null,null,"Leuze",2500]
[null,null,"Logny les Aubenton",2500]
[null,null,"Luzoir",2500]
[null,null,"Martigny",2500]
[null,null,"Mondrepuis",2500]
[null,null,"Neuve Maison",2500]
[null,null,"Ohis",2500]
[null,null,"Wimy",2500]
[null,null,"Etreux",2510]
[null,null,"Hannapes",2510]
[null,null,"Iron",2510]
[null,null,"Venerolles",2510]
[null,null,"Flavy le Martel",2520]
[null,null,"Celle sous Montmirail",2540]
[null,null,"Fontenelle en Brie",2540]
[null,null,"L Epine aux Bois",2540]
[null,null,"Marchais en Brie",2540]
[null,null,"Montfaucon",2540]
[null,null,"Rozoy Bellevalle",2540]
[null,null,"Vendieres",2540]
[null,null,"Viels Maisons",2540]
[null,null,"Viffort",2540]
[null,null,"Origny en Thierache",2550]
[null,null,"Chezy sur Marne",2570]
[null,null,"Essises",2570]
[null,null,"La Chapelle sur Chezy",2570]
[null,null,"Autreppes",2580]
[null,null,"Etreaupont",2580]
[null,null,"Sorbais",2580]
[null,null,"Aubigny aux Kaisnes",2590]
[null,null,"Beauvois en Vermandois",2590]
[null,null,"Douchy",2590]
[null,null,"Etreillers",2590]
[null,null,"Fluquieres",2590]
[null,null,"Foreste",2590]
[null,null,"Germaine",2590]
[null,null,"Lanchy",2590]
[null,null,"Roupy",2590]
[null,null,"Savy",2590]
[null,null,"Vaux en Vermandois",2590]
[null,null,"Villers Saint Christophe",2590]
[null,null,"Ancienville",2600]
[null,null,"Coeuvres et Valsery",2600]
[null,null,"Corcy",2600]
[null,null,"Coyolles",2600]
[null,null,"Cutry",2600]
[null,null,"Dampleux",2600]
[null,null,"Dommiers",2600]
[null,null,"Faverolles",2600]
[null,null,"Fleury",2600]
[null,null,"Haramont",2600]
[null,null,"Largny sur Automne",2600]
[null,null,"Laversine",2600]
[null,null,"Longpont",2600]
[null,null,"Louatre",2600]
[null,null,"Montgobert",2600]
[null,null,"Mortefontaine",2600]
[null,null,"Noroy sur Ourcq",2600]
[null,null,"Oigny en Valois",2600]
[null,null,"Pisseleux",2600]
[null,null,"Puiseux en Retz",2600]
[null,null,"Retheuil",2600]
[null,null,"Saint Pierre Aigle",2600]
[null,null,"Soucy",2600]
[null,null,"Taillefontaine",2600]
[null,null,"Villers Cotterets",2600]
[null,null,"Villers Helon",2600]
[null,null,"Vivieres",2600]
[null,null,"Moy de l'Aisne",2610]
[null,null,"Buironfosse",2620]
[null,null,"Mennevret",2630]
[null,null,"Petit Verly",2630]
[null,null,"Wassigny",2630]
[null,null,"Saint Simon",2640]
[null,null,"Tugny et Pont",2640]
[null,null,"Crezancy",2650]
[null,null,"Fossoy",2650]
[null,null,"Mezy Moulins",2650]
[null,null,"Champs",2670]
[null,null,"Folembray",2670]
[null,null,"Castres",2680]
[null,null,"Contescourt",2680]
[null,null,"Dallon",2680]
[null,null,"Fontaine les Clercs",2680]
[null,null,"Grugies",2680]
[null,null,"Essigny le Grand",2690]
[null,null,"Urvillers",2690]
[null,null,"Amigny Rouy",2700]
[null,null,"Barisis",2700]
[null,null,"Condren",2700]
[null,null,"Deuillet",2700]
[null,null,"Fargniers",2700]
[null,null,"Frieres Faillouel",2700]
[null,null,"Liez",2700]
[null,null,"Mennessis",2700]
[null,null,"Quessy",2700]
[null,null,"Servais",2700]
[null,null,"Tergnier",2700]
[null,null,"Vouel",2700]
[null,null,"Homblieres",2720]
[null,null,"Marcy",2720]
[null,null,"Mesnil Saint Laurent",2720]
[null,null,"Francilly Selency",2760]
[null,null,"Holnon",2760]
[null,null,"Seraucourt le Grand",2790]
[null,null,"Achery",2800]
[null,null,"Andelain",2800]
[null,null,"Anguilcourt le Sart",2800]
[null,null,"Beautor",2800]
[null,null,"Bertaucourt Epourdon",2800]
[null,null,"Charmes",2800]
[null,null,"Courbes",2800]
[null,null,"Danizy",2800]
[null,null,"Fressancourt",2800]
[null,null,"La Fere",2800]
[null,null,"Mayot",2800]
[null,null,"Nouvion le Comte",2800]
[null,null,"Rogecourt",2800]
[null,null,"Travecy",2800]
[null,null,"Vendeuil",2800]
[null,null,"Versigny",2800]
[null,null,"Brumetz",2810]
[null,null,"Bussiares",2810]
[null,null,"Chezy en Orxois",2810]
[null,null,"Courchamps",2810]
[null,null,"Gandelu",2810]
[null,null,"Hautevesnes",2810]
[null,null,"Licy Clignon",2810]
[null,null,"Marigny en Orxois",2810]
[null,null,"Montigny l'Allier",2810]
[null,null,"Saint Gengoulph",2810]
[null,null,"Torcy en Valois",2810]
[null,null,"Veuilly la Poterie",2810]
[null,null,"Aizelles",2820]
[null,null,"Aubigny en Laonnois",2820]
[null,null,"Berrieux",2820]
[null,null,"Corbeny",2820]
[null,null,"Courtrizy et Fussigny",2820]
[null,null,"Goudelancourt les Berrieu",2820]
[null,null,"Mauregny en Haye",2820]
[null,null,"Montaigu",2820]
[null,null,"Saint Erme Outre et Ramecour",2820]
[null,null,"Saint Thomas",2820]
[null,null,"Sainte Croix",2820]
[null,null,"Saint Michel",2830]
[null,null,"Watigny",2830]
[null,null,"Athies sous Laon",2840]
[null,null,"Coucy les Eppes",2840]
[null,null,"Eppes",2840]
[null,null,"Festieux",2840]
[null,null,"Monceau le Waast",2840]
[null,null,"Parfondru",2840]
[null,null,"Samoussy",2840]
[null,null,"Veslud",2840]
[null,null,"Barzy sur Marne",2850]
[null,null,"Courtemont Varennes",2850]
[null,null,"Jaulgonne",2850]
[null,null,"Le Charmel",2850]
[null,null,"Passy sur Marne",2850]
[null,null,"Reuilly Sauvigny",2850]
[null,null,"Trelou sur Marne",2850]
[null,null,"Arrancy",2860]
[null,null,"Bievres",2860]
[null,null,"Bouconville Vauclair",2860]
[null,null,"Bruyeres et Montberault",2860]
[null,null,"Cerny en Laonnois",2860]
[null,null,"Chamouille",2860]
[null,null,"Cheret",2860]
[null,null,"Chermizy Ailles",2860]
[null,null,"Colligis Crandelain",2860]
[null,null,"Laval en Laonnois",2860]
[null,null,"Lierval",2860]
[null,null,"Martigny Courpierre",2860]
[null,null,"Montchalons",2860]
[null,null,"Monthenault",2860]
[null,null,"Neuville sur Ailette",2860]
[null,null,"Nouvion le Vineux",2860]
[null,null,"Orgeval",2860]
[null,null,"Pancy Courtecon",2860]
[null,null,"Ployart Vaurseine",2860]
[null,null,"Presles et Thierny",2860]
[null,null,"Trucy",2860]
[null,null,"Vorges",2860]
[null,null,"Besny et Loizy",2870]
[null,null,"Brie",2870]
[null,null,"Bucy les Cerny",2870]
[null,null,"Cerny les Bucy",2870]
[null,null,"Crepy",2870]
[null,null,"Fourdrain",2870]
[null,null,"Vivaise",2870]
[null,null,"Braye",2880]
[null,null,"Bucy le Long",2880]
[null,null,"Chavigny",2880]
[null,null,"Chivres Val",2880]
[null,null,"Clamecy",2880]
[null,null,"Crouy",2880]
[null,null,"Cuffies",2880]
[null,null,"Juvigny",2880]
[null,null,"Laffaux",2880]
[null,null,"Leury",2880]
[null,null,"Margival",2880]
[null,null,"Missy sur Aisne",2880]
[null,null,"Nanteuil la Fosse",2880]
[null,null,"Neuville sur Margival",2880]
[null,null,"Sancy les Cheminots",2880]
[null,null,"Terny Sorny",2880]
[null,null,"Vregny",2880]
[null,null,"Vuillery",2880]
[null,null,"Avermes",3000]
[null,null,"Bressolles",3000]
[null,null,"Coulandon",3000]
[null,null,"Montilly",3000]
[null,null,"Moulins",3000]
[null,null,"Neuvy",3000]
[null,null,"Montlucon",3100]
[null,null,"Brout Vernet",3110]
[null,null,"Charmeil",3110]
[null,null,"Cognat Lyonne",3110]
[null,null,"Escurolles",3110]
[null,null,"Espinasse Vozelle",3110]
[null,null,"Saint Didier la Foret",3110]
[null,null,"Saint Pont",3110]
[null,null,"Saint Remy en Rollat",3110]
[null,null,"Serbannes",3110]
[null,null,"Vendat",3110]
[null,null,"Andelaroche",3120]
[null,null,"Barrais Bussolles",3120]
[null,null,"Billezois",3120]
[null,null,"Droiturier",3120]
[null,null,"Isserpent",3120]
[null,null,"Lapalisse",3120]
[null,null,"Le Breuil",3120]
[null,null,"Perigny",3120]
[null,null,"Saint Christophe",3120]
[null,null,"Saint Prix",3120]
[null,null,"Servilly",3120]
[null,null,"Avrilly",3130]
[null,null,"Bert",3130]
[null,null,"Le Bouchaud",3130]
[null,null,"Le Donjon",3130]
[null,null,"Le Pin",3130]
[null,null,"Lenax",3130]
[null,null,"Liernolles",3130]
[null,null,"Loddes",3130]
[null,null,"Luneau",3130]
[null,null,"Montaiguet en Forez",3130]
[null,null,"Montcombroux les Mines",3130]
[null,null,"Neuilly en Donjon",3130]
[null,null,"Saint Didier en Donjon",3130]
[null,null,"Saint Leger sur Vouzance",3130]
[null,null,"Barberier",3140]
[null,null,"Chantelle",3140]
[null,null,"Chareil Cintrat",3140]
[null,null,"Charroux",3140]
[null,null,"Chezelle",3140]
[null,null,"Deneuille les Chantelle",3140]
[null,null,"Etroussat",3140]
[null,null,"Fleuriel",3140]
[null,null,"Fourilles",3140]
[null,null,"Monestier",3140]
[null,null,"Saint Germain de Salles",3140]
[null,null,"Target",3140]
[null,null,"Taxat Senat",3140]
[null,null,"Ussel d'Allier",3140]
[null,null,"Voussac",3140]
[null,null,"Bouce",3150]
[null,null,"Crechy",3150]
[null,null,"Langy",3150]
[null,null,"Montaigu le Blin",3150]
[null,null,"Montoldre",3150]
[null,null,"Rongeres",3150]
[null,null,"Saint Gerand le Puy",3150]
[null,null,"Saint Loup",3150]
[null,null,"Sanssat",3150]
[null,null,"Varennes sur Allier",3150]
[null,null,"Bourbon l'Archambault",3160]
[null,null,"Couzon",3160]
[null,null,"Franchesse",3160]
[null,null,"Saint Aubin le Monial",3160]
[null,null,"Saint Leopardin d'Augy",3160]
[null,null,"Saint Plaisir",3160]
[null,null,"Ygrande",3160]
[null,null,"Bezenet",3170]
[null,null,"Bizeneuille",3170]
[null,null,"Chamblet",3170]
[null,null,"Deneuille les Mines",3170]
[null,null,"Doyet",3170]
[null,null,"Montvicq",3170]
[null,null,"Saint Angel",3170]
[null,null,"Audes",3190]
[null,null,"Estivareilles",3190]
[null,null,"Givarlais",3190]
[null,null,"Herisson",3190]
[null,null,"Louroux Hodement",3190]
[null,null,"Maillet",3190]
[null,null,"Nassigny",3190]
[null,null,"Reugny",3190]
[null,null,"Saint Caprais",3190]
[null,null,"Vallon en Sully",3190]
[null,null,"Vaux",3190]
[null,null,"Venas",3190]
[null,null,"Verneix",3190]
[null,null,"Abrest",3200]
[null,null,"Le Vernet",3200]
[null,null,"Vichy",3200]
[null,null,"Agonges",3210]
[null,null,"Autry Issards",3210]
[null,null,"Besson",3210]
[null,null,"Bresnay",3210]
[null,null,"Chatillon",3210]
[null,null,"Chemilly",3210]
[null,null,"Gipcy",3210]
[null,null,"Marigny",3210]
[null,null,"Meillers",3210]
[null,null,"Noyant d'Allier",3210]
[null,null,"Saint Menoux",3210]
[null,null,"Souvigny",3210]
[null,null,"Chatelperron",3220]
[null,null,"Chavroches",3220]
[null,null,"Cindre",3220]
[null,null,"Jaligny sur Besbre",3220]
[null,null,"Saint Leon",3220]
[null,null,"Saint Voir",3220]
[null,null,"Sorbier",3220]
[null,null,"Thionne",3220]
[null,null,"Treteau",3220]
[null,null,"Trezelles",3220]
[null,null,"Varennes sur Teche",3220]
[null,null,"Vaumas",3220]
[null,null,"Beaulon",3230]
[null,null,"Chevagnes",3230]
[null,null,"Chezy",3230]
[null,null,"Gannay sur Loire",3230]
[null,null,"Garnat sur Engievre",3230]
[null,null,"La Chapelle aux Chasses",3230]
[null,null,"Lusigny",3230]
[null,null,"Paray le Fresil",3230]
[null,null,"Saint Martin des Lais",3230]
[null,null,"Thiel sur Acolin",3230]
[null,null,"Cressanges",3240]
[null,null,"Deux Chaises",3240]
[null,null,"Le Montet",3240]
[null,null,"Le Theil",3240]
[null,null,"Rocles",3240]
[null,null,"Saint Sornin",3240]
[null,null,"Treban",3240]
[null,null,"Tronget",3240]
[null,null,"Arronnes",3250]
[null,null,"Chatel Montagne",3250]
[null,null,"Ferrieres sur Sichon",3250]
[null,null,"La Chabanne",3250]
[null,null,"La Guillermie",3250]
[null,null,"Laprugne",3250]
[null,null,"Lavoine",3250]
[null,null,"Le Mayet de Montagne",3250]
[null,null,"Nizerolles",3250]
[null,null,"Saint Clement",3250]
[null,null,"Saint Nicolas des Biefs",3250]
[null,null,"Billy",3260]
[null,null,"Magnet",3260]
[null,null,"Marcenat",3260]
[null,null,"Saint Felix",3260]
[null,null,"Saint Germain des Fosses",3260]
[null,null,"Seuillet",3260]
[null,null,"Busset",3270]
[null,null,"Hauterive",3270]
[null,null,"Mariol",3270]
[null,null,"Saint Yorre",3270]
[null,null,"Diou",3290]
[null,null,"Dompierre sur Besbre",3290]
[null,null,"Saint Pourcain sur Besbre",3290]
[null,null,"Bost",3300]
[null,null,"Creuzier le Neuf",3300]
[null,null,"Creuzier le Vieux",3300]
[null,null,"Cusset",3300]
[null,null,"La Chapelle",3300]
[null,null,"Molles",3300]
[null,null,"Saint Etienne de Vicq",3300]
[null,null,"Durdat Larequille",3310]
[null,null,"Lavault Sainte Anne",3310]
[null,null,"Neris les Bains",3310]
[null,null,"Saint Genest",3310]
[null,null,"Villebret",3310]
[null,null,"Chateau sur Allier",3320]
[null,null,"Couleuvre",3320]
[null,null,"Le Veurdre",3320]
[null,null,"Limoise",3320]
[null,null,"Lurcy Levis",3320]
[null,null,"Neure",3320]
[null,null,"Pouzy Mesangy",3320]
[null,null,"Bellenaves",3330]
[null,null,"Chirat l'Eglise",3330]
[null,null,"Coutansouze",3330]
[null,null,"Echassieres",3330]
[null,null,"Louroux de Bouble",3330]
[null,null,"Naves",3330]
[null,null,"Valignat",3330]
[null,null,"Bessay sur Allier",3340]
[null,null,"Chapeau",3340]
[null,null,"Gouise",3340]
[null,null,"La Ferte Hauterive",3340]
[null,null,"Mercy",3340]
[null,null,"Montbeugny",3340]
[null,null,"Neuilly le Real",3340]
[null,null,"Saint Gerand de Vaux",3340]
[null,null,"Cerilly",3350]
[null,null,"Le Brethon",3350]
[null,null,"Le Vilhain",3350]
[null,null,"Louroux Bourbonnais",3350]
[null,null,"Theneuille",3350]
[null,null,"Ainay le Chateau",3360]
[null,null,"Braize",3360]
[null,null,"Isle et Bardais",3360]
[null,null,"Letelon",3360]
[null,null,"Meaulne",3360]
[null,null,"Saint Bonnet de Troncais",3360]
[null,null,"Urcay",3360]
[null,null,"Valigny",3360]
[null,null,"Vitray",3360]
[null,null,"Chamberat",3370]
[null,null,"Chazemais",3370]
[null,null,"Courcais",3370]
[null,null,"Mesples",3370]
[null,null,"Saint Desire",3370]
[null,null,"Saint Eloy d'Allier",3370]
[null,null,"Saint Palais",3370]
[null,null,"Saint Sauvier",3370]
[null,null,"Viplaix",3370]
[null,null,"Archignat",3380]
[null,null,"Huriel",3380]
[null,null,"La Chapelaude",3380]
[null,null,"Lamaids",3380]
[null,null,"Quinssaines",3380]
[null,null,"Saint Martinien",3380]
[null,null,"Treignat",3380]
[null,null,"Beaune d'Allier",3390]
[null,null,"Blomard",3390]
[null,null,"Chappes",3390]
[null,null,"Montmarault",3390]
[null,null,"Murat",3390]
[null,null,"Saint Bonnet de Four",3390]
[null,null,"Saint Marcel en Murat",3390]
[null,null,"Saint Priest en Murat",3390]
[null,null,"Sazeret",3390]
[null,null,"Vernusse",3390]
[null,null,"Gennetines",3400]
[null,null,"Saint Ennemond",3400]
[null,null,"Toulon sur Allier",3400]
[null,null,"Yzeure",3400]
[null,null,"Domerat",3410]
[null,null,"Lignerolles",3410]
[null,null,"Premilhat",3410]
[null,null,"Saint Victor",3410]
[null,null,"Teillet Argenty",3410]
[null,null,"Arpheuilles Saint Priest",3420]
[null,null,"La Petite Marche",3420]
[null,null,"Marcillat en Combraille",3420]
[null,null,"Mazirat",3420]
[null,null,"Ronnet",3420]
[null,null,"Saint Fargeol",3420]
[null,null,"Saint Marcel en Marcillat",3420]
[null,null,"Sainte Therence",3420]
[null,null,"Terjat",3420]
[null,null,"Cosne d'Allier",3430]
[null,null,"Neuville",3430]
[null,null,"Sauvagny",3430]
[null,null,"Tortezais",3430]
[null,null,"Vieure",3430]
[null,null,"Villefranche d'Allier",3430]
[null,null,"Buxieres les Mines",3440]
[null,null,"Chavenon",3440]
[null,null,"Saint Hilaire",3440]
[null,null,"Chouvigny",3450]
[null,null,"Ebreuil",3450]
[null,null,"Lalizolle",3450]
[null,null,"Nades",3450]
[null,null,"Sussat",3450]
[null,null,"Veauce",3450]
[null,null,"Vicq",3450]
[null,null,"Aubigny",3460]
[null,null,"Aurouer",3460]
[null,null,"Bagneux",3460]
[null,null,"Trevol",3460]
[null,null,"Villeneuve sur Allier",3460]
[null,null,"Coulanges",3470]
[null,null,"Monetay sur Loire",3470]
[null,null,"Pierrefitte sur Loire",3470]
[null,null,"Saligny sur Roudon",3470]
[null,null,"Diou",3490]
[null,null,"Bayet",3500]
[null,null,"Bransat",3500]
[null,null,"Cesset",3500]
[null,null,"Chatel de Neuvre",3500]
[null,null,"Contigny",3500]
[null,null,"Lafeline",3500]
[null,null,"Loriges",3500]
[null,null,"Louchy Montfand",3500]
[null,null,"Meillard",3500]
[null,null,"Monetay sur Allier",3500]
[null,null,"Montord",3500]
[null,null,"Paray sous Briailles",3500]
[null,null,"Saint Pourcain sur Sioule",3500]
[null,null,"Saulcet",3500]
[null,null,"Verneuil en Bourbonnais",3500]
[null,null,"Chassenard",3510]
[null,null,"Molinet",3510]
[null,null,"Colombier",3600]
[null,null,"Commentry",3600]
[null,null,"Hyds",3600]
[null,null,"La Celle",3600]
[null,null,"Louroux de Beaune",3600]
[null,null,"Malicorne",3600]
[null,null,"Desertines",3630]
[null,null,"Arfeuilles",3640]
[null,null,"Chatelus",3640]
[null,null,"Bellerive sur Allier",3700]
[null,null,"Brugheas",3700]
[null,null,"Begues",3800]
[null,null,"Biozat",3800]
[null,null,"Charmes",3800]
[null,null,"Gannat",3800]
[null,null,"Jenzat",3800]
[null,null,"Le Mayet d'Ecole",3800]
[null,null,"Mazerier",3800]
[null,null,"Monteignet sur l'Andelot",3800]
[null,null,"Poezat",3800]
[null,null,"Saint Bonnet de Rochefort",3800]
[null,null,"Saint Priest d'Andelot",3800]
[null,null,"Saulzet",3800]
[null,null,"Ainac",4000]
[null,null,"Digne les Bains",4000]
[null,null,"Entrages",4000]
[null,null,"Esclangon",4000]
[null,null,"La Robine sur Galabre",4000]
[null,null,"Lambert",4000]
[null,null,"Les Dourbes",4000]
[null,null,"Tanaron",4000]
[null,null,"Manosque",4100]
[null,null,"Aubenas les Alpes",4110]
[null,null,"Montfuron",4110]
[null,null,"Montjustin",4110]
[null,null,"Oppedette",4110]
[null,null,"Reillanne",4110]
[null,null,"Sainte Croix A Lauze",4110]
[null,null,"Vacheres",4110]
[null,null,"Villemus",4110]
[null,null,"Castellane",4120]
[null,null,"Chasteuil",4120]
[null,null,"Chateauneuf les Moustiers",4120]
[null,null,"Demandolx",4120]
[null,null,"Eoulx",4120]
[null,null,"La Garde",4120]
[null,null,"La Palud sur Verdon",4120]
[null,null,"Peyroules",4120]
[null,null,"Robion",4120]
[null,null,"Rougon",4120]
[null,null,"Soleilhas",4120]
[null,null,"Taloire",4120]
[null,null,"Taulanne",4120]
[null,null,"Volx",4130]
[null,null,"Auzet",4140]
[null,null,"Barles",4140]
[null,null,"Le Vernet",4140]
[null,null,"Montclar",4140]
[null,null,"Seyne",4140]
[null,null,"Verdaches",4140]
[null,null,"Banon",4150]
[null,null,"Carniol",4150]
[null,null,"L Hospitalet",4150]
[null,null,"La Rochegiron",4150]
[null,null,"Montsalier",4150]
[null,null,"Redortiers",4150]
[null,null,"Revest des Brousses",4150]
[null,null,"Revest du Bion",4150]
[null,null,"Saumane",4150]
[null,null,"Simiane la Rotonde",4150]
[null,null,"Valsaintes",4150]
[null,null,"Chateau Arnoux Saint Auban",4160]
[null,null,"L Escale",4160]
[null,null,"Allons",4170]
[null,null,"Angles",4170]
[null,null,"Argens",4170]
[null,null,"La Mure Argens",4170]
[null,null,"Lambruisse",4170]
[null,null,"Moriez",4170]
[null,null,"Saint Andre les Alpes",4170]
[null,null,"Saint Julien du Verdon",4170]
[null,null,"Saint Michel Peyresq",4170]
[null,null,"Thorame Basse",4170]
[null,null,"Thorame Haute",4170]
[null,null,"Vergons",4170]
[null,null,"Villeneuve",4180]
[null,null,"Les Mees",4190]
[null,null,"Aubignosc",4200]
[null,null,"Authon",4200]
[null,null,"Bevons",4200]
[null,null,"Chateauneuf Miravail",4200]
[null,null,"Chateauneuf Val Saint Donat",4200]
[null,null,"Curel",4200]
[null,null,"Entrepierres",4200]
[null,null,"Les Bons Enfants",4200]
[null,null,"Les Omergues",4200]
[null,null,"Mison",4200]
[null,null,"Noyers sur Jabron",4200]
[null,null,"Peipin",4200]
[null,null,"Saint Geniez",4200]
[null,null,"Saint Symphorien",4200]
[null,null,"Saint Vincent sur Jabron",4200]
[null,null,"Sigoyer",4200]
[null,null,"Sisteron",4200]
[null,null,"Theze",4200]
[null,null,"Valbelle",4200]
[null,null,"Valernes",4200]
[null,null,"Vaumeilh",4200]
[null,null,"Vilhosc",4200]
[null,null,"Brunet",4210]
[null,null,"Valensole",4210]
[null,null,"Corbieres",4220]
[null,null,"Sainte Tulle",4220]
[null,null,"Cruis",4230]
[null,null,"Fontienne",4230]
[null,null,"Lardiers",4230]
[null,null,"Mallefougasse Auges",4230]
[null,null,"Montlaux",4230]
[null,null,"Ongles",4230]
[null,null,"Revest Saint Martin",4230]
[null,null,"Saint Etienne les Orgues",4230]
[null,null,"Annot",4240]
[null,null,"Braux",4240]
[null,null,"Le Fugeret",4240]
[null,null,"Meailles",4240]
[null,null,"Saint Benoit",4240]
[null,null,"Ubraye",4240]
[null,null,"Astoin",4250]
[null,null,"Bayons",4250]
[null,null,"Bellaffaire",4250]
[null,null,"Chateaufort",4250]
[null,null,"Clamensane",4250]
[null,null,"Esparron la Batie",4250]
[null,null,"Faucon du Caire",4250]
[null,null,"Gigors",4250]
[null,null,"La Motte du Caire",4250]
[null,null,"Le Caire",4250]
[null,null,"Melve",4250]
[null,null,"Nibles",4250]
[null,null,"Reynier",4250]
[null,null,"Turriers",4250]
[null,null,"Valavoire",4250]
[null,null,"Allos",4260]
[null,null,"La Foux d'Allos",4260]
[null,null,"Beynes",4270]
[null,null,"Bras d'Asse",4270]
[null,null,"Chabrieres",4270]
[null,null,"Chateauredon",4270]
[null,null,"Estoublon",4270]
[null,null,"Le Poil",4270]
[null,null,"Majastres",4270]
[null,null,"Mezel",4270]
[null,null,"Saint Jeannet",4270]
[null,null,"Saint Julien d'Asse",4270]
[null,null,"Trevans",4270]
[null,null,"Cereste",4280]
[null,null,"Salignac",4290]
[null,null,"Sourribes",4290]
[null,null,"Volonne",4290]
[null,null,"Dauphin",4300]
[null,null,"Forcalquier",4300]
[null,null,"Limans",4300]
[null,null,"Mane",4300]
[null,null,"Niozelles",4300]
[null,null,"Pierrerue",4300]
[null,null,"Saint Maime",4300]
[null,null,"Sigonce",4300]
[null,null,"Auges",4310]
[null,null,"Ganagobie",4310]
[null,null,"Peyruis",4310]
[null,null,"Castellet les Sausses",4320]
[null,null,"Entrevaux",4320]
[null,null,"Montblanc",4320]
[null,null,"Sausses",4320]
[null,null,"Val de Chalvagne",4320]
[null,null,"Villevieille",4320]
[null,null,"Barreme",4330]
[null,null,"Blieux",4330]
[null,null,"Chaudon Norante",4330]
[null,null,"Clumanc",4330]
[null,null,"Saint Jacques",4330]
[null,null,"Saint Lions",4330]
[null,null,"Senez",4330]
[null,null,"Tartonne",4330]
[null,null,"La Breole",4340]
[null,null,"Le Lauzet Ubaye",4340]
[null,null,"Meolans",4340]
[null,null,"Meolans Revel",4340]
[null,null,"Revel",4340]
[null,null,"Saint Vincent les Forts",4340]
[null,null,"Malijai",4350]
[null,null,"Moustiers Sainte Marie",4360]
[null,null,"Beauvezer",4370]
[null,null,"Colmars",4370]
[null,null,"Auribeau",4380]
[null,null,"Barras",4380]
[null,null,"Hautes Duves",4380]
[null,null,"La Perrusse",4380]
[null,null,"Le Castellard Melan",4380]
[null,null,"Melan",4380]
[null,null,"Thoard",4380]
[null,null,"Barcelonnette",4400]
[null,null,"Enchastrayes",4400]
[null,null,"Faucon de Barcelonnette",4400]
[null,null,"Fours",4400]
[null,null,"Le Sauze",4400]
[null,null,"Les Thuiles",4400]
[null,null,"Pra Loup",4400]
[null,null,"Saint Pons",4400]
[null,null,"Uvernet Fours",4400]
[null,null,"Puimoisson",4410]
[null,null,"Saint Jurs",4410]
[null,null,"Archail",4420]
[null,null,"Beaujeu",4420]
[null,null,"Blegiers",4420]
[null,null,"Draix",4420]
[null,null,"La Javie",4420]
[null,null,"Le Brusquet",4420]
[null,null,"Marcoux",4420]
[null,null,"Mariaud",4420]
[null,null,"Prads Haute Bleone",4420]
[null,null,"Saint Martin les Seynes",4460]
[null,null,"Selonnet",4460]
[null,null,"Montagnac Montpezat",4500]
[null,null,"Montpezat",4500]
[null,null,"Quinson",4500]
[null,null,"Riez",4500]
[null,null,"Roumoules",4500]
[null,null,"Saint Croix du Verdon",4500]
[null,null,"Saint Laurent du Verdon",4500]
[null,null,"Aiglun",4510]
[null,null,"Chenerilles",4510]
[null,null,"Espinouse",4510]
[null,null,"Le Chaffaut Saint Jurson",4510]
[null,null,"Mallemoisson",4510]
[null,null,"Mirabeau",4510]
[null,null,"La Condamine Chatelard",4530]
[null,null,"Saint Paul",4530]
[null,null,"Sainte Anne",4530]
[null,null,"Larche",4540]
[null,null,"Meyronnes",4540]
[null,null,"Albiosc",4550]
[null,null,"Allemagne en Provence",4550]
[null,null,"Esparron de Verdon",4550]
[null,null,"Montfort",4600]
[null,null,"Saint Auban",4600]
[null,null,"Villars Colmars",4640]
[null,null,"Champtercier",4660]
[null,null,"Entrevennes",4700]
[null,null,"La Brillanne",4700]
[null,null,"Le Castellet",4700]
[null,null,"Lurs",4700]
[null,null,"Oraison",4700]
[null,null,"Puimichel",4700]
[null,null,"Greoux les Bains",4800]
[null,null,"Saint Martin de Bromes",4800]
[null,null,"Jausiers",4850]
[null,null,"Pierrevert",4860]
[null,null,"Lincel",4870]
[null,null,"Saint Martin les Eaux",4870]
[null,null,"Saint Michel l'Observatoire",4870]
[null,null,"Chateauvieux",5000]
[null,null,"Gap",5000]
[null,null,"La Batie Vieille",5000]
[null,null,"La Freissinouse",5000]
[null,null,"La Rochette",5000]
[null,null,"Neffes",5000]
[null,null,"Pelleautier",5000]
[null,null,"Rambaud",5000]
[null,null,"Romette",5000]
[null,null,"Briancon",5100]
[null,null,"Cervieres",5100]
[null,null,"Montgenevre",5100]
[null,null,"Nevache",5100]
[null,null,"Puy Saint Andre",5100]
[null,null,"Puy Saint Pierre",5100]
[null,null,"Val des Pres",5100]
[null,null,"Villar Saint Pancrace",5100]
[null,null,"Barcillonnette",5110]
[null,null,"Claret",5110]
[null,null,"Curbans",5110]
[null,null,"Esparron",5110]
[null,null,"La Saulce",5110]
[null,null,"Lardier et Valenca",5110]
[null,null,"Monetier Allemont",5110]
[null,null,"Vitrolles",5110]
[null,null,"L Argentiere la Bessee",5120]
[null,null,"Les Vigneaux",5120]
[null,null,"Saint Martin de Queyriere",5120]
[null,null,"Fouillouse",5130]
[null,null,"Jarjayes",5130]
[null,null,"Lettret",5130]
[null,null,"Piegut",5130]
[null,null,"Saint Etienne le Laus",5130]
[null,null,"Sigoyer",5130]
[null,null,"Tallard",5130]
[null,null,"Valserres",5130]
[null,null,"Venterol",5130]
[null,null,"Aspremont",5140]
[null,null,"Aspres sur Buech",5140]
[null,null,"La Beaume",5140]
[null,null,"La Faurie",5140]
[null,null,"La Haute Beaume",5140]
[null,null,"La Vallette",5140]
[null,null,"Montbrand",5140]
[null,null,"Saint Julien en Beauchene",5140]
[null,null,"Saint Pierre d'Argencon",5140]
[null,null,"Bruis",5150]
[null,null,"Montjay",5150]
[null,null,"Montmorin",5150]
[null,null,"Moydans",5150]
[null,null,"Ribeyret",5150]
[null,null,"Rosans",5150]
[null,null,"Saint Andre de Rosans",5150]
[null,null,"Sainte Marie",5150]
[null,null,"Sorbiers",5150]
[null,null,"Le Sauze du Lac",5160]
[null,null,"Pontis",5160]
[null,null,"Reallon",5160]
[null,null,"Saint Apollinaire",5160]
[null,null,"Savines le Lac",5160]
[null,null,"Merlette",5170]
[null,null,"Orcieres",5170]
[null,null,"Breziers",5190]
[null,null,"Espinasses",5190]
[null,null,"Remollon",5190]
[null,null,"Rochebrune",5190]
[null,null,"Rousset",5190]
[null,null,"Theus",5190]
[null,null,"Baratier",5200]
[null,null,"Crevoux",5200]
[null,null,"Crots",5200]
[null,null,"Embrun",5200]
[null,null,"Les Orres",5200]
[null,null,"Puy Saint Eusebe",5200]
[null,null,"Puy Sanieres",5200]
[null,null,"Saint Andre d'Embrun",5200]
[null,null,"Saint Sauveur",5200]
[null,null,"Le Monetier les Bains",5220]
[null,null,"Avancon",5230]
[null,null,"Chorges",5230]
[null,null,"La Batie Neuve",5230]
[null,null,"Montgardin",5230]
[null,null,"Prunieres",5230]
[null,null,"La Salle les Alpes",5240]
[null,null,"Serre Chevalier",5240]
[null,null,"Agnieres en Devoluy",5250]
[null,null,"La Cluse",5250]
[null,null,"Saint Disdier",5250]
[null,null,"Saint Etienne en Devoluy",5250]
[null,null,"Superdevoluy",5250]
[null,null,"Ancelle",5260]
[null,null,"Chabottes",5260]
[null,null,"Champoleon",5260]
[null,null,"Forest Saint Julien",5260]
[null,null,"Le Pont du Fosse",5260]
[null,null,"Saint Jean Saint Nicolas",5260]
[null,null,"Saint Leger les Melezes",5260]
[null,null,"Saint Michel de Chaillol",5260]
[null,null,"Puy Saint Vincent",5290]
[null,null,"Vallouise",5290]
[null,null,"Antonaves",5300]
[null,null,"Barret le Bas",5300]
[null,null,"Chateauneuf de Chabre",5300]
[null,null,"Eyguians",5300]
[null,null,"Lagrand",5300]
[null,null,"Laragne Monteglin",5300]
[null,null,"Lazer",5300]
[null,null,"Le Poet",5300]
[null,null,"Ribiers",5300]
[null,null,"Saint Genis",5300]
[null,null,"Saint Pierre Avez",5300]
[null,null,"Saleon",5300]
[null,null,"Salerans",5300]
[null,null,"Upaix",5300]
[null,null,"Ventavon",5300]
[null,null,"Champcella",5310]
[null,null,"Freissinieres",5310]
[null,null,"La Roche de Rame",5310]
[null,null,"La Grave",5320]
[null,null,"Saint Chaffrey",5330]
[null,null,"Serre Chevalier",5330]
[null,null,"Ailefroide",5340]
[null,null,"Pelvoux",5340]
[null,null,"Arvieux",5350]
[null,null,"Chateau Queyras",5350]
[null,null,"Chateau Ville Vieille",5350]
[null,null,"Molines en Queyras",5350]
[null,null,"Saint Veran",5350]
[null,null,"Chateauroux",5380]
[null,null,"Chabestan",5400]
[null,null,"Chateauneuf d'Oze",5400]
[null,null,"Furmeyer",5400]
[null,null,"La Roche des Arnauds",5400]
[null,null,"Le Saix",5400]
[null,null,"Manteyer",5400]
[null,null,"Montmaur",5400]
[null,null,"Oze",5400]
[null,null,"Rabou",5400]
[null,null,"Saint Auban d'Oze",5400]
[null,null,"Veynes",5400]
[null,null,"Abries",5460]
[null,null,"Chateau Ville Vieille",5460]
[null,null,"Ristolas",5460]
[null,null,"Aiguilles",5470]
[null,null,"Chateau Ville Vieille",5470]
[null,null,"Ceillac",5600]
[null,null,"Saint Crepin",5600]
[null,null,"Sigottier",5700]
[null,null,"Mandelieu la Napoule",6210]
[null,null,"Nice",6300]
[null,null,"Eze",6360]
[null,null,"La Brigue",6430]
[null,null,"Saint Vallier de Thiey",6460]
[null,null,"Peone",6470]
[null,null,"Le Tignet",6530]
[null,null,"La Fontonne",6600]
[null,null,"Caille",6750]
[null,null,"Cuebris",6910]
[null,null,"Sigale",6910]
[null,null,"Joannas",7110]
[null,null,"Saint Alban Auriolles",7120]
[null,null,"Brahic",7140]
[null,null,"Vagnas",7150]
[null,null,"Saint Genesaint Lachamp",7190]
[null,null,"Saint Etienne de Boulogne",7200]
[null,null,"Viviers",7220]
[null,null,"Saint Julien le Roux",7240]
[null,null,"Le Crestet",7270]
[null,null,"Tournon sur Rhone",7300]
[null,null,"Saint Martial",7310]
[null,null,"Peyraud",7340]
[null,null,"Rochemaure",7400]
[null,null,"Saint Cyr",7430]
[null,null,"Le Lac d'Issarles",7470]
[null,null,"Aizac",7530]
[null,null,"Le Plagnal",7590]
[null,null,"Saint Andre en Vivarais",7690]
[null,null,"Saint Martin d'Ardeche",7700]
[null,null,"Damouzy",8090]
[null,null,"Williers",8110]
[null,null,"Saint Lambert et Mont de Jeu",8130]
[null,null,"L Echelle",8150]
[null,null,"Rouvroy sur Audry",8150]
[null,null,"Vendresse",8160]
[null,null,"Sault Saint Remy",8190]
[null,null,"Sedan",8200]
[null,null,"La Romagne",8220]
[null,null,"Gue d'Hossus",8230]
[null,null,"Sivry les Buzancy",8240]
[null,null,"Montcheutin",8250]
[null,null,"Vaux les Mouron",8250]
[null,null,"Faissault",8270]
[null,null,"Wignicourt",8270]
[null,null,"Rumigny",8290]
[null,null,"Perthes",8300]
[null,null,"Dricourt",8310]
[null,null,"Saint Fergeux",8360]
[null,null,"Neuville Lez Beaulieu",8380]
[null,null,"Louvergny",8390]
[null,null,"Liry",8400]
[null,null,"Boulzicourt",8410]
[null,null,"Guignicourt sur Vence",8430]
[null,null,"Lumes",8440]
[null,null,"Remilly Aillicourt",8450]
[null,null,"Les Hauts Buttes",8800]
[null,null,"Pradieres",9000]
[null,null,"Soula",9000]
[null,null,"Unzent",9100]
[null,null,"Gudas",9120]
[null,null,"Varilhes",9120]
[null,null,"Sentenac d'Oust",9140]
[null,null,"Lezat sur Leze",9210]
[null,null,"Fabas",9230]
[null,null,"Axiat",9250]
[null,null,"Luzenac",9250]
[null,null,"Pereille",9300]
[null,null,"Verdun",9310]
[null,null,"Campagne sur Arize",9350]
[null,null,"Genat",9400]
[null,null,"Lagarde",9500]
[null,null,"Vivies",9500]
[null,null,"Laroque d'Olmes",9600]
[null,null,"Montaut",9700]
[null,null,"Saint Jean du Castillonnais",9800]
[null,null,"Bar sur Seine",10110]
[null,null,"Fralignes",10110]
[null,null,"Bernon",10130]
[null,null,"Mesnil Saint Pere",10140]
[null,null,"Lavau",10150]
[null,null,"Aix en Othe",10160]
[null,null,"Mery sur Seine",10170]
[null,null,"Arsonval",10200]
[null,null,"Lignol le Chateau",10200]
[null,null,"Urville",10200]
[null,null,"Prusy",10210]
[null,null,"Magnicourt",10240]
[null,null,"Montceaux les Vaudes",10260]
[null,null,"Courteranges",10270]
[null,null,"Pouy sur Vannes",10290]
[null,null,"Sommeval",10320]
[null,null,"Bagneux la Fosse",10340]
[null,null,"Cunfin",10360]
[null,null,"La Motte Tilly",10400]
[null,null,"Torvilliers",10440]
[null,null,"Lassicourt",10500]
[null,null,"Perthes les Brienne",10500]
[null,null,"La Chapelle Saint Luc",10600]
[null,null,"Semoine",10700]
[null,null,"Moussey",10800]
[null,null,"Grezes Herminis",11090]
[null,null,"Sigean",11130]
[null,null,"Puilaurens",11140]
[null,null,"Alzonne",11170]
[null,null,"Raissac sur Lampy",11170]
[null,null,"Fourtou",11190]
[null,null,"Port la Nouvelle",11210]
[null,null,"Ribaute",11220]
[null,null,"Courtauly",11230]
[null,null,"Mazerolles du Razes",11240]
[null,null,"Esperaza",11260]
[null,null,"Lavalette",11290]
[null,null,"Brugairolles",11300]
[null,null,"Montferrand",11320]
[null,null,"Montgaillard",11330]
[null,null,"Camurac",11340]
[null,null,"Fontjoncouse",11360]
[null,null,"La Pomarede",11400]
[null,null,"Gourvieille",11410]
[null,null,"Gruissan Plage",11430]
[null,null,"Treilles",11510]
[null,null,"Villefloure",11570]
[null,null,"Villegailhenc",11600]
[null,null,"Comigne",11700]
[null,null,"Laure Minervois",11800]
[null,null,"Comps la Grand Ville",12120]
[null,null,"Saint Hippolyte",12140]
[null,null,"Gramond",12160]
[null,null,"Soulages Bonneval",12210]
[null,null,"L Hospitalet du Larzac",12230]
[null,null,"Saint Igest",12260]
[null,null,"Lunac",12270]
[null,null,"Saint Parthem",12300]
[null,null,"Bozouls",12340]
[null,null,"Peux et Couffouleux",12360]
[null,null,"Laval Roqueceziere",12380]
[null,null,"La Salvetat Peyrales",12440]
[null,null,"Montezic",12460]
[null,null,"Aguessac",12520]
[null,null,"Marnhagues et Latour",12540]
[null,null,"Saint Laurent de Levezou",12620]
[null,null,"Vezins de Levezou",12780]
[null,null,"Marseille 5Eme Arrondissement",13005]
[null,null,"La Valentine",13011]
[null,null,"Vernegues",13116]
[null,null,"Peypin",13124]
[null,null,"Septemes les Vallons",13240]
[null,null,"Moules",13280]
[null,null,"Stes Maries de la Mer",13460]
[null,null,"La Fare les Oliviers",13580]
[null,null,"Pas des Lanciers",13700]
[null,null,"Le Douard",13740]
[null,null,"Sausset les Pins",13960]
[null,null,"L Hotellerie",14100]
[null,null,"Cricqueboeuf",14113]
[null,null,"Tracy sur Mer",14117]
[null,null,"Reux",14130]
[null,null,"La Croupte",14140]
[null,null,"Saint Germain Montgommery",14140]
[null,null,"Grangues",14160]
[null,null,"Vaudeloges",14170]
[null,null,"Urville",14190]
[null,null,"Preaux Bocage",14210]
[null,null,"Moulines",14220]
[null,null,"Saint Martin de Sallen",14220]
[null,null,"Feuguerolles sur Seulles",14240]
[null,null,"Audrieu",14250]
[null,null,"Saint Vaasaint sur Seulles",14250]
[null,null,"Magny la Campagne",14270]
[null,null,"La Chapelle Yvon",14290]
[null,null,"Saint Louet sur Seulles",14310]
[null,null,"Saonnet",14330]
[null,null,"Corbon",14340]
[null,null,"Saint Pair du Mont",14340]
[null,null,"Le Tourneur",14350]
[null,null,"Argences",14370]
[null,null,"Sainte Marie Outre l'Eau",14380]
[null,null,"Magny en Bessin",14400]
[null,null,"Estry",14410]
[null,null,"Danestal",14430]
[null,null,"Putot en Auge",14430]
[null,null,"Coulombs",14480]
[null,null,"Noron la Poterie",14490]
[null,null,"Saint Germain Tallevende",14500]
[null,null,"Saint Lambert",14570]
[null,null,"Cambes en Plaine",14610]
[null,null,"Carpiquet",14650]
[null,null,"Pierrepont",14690]
[null,null,"Fourneaux le Val",14700]
[null,null,"Colombieres",14710]
[null,null,"Le Mesnil Patry",14740]
[null,null,"Danvou la Ferriere",14770]
[null,null,"Demouville",14840]
[null,null,"Saint Etienne la Thillaye",14950]
[null,null,"Saint Georges",15100]
[null,null,"Vedrines Saint Loup",15100]
[null,null,"Arpajon sur Cere",15130]
[null,null,"Saint Cirgues de Malbert",15140]
[null,null,"Saint Gerons",15150]
[null,null,"Ferrieres Saint Mary",15170]
[null,null,"Madic",15210]
[null,null,"Saignes",15240]
[null,null,"Cayrols",15290]
[null,null,"Pers",15290]
[null,null,"Clavieres",15320]
[null,null,"Cheylade",15400]
[null,null,"Chapelle Laurent",15500]
[null,null,"Lascelle",15590]
[null,null,"Pleaux",15700]
[null,null,"La Rochette",16110]
[null,null,"Saint Simeux",16120]
[null,null,"Fouqueure",16140]
[null,null,"Mons",16140]
[null,null,"Echallat",16170]
[null,null,"Deviat",16190]
[null,null,"Foussignac",16200]
[null,null,"Sainte Marie",16210]
[null,null,"Mansle",16230]
[null,null,"Theil Rabier",16240]
[null,null,"La Tache",16260]
[null,null,"Nieuil",16270]
[null,null,"Montchaude",16300]
[null,null,"Mouzon",16310]
[null,null,"Ronsenac",16320]
[null,null,"Cherves Richemont",16370]
[null,null,"Saint Severin",16390]
[null,null,"Mouthiers sur Boeme",16440]
[null,null,"Valence",16460]
[null,null,"Guizengeard",16480]
[null,null,"Saint Germain de Confolens",16500]
[null,null,"Mornac",16600]
[null,null,"Poursac",16700]
[null,null,"Venerand",17100]
[null,null,"Chamouillac",17130]
[null,null,"Meschers sur Gironde",17132]
[null,null,"Saint Martial de Mirambeau",17150]
[null,null,"Brie sous Matha",17160]
[null,null,"Boyardville",17190]
[null,null,"Bedenac",17210]
[null,null,"La Jarne",17220]
[null,null,"Saint Dizant du Gua",17240]
[null,null,"Trizay",17250]
[null,null,"Ballon",17290]
[null,null,"Coivert",17330]
[null,null,"Saint Martin de la Coudre",17330]
[null,null,"Grandjean",17350]
[null,null,"Courcelles",17400]
[null,null,"La Chapelle Baton",17400]
[null,null,"Saint Coutant le Grand",17430]
[null,null,"Loire sur Nie",17470]
[null,null,"Guitinieres",17500]
[null,null,"Saint Maurice de Tavernole",17500]
[null,null,"Seigne",17510]
[null,null,"Saint Eugene",17520]
[null,null,"Saint Sornin",17600]
[null,null,"Chaniers",17610]
[null,null,"Saint Pierre d'Amilly",17700]
[null,null,"Saint Cesaire",17770]
[null,null,"Saint Quantin de Rancanne",17800]
[null,null,"Chaillevette",17890]
[null,null,"Quantilly",18110]
[null,null,"Chaumoux Marcilly",18140]
[null,null,"La Chapelle Hugon",18150]
[null,null,"Chezal Benoit",18160]
[null,null,"Crezancay sur Cher",18190]
[null,null,"Saint Georges de Poisieux",18200]
[null,null,"Santranges",18240]
[null,null,"Concressault",18260]
[null,null,"Sidiailles",18270]
[null,null,"Saint Outrille",18310]
[null,null,"Lissay Lochy",18340]
[null,null,"Vorly",18340]
[null,null,"Saint Vitte",18360]
[null,null,"Argent sur Sauldre",18410]
[null,null,"Saint Aignan des Noyers",18600]
[null,null,"Farges en Septaine",18800]
[null,null,"Astaillac",19120]
[null,null,"Cornil",19150]
[null,null,"Saint Hilaire Luc",19160]
[null,null,"L Eglise aux Bois",19170]
[null,null,"Palazinges",19190]
[null,null,"Saint Julien le Vendomois",19210]
[null,null,"Meymac",19250]
[null,null,"Sainte Fereole",19270]
[null,null,"Saint Yrieix le Dejalat",19300]
[null,null,"Saint Germain les Vergnes",19330]
[null,null,"Chamberet",19370]
[null,null,"Saint Sylvain",19380]
[null,null,"Camps Saint Mathurin Leobaze",19430]
[null,null,"Saint Bazile de Meyssac",19500]
[null,null,"Lagrauliere",19700]
[null,null,"Meyrignac l'Eglise",19800]
[null,null,"Mela",20112]
[null,null,"Zonza",20124]
[null,null,"Tasso",20134]
[null,null,"Argiusta Moriccio",20140]
[null,null,"Solenzara",20145]
[null,null,"Loreto Di Tallano",20165]
[null,null,"Santa Maria Siche",20190]
[null,null,"Ville Di Pietrabugno",20200]
[null,null,"Montemaggiore",20214]
[null,null,"Lama",20218]
[null,null,"Pigna",20220]
[null,null,"Valle Di Campoloro",20221]
[null,null,"Muro",20225]
[null,null,"Figaretto",20230]
[null,null,"Novale",20234]
[null,null,"Valle d'Alesani",20234]
[null,null,"Lugo Di Nazza",20240]
[null,null,"Lano",20244]
[null,null,"Piedicorte Di Gaggio",20251]
[null,null,"Patrimonio",20253]
[null,null,"Zuani",20272]
[null,null,"Ortiporio",20290]
[null,null,"Fauverney",21110]
[null,null,"Longeault",21110]
[null,null,"Lux",21120]
[null,null,"Athee",21130]
[null,null,"Massingy les Semur",21140]
[null,null,"Vic de Chassenay",21140]
[null,null,"Charrey sur Saone",21170]
[null,null,"Corpeau",21190]
[null,null,"Meursanges",21200]
[null,null,"Champeau en Morvan",21210]
[null,null,"Fixin",21220]
[null,null,"Foissy",21230]
[null,null,"Saint Prix les Arnay",21230]
[null,null,"Pouilly sur Saone",21250]
[null,null,"Vielverge",21270]
[null,null,"Terrefondree",21290]
[null,null,"Savolles",21310]
[null,null,"Arconcey",21320]
[null,null,"Bissey la Pierre",21330]
[null,null,"Change",21340]
[null,null,"Arnay sous Vitteaux",21350]
[null,null,"Villeferry",21350]
[null,null,"Prenois",21370]
[null,null,"Montigny Saint Barthelemy",21390]
[null,null,"Montliot et Courcelles",21400]
[null,null,"Vannaire",21400]
[null,null,"Aloxe Corton",21420]
[null,null,"Vianges",21430]
[null,null,"Saint Seine l'Abbaye",21440]
[null,null,"Courcelles Fremoy",21460]
[null,null,"Eringes",21500]
[null,null,"Villaines les Prevotes",21500]
[null,null,"Gevrolles",21520]
[null,null,"Rouvray",21530]
[null,null,"Turcey",21540]
[null,null,"Busserotte Montenaille",21580]
[null,null,"Bourberain",21610]
[null,null,"Saint Germain Source Seine",21690]
[null,null,"Vosne Romanee",21700]
[null,null,"Calorguen",22100]
[null,null,"Plounevez Quintin",22110]
[null,null,"Saint Rene Hillion",22120]
[null,null,"Prat",22140]
[null,null,"Carnoet",22160]
[null,null,"Plerneuf",22170]
[null,null,"La Ferriere",22210]
[null,null,"Tremeur",22250]
[null,null,"Goudelin",22290]
[null,null,"Ploulec H",22300]
[null,null,"Plufur",22310]
[null,null,"Trebrivan",22340]
[null,null,"Notre Dame du Guildo",22380]
[null,null,"Morieux",22400]
[null,null,"Les Hopitaux",22430]
[null,null,"Peumerit Quintin",22480]
[null,null,"Saint Trimoel",22510]
[null,null,"Pleumeur Bodou",22560]
[null,null,"Saint Igeaux",22570]
[null,null,"Ploubazlanec",22620]
[null,null,"Pleudihen sur Rance",22690]
[null,null,"Plesidy",22720]
[null,null,"Plaine Haute",22800]
[null,null,"Vilde Guingalan",22980]
[null,null,"La Courtine",23100]
[null,null,"Saint Chabrais",23130]
[null,null,"Pionnat",23140]
[null,null,"Saint Sebastien",23160]
[null,null,"Aubusson",23200]
[null,null,"Saint Maixant",23200]
[null,null,"Moutier Malcard",23220]
[null,null,"Magnat l'Etrange",23260]
[null,null,"Le Dognon",23300]
[null,null,"Nouziers",23350]
[null,null,"Bosmoreau les Mines",23400]
[null,null,"Royere de Vassiviere",23460]
[null,null,"Poussanges",23500]
[null,null,"Saint Marien",23600]
[null,null,"La Celle Dunoise",23800]
[null,null,"Terrasson la Villedieu",24120]
[null,null,"Maurens",24140]
[null,null,"Saint Jean d'Estissac",24140]
[null,null,"Genis",24160]
[null,null,"Saint Germain de Belves",24170]
[null,null,"Carsac Aillac",24200]
[null,null,"Gabillou",24210]
[null,null,"Lamothe Montravel",24230]
[null,null,"Daglan",24250]
[null,null,"Savignac de Miremont",24260]
[null,null,"Payzac",24270]
[null,null,"Saint Front la Riviere",24300]
[null,null,"Champagne et Fontaine",24320]
[null,null,"Bassilac",24330]
[null,null,"Les Graulges",24340]
[null,null,"Bussiere Badil",24360]
[null,null,"Saint Amand de Vergt",24380]
[null,null,"Eglise Neuve d'Issac",24400]
[null,null,"Saint Privat des Pres",24410]
[null,null,"Saint Vincent sur l'Isle",24420]
[null,null,"Mialet",24450]
[null,null,"Bouillac",24480]
[null,null,"Saint Julien d'Eymet",24500]
[null,null,"Condat sur Trincou",24530]
[null,null,"Loubejac",24550]
[null,null,"Saint Cernin de Labarde",24560]
[null,null,"Chassaignes",24600]
[null,null,"Segonzac",24600]
[null,null,"Le Change",24640]
[null,null,"Moulin Neuf",24700]
[null,null,"Lempzours",24800]
[null,null,"Guillon les Bains",25110]
[null,null,"Les Breseux",25120]
[null,null,"Villars sous Ecot",25150]
[null,null,"Cordiron",25170]
[null,null,"Mazerolles le Salin",25170]
[null,null,"Peseux",25190]
[null,null,"Vernois le Fol",25190]
[null,null,"Narbief",25210]
[null,null,"Petite Chaux",25240]
[null,null,"Mancenans",25250]
[null,null,"Villeneuve d'Amont",25270]
[null,null,"Sainte Colombe",25300]
[null,null,"Roches les Blamont",25310]
[null,null,"Eternoz",25330]
[null,null,"Refranche",25330]
[null,null,"Saint Georges Armont",25340]
[null,null,"Les Hopitaux Neufs",25370]
[null,null,"Surmont",25380]
[null,null,"Roset Fluans",25410]
[null,null,"Vellerot les Belvoir",25430]
[null,null,"Chatillon sur Lison",25440]
[null,null,"Etupes",25460]
[null,null,"Fessevillers",25470]
[null,null,"Montlebon",25500]
[null,null,"Courtetain et Salans",25530]
[null,null,"Saint Julien les Montbeliard",25550]
[null,null,"Chasnans",25580]
[null,null,"Villers sous Montrond",25620]
[null,null,"Germondans",25640]
[null,null,"Montflovin",25650]
[null,null,"Merey sous Montrond",25660]
[null,null,"Nans",25680]
[null,null,"Desandans",25750]
[null,null,"Chatillon le Duc",25870]
[null,null,"Mouthier Haute Pierre",25920]
[null,null,"Chateaudouble",26120]
[null,null,"Montsegur sur Lauzon",26130]
[null,null,"Eyzahut",26160]
[null,null,"Merindol les Oliviers",26170]
[null,null,"Montauban sur l'Ouveze",26170]
[null,null,"Epinouze",26210]
[null,null,"Grignan",26230]
[null,null,"Saint Vallier",26240]
[null,null,"Marches",26300]
[null,null,"Les Pres",26310]
[null,null,"Rimon et Savel",26340]
[null,null,"Beaufort sur Gervanne",26400]
[null,null,"Francillon sur Roubion",26400]
[null,null,"Ravel et Ferriers",26410]
[null,null,"Roynac",26450]
[null,null,"La Motte Chalancon",26470]
[null,null,"Montfroc",26560]
[null,null,"Granges les Beaumont",26600]
[null,null,"Savasse",26740]
[null,null,"Allan",26780]
[null,null,"Tulette",26790]
[null,null,"Epreville Pres le Neubour",27110]
[null,null,"Sainte Colombe la Commanderi",27110]
[null,null,"Gadencourt",27120]
[null,null,"Boisemont",27150]
[null,null,"Sainte Marie de Vatimesnil",27150]
[null,null,"Berville la Campagne",27170]
[null,null,"Saint Sebastien de Morsent",27180]
[null,null,"Ferrieres Haut Clocher",27190]
[null,null,"Conteville",27210]
[null,null,"Saint Pierre du Val",27210]
[null,null,"Lignerolles",27220]
[null,null,"Saint Germain la Campagne",27230]
[null,null,"Roman",27240]
[null,null,"Fresne Cauverville",27260]
[null,null,"Appeville Annebault",27290]
[null,null,"Saint Philbert sur Risle",27290]
[null,null,"Saint Aubin le Vertueux",27300]
[null,null,"Champignolles",27330]
[null,null,"Saint Pierre du Mesnil",27330]
[null,null,"La Saussaye",27370]
[null,null,"Douville sur Andelle",27380]
[null,null,"Heudebouville",27400]
[null,null,"Beaumesnil",27410]
[null,null,"Authevernes",27420]
[null,null,"Muids",27430]
[null,null,"Authouillet",27490]
[null,null,"Fontaine Heudebourg",27490]
[null,null,"Guitry",27510]
[null,null,"Nassandres",27550]
[null,null,"Fontaine Bellenger",27600]
[null,null,"Ecos",27630]
[null,null,"Bernouville",27660]
[null,null,"Guerny",27720]
[null,null,"Brionne",27800]
[null,null,"Harcourt",27800]
[null,null,"La Neuville du Bosc",27890]
[null,null,"La Trinite",27930]
[null,null,"La Heuniere",27950]
[null,null,"Marcheville",28120]
[null,null,"Saint Avit les Guespieres",28120]
[null,null,"Poupry",28140]
[null,null,"Rouvray Saint Florentin",28150]
[null,null,"Villeau",28150]
[null,null,"Favieres",28170]
[null,null,"Orrouer",28190]
[null,null,"Saint Cloud en Dunois",28200]
[null,null,"Autheuil",28220]
[null,null,"Montigny le Gannelon",28220]
[null,null,"Senonches",28250]
[null,null,"La Manceliere",28270]
[null,null,"Mainterne",28270]
[null,null,"Fresnay le Gilmert",28300]
[null,null,"Rouvray Saint Denis",28310]
[null,null,"Boissy les Perche",28340]
[null,null,"Brunelles",28400]
[null,null,"Trizay Coutretot Saint Serge",28400]
[null,null,"Cherisy",28500]
[null,null,"Bercheres sur Vesgre",28560]
[null,null,"Luisant",28600]
[null,null,"Le Gue de Longroi",28700]
[null,null,"Bullainville",28800]
[null,null,"Treboul",29100]
[null,null,"Morgat",29160]
[null,null,"Gouezec",29190]
[null,null,"Lesneven",29260]
[null,null,"Arzano",29300]
[null,null,"Mellac",29300]
[null,null,"Plougourvest",29400]
[null,null,"Trezilide",29440]
[null,null,"Chateauneuf du Faou",29520]
[null,null,"Camaret sur Mer",29570]
[null,null,"Sainte Seve",29600]
[null,null,"La Feuillee",29690]
[null,null,"Loctudy",29750]
[null,null,"Audierne",29770]
[null,null,"Lampaul Plouarzel",29810]
[null,null,"Landeda",29870]
[null,null,"Ile de Sein",29990]
[null,null,"Aveze",30120]
[null,null,"L Estrechure",30124]
[null,null,"Saint Genies de Comolas",30150]
[null,null,"Aubussargues",30190]
[null,null,"Brignon",30190]
[null,null,"Saint Laurent de Carnols",30200]
[null,null,"Aubais",30250]
[null,null,"Saint Clement",30260]
[null,null,"Poulx",30320]
[null,null,"Tresques",30330]
[null,null,"Saint Cesaire de Gauzignan",30360]
[null,null,"Rivieres",30430]
[null,null,"Saint Privat de Champclos",30430]
[null,null,"Saint Croix de Caderle",30460]
[null,null,"Saint Andre de Majencoules",30570]
[null,null,"Uchaud",30620]
[null,null,"Aigues Vives",30670]
[null,null,"Sanilhac Sagries",30700]
[null,null,"Blandas",30770]
[null,null,"Toulouse",31000]
[null,null,"Artigue",31110]
[null,null,"Portet de Luchon",31110]
[null,null,"Saint Loup Cammas",31140]
[null,null,"Moncaup",31160]
[null,null,"Rouffiac Tolosan",31180]
[null,null,"Toulouse",31200]
[null,null,"Saint Julien",31220]
[null,null,"Molas",31230]
[null,null,"Puymaurin",31230]
[null,null,"Mazeres sur Salat",31260]
[null,null,"Saint Rome",31290]
[null,null,"Auzeville Tolosane",31320]
[null,null,"Larra",31330]
[null,null,"Cardeilhac",31350]
[null,null,"Le Frechet",31360]
[null,null,"Rieumes",31370]
[null,null,"Gemil",31380]
[null,null,"Salles sur Garonne",31390]
[null,null,"Saint Elix Seglan",31420]
[null,null,"Burgalays",31440]
[null,null,"Gaud",31440]
[null,null,"Issus",31450]
[null,null,"Saussens",31460]
[null,null,"Garac",31480]
[null,null,"Brax",31490]
[null,null,"Mont de Galie",31510]
[null,null,"Saint Felix Lauragais",31540]
[null,null,"Cazaril Tamboures",31580]
[null,null,"Bonrepos Riquet",31590]
[null,null,"Gargas",31620]
[null,null,"Lalouret Laffiteau",31800]
[null,null,"Aussonne",31840]
[null,null,"Villate",31860]
[null,null,"Augnax",32120]
[null,null,"Saint Bres",32120]
[null,null,"Cabas Loumasses",32140]
[null,null,"Masseube",32140]
[null,null,"Barcugnan",32170]
[null,null,"Castillon Debats",32190]
[null,null,"Saint Andre",32200]
[null,null,"Gaujac",32220]
[null,null,"Saint Justin",32230]
[null,null,"Monlezun d'Armagnac",32240]
[null,null,"Orbessan",32260]
[null,null,"Bouzon Gellenave",32290]
[null,null,"Montaut",32300]
[null,null,"Saint Puy",32310]
[null,null,"Le Brouilh Monbert",32350]
[null,null,"Jegun",32360]
[null,null,"Rejaumont",32390]
[null,null,"Maumusson Laguian",32400]
[null,null,"Tarsac",32400]
[null,null,"Simorre",32420]
[null,null,"Traverseres",32450]
[null,null,"Goutz",32500]
[null,null,"Razengues",32600]
[null,null,"Pergain Taillac",32700]
[null,null,"Montaut les Creneaux",32810]
[null,null,"Le Verdon sur Mer",33123]
[null,null,"Lados",33124]
[null,null,"Villegouge",33141]
[null,null,"Lamothe Landerron",33190]
[null,null,"Bommes",33210]
[null,null,"Saint Andre et Appelles",33220]
[null,null,"Abzac",33230]
[null,null,"Saint Romain la Virvee",33240]
[null,null,"Eysines",33320]
[null,null,"Saint Hippolyte",33330]
[null,null,"Castillon la Bataille",33350]
[null,null,"Bonnetan",33370]
[null,null,"Cars",33390]
[null,null,"Cadillac",33410]
[null,null,"Lugaignac",33420]
[null,null,"Saint Sulpice et Cameyrac",33450]
[null,null,"Saint Andre du Bois",33490]
[null,null,"Saint Martial",33490]
[null,null,"Daubeze",33540]
[null,null,"Lussac",33570]
[null,null,"Rimons",33580]
[null,null,"Cestas",33610]
[null,null,"Saint Morillon",33650]
[null,null,"Grignols",33690]
[null,null,"Samonac",33710]
[null,null,"Cadarsac",33750]
[null,null,"Baigneaux",33760]
[null,null,"Cazaugitat",33790]
[null,null,"Saint Ciers sur Gironde",33820]
[null,null,"Marcillac",33860]
[null,null,"Saint Savin",33920]
[null,null,"Candillargues",34130]
[null,null,"Castries",34160]
[null,null,"Moules et Baucels",34190]
[null,null,"Beaufort",34210]
[null,null,"Campagnan",34230]
[null,null,"Combes",34240]
[null,null,"Saint Jean de Cuculles",34270]
[null,null,"Montady",34310]
[null,null,"Babeau Bouldoux",34360]
[null,null,"Viols le Fort",34380]
[null,null,"Serignan",34410]
[null,null,"Cessenon sur Orb",34460]
[null,null,"La Vacquerie et Saint Martin",34520]
[null,null,"Balaruc les Bains",34540]
[null,null,"Le Poujol sur Orb",34600]
[null,null,"Baillargues",34670]
[null,null,"Vendargues",34740]
[null,null,"Octon",34800]
[null,null,"Saint Gely du Fesc",34980]
[null,null,"Broualan",35120]
[null,null,"Pont Pean",35131]
[null,null,"Le Chatellier",35133]
[null,null,"Mezieres sur Couesnon",35140]
[null,null,"Talensac",35160]
[null,null,"Saint Didier",35220]
[null,null,"Saint Medard sur Ille",35250]
[null,null,"Breal sous Montfort",35310]
[null,null,"Pance",35320]
[null,null,"Landujan",35360]
[null,null,"Gennes sur Seiche",35370]
[null,null,"Chateaugiron",35410]
[null,null,"Guipel",35440]
[null,null,"Sens de Bretagne",35490]
[null,null,"Servon sur Vilaine",35530]
[null,null,"Rimou",35560]
[null,null,"Saint Gilles",35590]
[null,null,"Vignoc",35630]
[null,null,"Moulins",35680]
[null,null,"Saint Malon sur Mel",35750]
[null,null,"Chateauroux",36000]
[null,null,"Saint Martin de Lamps",36110]
[null,null,"Lourdoueix Saint Michel",36140]
[null,null,"Feusines",36160]
[null,null,"Mouhet",36170]
[null,null,"Celon",36200]
[null,null,"Poulaines",36210]
[null,null,"Buxieres d'Aillac",36230]
[null,null,"Reuilly",36260]
[null,null,"Bonneuil",36310]
[null,null,"Briantes",36400]
[null,null,"Neuillay les Bois",36500]
[null,null,"Fontguenand",36600]
[null,null,"Nuret le Ferron",36800]
[null,null,"Le Boulay",37110]
[null,null,"La Tour Saint Gelin",37120]
[null,null,"Restigne",37140]
[null,null,"Sache",37190]
[null,null,"Fondettes",37230]
[null,null,"Thilouze",37260]
[null,null,"Boussay",37290]
[null,null,"Saint Branchs",37320]
[null,null,"Villiers au Bouin",37330]
[null,null,"Beaumont la Ronce",37360]
[null,null,"Saint Laurent en Gatines",37380]
[null,null,"Orbigny",37460]
[null,null,"La Riche",37520]
[null,null,"Loches",37600]
[null,null,"La Ville aux Dames",37700]
[null,null,"Bois de Roche",38090]
[null,null,"La Tour du Pin",38110]
[null,null,"Villard Saint Christophe",38119]
[null,null,"Rives",38140]
[null,null,"Sonnay",38150]
[null,null,"Lancey",38190]
[null,null,"La Riviere",38210]
[null,null,"Livet et Gavet",38220]
[null,null,"Balbins",38260]
[null,null,"Nantoin",38260]
[null,null,"Revel Tourdan",38270]
[null,null,"Les Eparres",38300]
[null,null,"Cognet",38350]
[null,null,"Noyarey",38360]
[null,null,"Vertrieu",38390]
[null,null,"Moirans",38430]
[null,null,"Mianges",38460]
[null,null,"Saint Romain de Jalionas",38460]
[null,null,"Varacieux",38470]
[null,null,"Voiron",38500]
[null,null,"Chapareillan",38530]
[null,null,"Moretel de Mailles",38570]
[null,null,"Sillans",38590]
[null,null,"Les Avenieres",38630]
[null,null,"Chasse sur Rhone",38670]
[null,null,"Torchefelon",38690]
[null,null,"La Tronche",38700]
[null,null,"Entraigues",38740]
[null,null,"La Sone",38840]
[null,null,"Clelles",38930]
[null,null,"Corps",38970]
[null,null,"Champvans",39100]
[null,null,"Geraise",39110]
[null,null,"Chemin",39120]
[null,null,"Le Deschaux",39120]
[null,null,"Charezier",39130]
[null,null,"Thoiria",39130]
[null,null,"Cosges",39140]
[null,null,"Balanod",39160]
[null,null,"Lavans les Saint Claude",39170]
[null,null,"Chaumont",39200]
[null,null,"Le Pin",39210]
[null,null,"Nevy sur Seille",39210]
[null,null,"La Charme",39230]
[null,null,"Chisseria",39240]
[null,null,"La Boissiere",39240]
[null,null,"La Faviere",39250]
[null,null,"Les Crozets",39260]
[null,null,"Nermier",39270]
[null,null,"Menotey",39290]
[null,null,"Offlanges",39290]
[null,null,"Lent",39300]
[null,null,"Broissia",39320]
[null,null,"Loisia",39320]
[null,null,"Molinges",39360]
[null,null,"Mont sous Vaudrey",39380]
[null,null,"Molay",39500]
[null,null,"Gevingey",39570]
[null,null,"Pannessieres",39570]
[null,null,"Villeneuve sous Pymont",39570]
[null,null,"Dampierre",39700]
[null,null,"La Breteniere",39700]
[null,null,"Buvilly",39800]
[null,null,"Vaux sur Poligny",39800]
[null,null,"Garrosse",40110]
[null,null,"Roquefort",40120]
[null,null,"Parentis en Born",40160]
[null,null,"Goos",40180]
[null,null,"Commensacq",40210]
[null,null,"Josse",40230]
[null,null,"Larbey",40250]
[null,null,"Saint Maurice sur Adour",40270]
[null,null,"Saint Cricq du Gave",40300]
[null,null,"Cledes",40320]
[null,null,"Saint Loubouer",40320]
[null,null,"Onard",40380]
[null,null,"Saint Martin de Hinx",40390]
[null,null,"Gouts",40400]
[null,null,"Gousse",40465]
[null,null,"Saint Girons Plage",40560]
[null,null,"Mant",40700]
[null,null,"Angoume",40990]
[null,null,"Aze",41100]
[null,null,"Seigy",41110]
[null,null,"Valaire",41120]
[null,null,"Noyers sur Cher",41140]
[null,null,"Rahart",41160]
[null,null,"Pray",41190]
[null,null,"Nouan sur Loire",41220]
[null,null,"Ouzouer le Marche",41240]
[null,null,"La Chaussee Saint Victor",41260]
[null,null,"Salbris",41300]
[null,null,"Langon",41320]
[null,null,"Saint Julien sur Cher",41320]
[null,null,"Josnes",41370]
[null,null,"Mer",41500]
[null,null,"Oisly",41700]
[null,null,"Saint Jacques des Guerets",41800]
[null,null,"Civens",42110]
[null,null,"Saint Marcel de Felines",42122]
[null,null,"Saint Just en Bas",42136]
[null,null,"Chevrieres",42140]
[null,null,"Bonson",42160]
[null,null,"Thelis la Combe",42220]
[null,null,"Saint Priest en Jarez",42270]
[null,null,"Vivans",42310]
[null,null,"Cottance",42360]
[null,null,"Chuyer",42410]
[null,null,"Saint Julien la Vetre",42440]
[null,null,"Arcinges",42460]
[null,null,"Nervieux",42510]
[null,null,"La Tour en Jarez",42580]
[null,null,"Precieux",42600]
[null,null,"Jonzieux",42660]
[null,null,"Saint Germain la Montagne",42670]
[null,null,"Tartaras",42800]
[null,null,"Brioude",43100]
[null,null,"Fontannes",43100]
[null,null,"Solignac sous Roche",43130]
[null,null,"Esplantas",43170]
[null,null,"Valprivas",43210]
[null,null,"Saint Prejet Armandon",43230]
[null,null,"Saint Etienne Lardeyrol",43260]
[null,null,"Pinols",43300]
[null,null,"Saint Ferreol d'Auroure",43330]
[null,null,"Landos",43340]
[null,null,"Blassac",43380]
[null,null,"Les Vastres",43430]
[null,null,"Jullianges",43500]
[null,null,"Saint Didier d'Allier",43580]
[null,null,"Chaspinhac",43700]
[null,null,"Villepot",44110]
[null,null,"Remouille",44140]
[null,null,"Saint Gereon",44150]
[null,null,"Nantes",44200]
[null,null,"Guemene Penfao",44290]
[null,null,"Frossay",44320]
[null,null,"La Paquelais",44360]
[null,null,"Pompas",44410]
[null,null,"Saint Nicolas de Redon",44460]
[null,null,"Maumusson",44540]
[null,null,"Montoir de Bretagne",44550]
[null,null,"Le Coudray",44630]
[null,null,"La Haie Fouassiere",44690]
[null,null,"Campbon",44750]
[null,null,"Viais",44860]
[null,null,"Meung sur Loire",45130]
[null,null,"Beaugency",45190]
[null,null,"Merinville",45210]
[null,null,"Rosoy le Vieil",45210]
[null,null,"Montbouy",45230]
[null,null,"Freville du Gatinais",45270]
[null,null,"Le Moulinet sur Solin",45290]
[null,null,"Dossainville",45300]
[null,null,"Yevre la Ville",45300]
[null,null,"Barville en Gatinais",45340]
[null,null,"Clery Saint Andre",45370]
[null,null,"Mareau aux Pres",45370]
[null,null,"Semoy",45400]
[null,null,"Trainou",45470]
[null,null,"Leouville",45480]
[null,null,"Autruy le Chatel",45500]
[null,null,"Dampierre en Burly",45570]
[null,null,"Solterre",45700]
[null,null,"Espere",46090]
[null,null,"Labastide Marnhac",46090]
[null,null,"Cardaillac",46100]
[null,null,"Molieres",46120]
[null,null,"Estal",46130]
[null,null,"Cambayrac",46140]
[null,null,"Saint Medard",46150]
[null,null,"Lamativie",46190]
[null,null,"Senaillac Latronquiere",46210]
[null,null,"Prayssac",46220]
[null,null,"Limogne en Quercy",46260]
[null,null,"Linac",46270]
[null,null,"Saint Cirq Madelon",46300]
[null,null,"Espedaillac",46320]
[null,null,"Degagnac",46340]
[null,null,"Saint Jean Lagineste",46400]
[null,null,"Baladou",46600]
[null,null,"Martel",46600]
[null,null,"Saux",46800]
[null,null,"Levignac de Guyenne",47120]
[null,null,"Villeneuve de Duras",47120]
[null,null,"La Sauvetat sur Lede",47150]
[null,null,"Villefranche du Queyran",47160]
[null,null,"Jusix",47200]
[null,null,"Saint Martin de Villereal",47210]
[null,null,"Marmont Pachas",47220]
[null,null,"Verteuil d'Agenais",47260]
[null,null,"Beaugas",47290]
[null,null,"Le Ledat",47300]
[null,null,"Cahuzac",47330]
[null,null,"Lachapelle",47350]
[null,null,"Masquieres",47370]
[null,null,"Saint Colomb de Lauzun",47410]
[null,null,"Pompogne",47420]
[null,null,"Boe",47550]
[null,null,"Beauziac",47700]
[null,null,"Allemans du Dropt",47800]
[null,null,"Pelouse",48000]
[null,null,"Saint Martin de Lansuscle",48110]
[null,null,"Saint Privat du Fau",48140]
[null,null,"Le Bleymard",48190]
[null,null,"Blavignac",48200]
[null,null,"La Bastide Puylaurent",48250]
[null,null,"Albaret le Comtal",48310]
[null,null,"Saint Laurent de Veyres",48310]
[null,null,"Rousses",48400]
[null,null,"Saint Paul le Froid",48600]
[null,null,"Prevencheres",48800]
[null,null,"Neuvy en Mauges",49120]
[null,null,"Ingrandes",49123]
[null,null,"Soucelles",49140]
[null,null,"Longue Jumelles",49160]
[null,null,"Epire",49170]
[null,null,"Le Plessis Mace",49220]
[null,null,"Courchamps",49260]
[null,null,"Saint Laurent des Autels",49270]
[null,null,"Coutures",49320]
[null,null,"Saint Saturnin sur Loire",49320]
[null,null,"Treves Cunault",49350]
[null,null,"Parcay les Pins",49390]
[null,null,"Carbay",49420]
[null,null,"Pouance",49420]
[null,null,"Montreuil Juigne",49460]
[null,null,"Meigne le Vicomte",49490]
[null,null,"Bouzille",49530]
[null,null,"Clere sur Layon",49560]
[null,null,"Valanjou",49670]
[null,null,"Parnay",49730]
[null,null,"Ile Pelee",50100]
[null,null,"Tourlaville",50110]
[null,null,"Brectouville",50160]
[null,null,"Boucey",50170]
[null,null,"Feugeres",50190]
[null,null,"La Vendelee",50200]
[null,null,"Juilley",50220]
[null,null,"Doville",50250]
[null,null,"Breuville",50260]
[null,null,"Les Perques",50260]
[null,null,"Avranches",50300]
[null,null,"Vains",50300]
[null,null,"Sortosville",50310]
[null,null,"Carneville",50330]
[null,null,"Saint Christophe du Foc",50340]
[null,null,"Saint Aubin des Preaux",50380]
[null,null,"Yquelon",50400]
[null,null,"Villebaudon",50410]
[null,null,"Beaumont Hague",50440]
[null,null,"Sainte Croix Hague",50440]
[null,null,"Tonneville",50460]
[null,null,"Saint Germain de Varreville",50480]
[null,null,"Les Veys",50500]
[null,null,"Reffuveille",50520]
[null,null,"Le Mesnil Thebault",50540]
[null,null,"Geffosses",50560]
[null,null,"Hauteville sur Mer",50590]
[null,null,"Parigny",50600]
[null,null,"Le Vast",50630]
[null,null,"Coulouvray Boisbenatre",50670]
[null,null,"Hardinvast",50690]
[null,null,"Saint Georges de Rouelley",50720]
[null,null,"Soulles",50750]
[null,null,"Boisyvon",50800]
[null,null,"Rouxeville",50810]
[null,null,"Le Fresne Poret",50850]
[null,null,"Aumenancourt",51110]
[null,null,"Les Essarts les Sezanne",51120]
[null,null,"Gionges",51130]
[null,null,"Branscourt",51140]
[null,null,"Aigny",51150]
[null,null,"Plivot",51150]
[null,null,"Chaumuzy",51170]
[null,null,"Chavot Courcourt",51200]
[null,null,"Cramant",51200]
[null,null,"Le Gault Soigny",51210]
[null,null,"Bannes",51230]
[null,null,"Breuvery sur Coole",51240]
[null,null,"Omey",51240]
[null,null,"Villers le Sec",51250]
[null,null,"Villiers aux Corneilles",51260]
[null,null,"Brandonvillers",51290]
[null,null,"Drosnay",51290]
[null,null,"Blacy",51300]
[null,null,"Norrois",51300]
[null,null,"Escardes",51310]
[null,null,"Faux Vesigneul",51320]
[null,null,"Bussy le Repos",51330]
[null,null,"Bignicourt sur Saulx",51340]
[null,null,"Trois Fontaines l'Abbaye",51340]
[null,null,"Villers Marmery",51380]
[null,null,"Les Petites Loges",51400]
[null,null,"Cormoyeux",51480]
[null,null,"Saint Masmes",51490]
[null,null,"Sermiers",51500]
[null,null,"Chalons en Champagne",51520]
[null,null,"Souain Perthes les Hurlus",51600]
[null,null,"Festigny",51700]
[null,null,"Berzieux",51800]
[null,null,"Le Chemin",51800]
[null,null,"Chaumont",52000]
[null,null,"Moeslains",52100]
[null,null,"Daillancourt",52110]
[null,null,"Aizanville",52120]
[null,null,"Attancourt",52130]
[null,null,"Montreuil sur Blaise",52130]
[null,null,"Montigny le Roi",52140]
[null,null,"Graffigny Chemin",52150]
[null,null,"Poinson les Grancey",52160]
[null,null,"Rachecourt sur Marne",52170]
[null,null,"Piepape",52190]
[null,null,"Bourg",52200]
[null,null,"Voisines",52200]
[null,null,"Eriseul",52210]
[null,null,"Sommevoire",52220]
[null,null,"Noncourt sur le Rongeant",52230]
[null,null,"Longeau",52250]
[null,null,"Roches sur Rognon",52270]
[null,null,"Joinville",52300]
[null,null,"Thonnance les Joinville",52300]
[null,null,"Rouecourt",52320]
[null,null,"Ageville",52340]
[null,null,"Esnouveaux",52340]
[null,null,"Arnoncourt sur Apance",52400]
[null,null,"Varennes sur Amance",52400]
[null,null,"Fayl la Foret",52500]
[null,null,"Saulles",52500]
[null,null,"Heuilley le Grand",52600]
[null,null,"Clinchamp",52700]
[null,null,"Foulain",52800]
[null,null,"Mandres la Cote",52800]
[null,null,"La Baroche Gondouin",53110]
[null,null,"Deux Evailles",53150]
[null,null,"Bazougers",53170]
[null,null,"Landivy",53190]
[null,null,"Menil",53200]
[null,null,"La Baconniere",53240]
[null,null,"Sainte Suzanne",53270]
[null,null,"Argenton Notre Dame",53290]
[null,null,"Saint Mars sur Colmont",53300]
[null,null,"Boulay les Ifs",53370]
[null,null,"La Brulatte",53410]
[null,null,"La Chapelle au Riboul",53440]
[null,null,"Gastines",53540]
[null,null,"Congrier",53800]
[null,null,"Buissoncourt",54110]
[null,null,"Gellenoncourt",54110]
[null,null,"Moutrot",54113]
[null,null,"Deneuvre",54120]
[null,null,"Voinemont",54134]
[null,null,"Lubey",54150]
[null,null,"Germiny",54170]
[null,null,"Lucey",54200]
[null,null,"Malzeville",54220]
[null,null,"Champigneulles",54250]
[null,null,"Villancy",54260]
[null,null,"Roville Devant Bayon",54290]
[null,null,"Villacourt",54290]
[null,null,"Etreval",54330]
[null,null,"Mont Saint Martin",54350]
[null,null,"Laneuveville aux Bois",54370]
[null,null,"Martincourt",54380]
[null,null,"Manoncourt en Woevre",54385]
[null,null,"Herserange",54440]
[null,null,"Verdenal",54450]
[null,null,"Charey",54470]
[null,null,"Cirey sur Vezouze",54480]
[null,null,"Laxou Champ le Boeuf",54520]
[null,null,"Audun le Roman",54560]
[null,null,"Villers les Nancy",54600]
[null,null,"Lixieres",54610]
[null,null,"Blenod les Pont A Mousson",54700]
[null,null,"Port sur Seille",54700]
[null,null,"Chenieres",54720]
[null,null,"Xirocourt",54740]
[null,null,"Affleville",54800]
[null,null,"Tronville",54800]
[null,null,"Fontenoy sur Moselle",54840]
[null,null,"Villers la Chevre",54870]
[null,null,"Brillon en Barrois",55000]
[null,null,"Les Marats",55000]
[null,null,"Resson",55000]
[null,null,"Charny sur Meuse",55100]
[null,null,"Clery Petit",55110]
[null,null,"Villers Devant Dun",55110]
[null,null,"Ville sur Cousances",55120]
[null,null,"Dainville Bertheleville",55130]
[null,null,"Rigny Saint Martin",55140]
[null,null,"Dombras",55150]
[null,null,"Merles sur Loison",55150]
[null,null,"Hennemont",55160]
[null,null,"Bazincourt sur Saulx",55170]
[null,null,"Ourches sur Meuse",55190]
[null,null,"Vertuzey",55200]
[null,null,"Creue",55210]
[null,null,"Rignaucourt",55220]
[null,null,"Muzeray",55230]
[null,null,"Senon",55230]
[null,null,"Rembercourt Sommaisne",55250]
[null,null,"Nicey sur Aire",55260]
[null,null,"Malancourt",55270]
[null,null,"Deuxnouds aux Bois",55300]
[null,null,"Lahayville",55300]
[null,null,"Xivray et Marvoisin",55300]
[null,null,"Darmont",55400]
[null,null,"Grimaucourt en Woevre",55400]
[null,null,"Chennevieres",55500]
[null,null,"Vaux la Grande",55500]
[null,null,"Juvigny sur Loison",55600]
[null,null,"Mouzay",55700]
[null,null,"Auzecourt",55800]
[null,null,"La Croix Hellean",56120]
[null,null,"Ruffiac",56140]
[null,null,"Saint Laurent sur Oust",56140]
[null,null,"Billiers",56190]
[null,null,"Plouay",56240]
[null,null,"Malguenac",56300]
[null,null,"Le Tour du Parc",56370]
[null,null,"Saint Malo de Beignon",56380]
[null,null,"Neant sur Yvel",56430]
[null,null,"Guilliers",56490]
[null,null,"Saint Malo des Trois Fontain",56490]
[null,null,"Port Navalo",56640]
[null,null,"Merlevenez",56700]
[null,null,"Loyat",56800]
[null,null,"Lorry les Metz",57050]
[null,null,"Vantoux",57070]
[null,null,"Zetting",57115]
[null,null,"Jouy aux Arches",57130]
[null,null,"Sainte Ruffine",57130]
[null,null,"Dedeling",57170]
[null,null,"Vaxy",57170]
[null,null,"Remelfing",57200]
[null,null,"Conde Northen",57220]
[null,null,"Saint Bernard",57220]
[null,null,"Jury",57245]
[null,null,"Val de Bride",57260]
[null,null,"Richemont",57270]
[null,null,"Saint Francois la Croix",57320]
[null,null,"Achain",57340]
[null,null,"Haboudange",57340]
[null,null,"La Breme",57350]
[null,null,"Vilsberg",57370]
[null,null,"Guntzviller",57400]
[null,null,"Cheminot",57420]
[null,null,"Coin sur Seille",57420]
[null,null,"Secourt",57420]
[null,null,"Guenviller",57470]
[null,null,"Kirschnaumen",57480]
[null,null,"Hilsprich",57510]
[null,null,"Landonvillers",57530]
[null,null,"Abreschviller",57560]
[null,null,"Bechy",57580]
[null,null,"Chenois",57580]
[null,null,"Bacourt",57590]
[null,null,"Marienau",57600]
[null,null,"Haraucourt sur Seille",57630]
[null,null,"Fontoy",57650]
[null,null,"Albestroff",57670]
[null,null,"Torcheville",57670]
[null,null,"Epping",57720]
[null,null,"Loutzviller",57720]
[null,null,"Aspach",57790]
[null,null,"Dannelbourg",57820]
[null,null,"Diane Capelle",57830]
[null,null,"Hommert",57870]
[null,null,"Angviller les Bisping",57930]
[null,null,"Challuy",58000]
[null,null,"Blismes",58120]
[null,null,"Chatin",58120]
[null,null,"Vielmanay",58150]
[null,null,"Flety",58170]
[null,null,"Tannay",58190]
[null,null,"Alligny Cosne",58200]
[null,null,"Ciez",58220]
[null,null,"Saint Imbert",58240]
[null,null,"Saint Benin d'Azy",58270]
[null,null,"Saint Sulpice",58270]
[null,null,"Saint Benin des Bois",58330]
[null,null,"Chateauneuf Val de Bargis",58350]
[null,null,"Menestreau",58410]
[null,null,"Bussy la Pesle",58420]
[null,null,"Trucy l'Orgueilleux",58460]
[null,null,"Coulanges les Nevers",58660]
[null,null,"Germenay",58800]
[null,null,"Magny Lormes",58800]
[null,null,"Bray Dunes",59123]
[null,null,"Lambersart",59130]
[null,null,"Beaucamps Ligny",59134]
[null,null,"Thun l'Eveque",59141]
[null,null,"Chemy",59147]
[null,null,"Beauvois en Cambresis",59157]
[null,null,"Erchin",59169]
[null,null,"Roucourt",59169]
[null,null,"Dechy",59187]
[null,null,"Wallon Cappel",59190]
[null,null,"Haspres",59198]
[null,null,"Boussieres en Cambresis",59217]
[null,null,"Montigny en Cambresis",59225]
[null,null,"Bersee",59235]
[null,null,"Marcq en Ostrevent",59252]
[null,null,"Les Rues des Vignes",59258]
[null,null,"Meteren",59270]
[null,null,"Armentieres",59280]
[null,null,"Arneke",59285]
[null,null,"Auchy les Orchies",59310]
[null,null,"Hautmont",59330]
[null,null,"Bergues",59380]
[null,null,"Mouvaux",59420]
[null,null,"Semousies",59440]
[null,null,"Wormhout",59470]
[null,null,"Englefontaine",59530]
[null,null,"Louvignies Quesnoy",59530]
[null,null,"Attiches",59551]
[null,null,"Gussignies",59570]
[null,null,"Mairieux",59600]
[null,null,"Sainte Marie Cappel",59670]
[null,null,"Avelin",59710]
[null,null,"Clairfayts",59740]
[null,null,"Gravelines",59820]
[null,null,"Blanc Misseron",59920]
[null,null,"Estaires",59940]
[null,null,"Goincourt",60000]
[null,null,"La Neuville Vault",60112]
[null,null,"Cormeilles",60120]
[null,null,"Rocquencourt",60120]
[null,null,"Bethancourt en Valois",60129]
[null,null,"Saint Just en Chaussee",60130]
[null,null,"Thourotte",60150]
[null,null,"Rainvillers",60155]
[null,null,"Blincourt",60190]
[null,null,"Montiers",60190]
[null,null,"Saint Thibault",60210]
[null,null,"Formerie",60220]
[null,null,"Boubiers",60240]
[null,null,"Montjavoult",60240]
[null,null,"Margny les Compiegne",60280]
[null,null,"Neuilly sous Clermont",60290]
[null,null,"Gury",60310]
[null,null,"Nery",60320]
[null,null,"Domeliers",60360]
[null,null,"Saint Felix",60370]
[null,null,"Therines",60380]
[null,null,"Mondescourt",60400]
[null,null,"Verberie",60410]
[null,null,"Dompierre",60420]
[null,null,"Chevreville",60440]
[null,null,"Fontaine Saint Lucien",60480]
[null,null,"Orvillers Sorel",60490]
[null,null,"La Neuville en Hez",60510]
[null,null,"Fresnoy en Thelle",60530]
[null,null,"Trie la Ville",60590]
[null,null,"Antilly",60620]
[null,null,"Ormoy le Davien",60620]
[null,null,"Hodenc en Bray",60650]
[null,null,"Savignies",60650]
[null,null,"Marseille en Beauvaisis",60690]
[null,null,"Pouilly",60790]
[null,null,"Raray",60810]
[null,null,"Marolles",60890]
[null,null,"Caligny",61100]
[null,null,"La Lande Patry",61100]
[null,null,"Saint Germain des Grois",61110]
[null,null,"Guerquesalles",61120]
[null,null,"Saint Cyr la Rosiere",61130]
[null,null,"Saint Brice sous Ranes",61150]
[null,null,"Montabard",61160]
[null,null,"Saint Julien sur Sarthe",61170]
[null,null,"Randonnai",61190]
[null,null,"Moulins sur Orne",61200]
[null,null,"Saint Aubert sur Orne",61210]
[null,null,"Godisson",61240]
[null,null,"Le Menil Vicomte",61240]
[null,null,"Radon",61250]
[null,null,"Rai",61270]
[null,null,"Courmenil",61310]
[null,null,"Lalacelle",61320]
[null,null,"Lore",61330]
[null,null,"Saint Roch sur Egrenne",61350]
[null,null,"Fay",61390]
[null,null,"Le Chalange",61390]
[null,null,"Villiers sous Mortagne",61400]
[null,null,"Saint Andre de Messei",61440]
[null,null,"Neuville Pres Sees",61500]
[null,null,"Saint Nicolas de Sommaire",61550]
[null,null,"Francheville",61570]
[null,null,"Saint Michel des Andaines",61600]
[null,null,"Saint Jean des Bois",61800]
[null,null,"Yvrandes",61800]
[null,null,"Ablainzevelle",62116]
[null,null,"Rely",62120]
[null,null,"Basseux",62123]
[null,null,"Barastre",62124]
[null,null,"Pittefaux",62126]
[null,null,"Croisilles",62128]
[null,null,"Framecourt",62130]
[null,null,"Herlin le Sec",62130]
[null,null,"Wavrans sur Ternoise",62130]
[null,null,"Coulogne",62137]
[null,null,"La Loge",62140]
[null,null,"Evin Malmaison",62141]
[null,null,"Estree Blanche",62145]
[null,null,"La Comte",62150]
[null,null,"La Cauchie",62158]
[null,null,"Aix Noulette",62160]
[null,null,"Brexent Enocq",62170]
[null,null,"Boisleux au Mont",62175]
[null,null,"Riencourt les Cagnicourt",62182]
[null,null,"Lespesses",62190]
[null,null,"Carvin",62220]
[null,null,"Becourt",62240]
[null,null,"Quesques",62240]
[null,null,"Cauchy A la Tour",62260]
[null,null,"Linzeux",62270]
[null,null,"Ruisseauville",62310]
[null,null,"Pihen les Guines",62340]
[null,null,"Echinghen",62360]
[null,null,"Affringues",62380]
[null,null,"Aubrometz",62390]
[null,null,"Avesnes les Bapaume",62450]
[null,null,"Bapaume",62450]
[null,null,"Saint Omer",62500]
[null,null,"Aumerval",62550]
[null,null,"Reclinghem",62560]
[null,null,"Gavrelle",62580]
[null,null,"Bois en Ardres",62610]
[null,null,"Aix en Ergny",62650]
[null,null,"Berles Monchel",62690]
[null,null,"Cambligneul",62690]
[null,null,"Thievres",62760]
[null,null,"Neulette",62770]
[null,null,"Givenchy le Noble",62810]
[null,null,"Libercourt",62820]
[null,null,"Alembon",62850]
[null,null,"Queant",62860]
[null,null,"Nordausques",62890]
[null,null,"Tournehem sur la Hem",62890]
[null,null,"Marenla",62990]
[null,null,"Mezel",63115]
[null,null,"Chatelguyon",63140]
[null,null,"Neuville",63160]
[null,null,"La Moutade",63200]
[null,null,"Vernines",63210]
[null,null,"Viscomtat",63250]
[null,null,"Bussieres et Pruns",63260]
[null,null,"Vic le Comte",63270]
[null,null,"Courgoul",63320]
[null,null,"Saint Maigner",63330]
[null,null,"Le Breuil sur Couze",63340]
[null,null,"Maringues",63350]
[null,null,"Espinasse",63390]
[null,null,"Lisseuil",63440]
[null,null,"Saint Gal sur Sioule",63440]
[null,null,"Saint Myon",63460]
[null,null,"Pardines",63500]
[null,null,"Sayat",63530]
[null,null,"Teilhet",63560]
[null,null,"Sainte Catherine",63580]
[null,null,"Saint Anastaise",63610]
[null,null,"Larodde",63690]
[null,null,"Ars les Favets",63700]
[null,null,"Entraigues",63720]
[null,null,"Saint Georges sur Allier",63800]
[null,null,"Saint Gervais sous Meymont",63880]
[null,null,"Augerolles",63930]
[null,null,"Saint Faust",64110]
[null,null,"Labets Biscay",64120]
[null,null,"Cheraute",64130]
[null,null,"Gotein Libarrenx",64130]
[null,null,"Lespourcy",64160]
[null,null,"Sedze Maubecq",64160]
[null,null,"Castetnau Camblong",64190]
[null,null,"Nabas",64190]
[null,null,"Aincille",64220]
[null,null,"Artiguelouve",64230]
[null,null,"Cambo les Bains",64250]
[null,null,"Louhossoa",64250]
[null,null,"Aubertin",64290]
[null,null,"Castetis",64300]
[null,null,"Lendresse",64300]
[null,null,"Sendets",64320]
[null,null,"Vialer",64330]
[null,null,"Moncaup",64350]
[null,null,"Saint Medard",64370]
[null,null,"Abitain",64390]
[null,null,"Verdets",64400]
[null,null,"Montagut",64410]
[null,null,"Arrien",64420]
[null,null,"Laruns",64440]
[null,null,"Labatut",64460]
[null,null,"Halsou",64480]
[null,null,"Bidache",64520]
[null,null,"Sames",64520]
[null,null,"Bidarray",64780]
[null,null,"Capbis",64800]
[null,null,"Mirepeix",64800]
[null,null,"Bartres",65100]
[null,null,"Ouste",65100]
[null,null,"Sazos",65120]
[null,null,"Laborde",65130]
[null,null,"Tilhouse",65130]
[null,null,"Bizous",65150]
[null,null,"Bourisp",65170]
[null,null,"Sailhan",65170]
[null,null,"Luc",65190]
[null,null,"Labassere",65200]
[null,null,"Frechede",65220]
[null,null,"Larroque",65230]
[null,null,"Vieuzos",65230]
[null,null,"Saint Arroman",65250]
[null,null,"Uglas",65300]
[null,null,"Lagarde",65320]
[null,null,"Bouilh Pereuilh",65350]
[null,null,"Souyeaux",65350]
[null,null,"Esbareich",65370]
[null,null,"Aurensan",65390]
[null,null,"Arrens Marsous",65400]
[null,null,"Sarrancolin",65410]
[null,null,"Saint Lezer",65500]
[null,null,"Aneran Camors",65510]
[null,null,"Heres",65700]
[null,null,"Soublecause",65700]
[null,null,"Perpignan",66000]
[null,null,"Saint Feliu d'Amont",66170]
[null,null,"Latour Bas Elne",66200]
[null,null,"Saint Martin",66220]
[null,null,"Castelnou",66300]
[null,null,"Saint Jean Lasseille",66300]
[null,null,"Nyer",66360]
[null,null,"Pia",66380]
[null,null,"Bompas",66430]
[null,null,"Calce",66600]
[null,null,"Salses le Chateau",66600]
[null,null,"Felluns",66730]
[null,null,"Eyne",66800]
[null,null,"Sainte Leocadie",66800]
[null,null,"Quatzenheim",67117]
[null,null,"Wolxheim",67120]
[null,null,"Lutzelhouse",67130]
[null,null,"Erstein",67150]
[null,null,"Matzenheim",67150]
[null,null,"Wissembourg",67160]
[null,null,"Still",67190]
[null,null,"Wolfisheim",67202]
[null,null,"Wagenbach",67220]
[null,null,"Camp d'Oberhoffen",67240]
[null,null,"Hoffen",67250]
[null,null,"Wolfskirchen",67260]
[null,null,"Gingsheim",67270]
[null,null,"Oberhaslach",67280]
[null,null,"Flexbourg",67310]
[null,null,"Knoersheim",67310]
[null,null,"Weyer",67320]
[null,null,"Riedheim",67330]
[null,null,"Rothbach",67340]
[null,null,"Ringendorf",67350]
[null,null,"Berstett",67370]
[null,null,"Lingolsheim",67380]
[null,null,"Saulxures",67420]
[null,null,"Marmoutier",67440]
[null,null,"Westhouse Marmoutier",67440]
[null,null,"Friedolsheim",67490]
[null,null,"Marienthal",67500]
[null,null,"Eckwersheim",67550]
[null,null,"Mussig",67600]
[null,null,"Reimerswiller",67660]
[null,null,"Wolfsthal",67710]
[null,null,"Holtzheim",67810]
[null,null,"Entzheim",67960]
[null,null,"Altkirch",68130]
[null,null,"Hunawihr",68150]
[null,null,"Echery",68160]
[null,null,"Dannemarie",68210]
[null,null,"Saint Ulrich",68210]
[null,null,"Freland",68240]
[null,null,"Kingersheim",68260]
[null,null,"Rimbach Pres Masevaux",68290]
[null,null,"Widensohlen",68320]
[null,null,"Bruebach",68440]
[null,null,"Landser",68440]
[null,null,"Fislis",68480]
[null,null,"Werentzhouse",68480]
[null,null,"Waltenheim",68510]
[null,null,"Ruederbach",68560]
[null,null,"Saint Hippolyte",68590]
[null,null,"Bennwihr",68630]
[null,null,"Wattwiller",68700]
[null,null,"Heidwiller",68720]
[null,null,"Bergheim",68750]
[null,null,"Staffelfelden",68850]
[null,null,"Lyon 7Eme Arrondissement",69007]
[null,null,"Ecully",69130]
[null,null,"Bully",69210]
[null,null,"Saint Genis Laval",69230]
[null,null,"Craponne",69290]
[null,null,"Feyzin",69320]
[null,null,"Civrieux d'Azergues",69380]
[null,null,"Condrieu",69420]
[null,null,"Mornant",69440]
[null,null,"Taluyers",69440]
[null,null,"Marcy",69480]
[null,null,"Orlienas",69530]
[null,null,"Oullins",69600]
[null,null,"Saint Genis l'Argentiere",69610]
[null,null,"Jarnioux",69640]
[null,null,"La Brevenne",69690]
[null,null,"Mions",69780]
[null,null,"Fleurie",69820]
[null,null,"Grandris",69870]
[null,null,"Chariez",70000]
[null,null,"Echenoz la Meline",70000]
[null,null,"Vallerois Lorioz",70000]
[null,null,"Cresancey",70100]
[null,null,"Saint Broing",70100]
[null,null,"Pont sur l'Ognon",70110]
[null,null,"Betoncourt les Menetriers",70120]
[null,null,"Oigney",70120]
[null,null,"Motey sur Saone",70130]
[null,null,"Motey Besuche",70140]
[null,null,"Vadans",70140]
[null,null,"Baulay",70160]
[null,null,"Bougnon",70170]
[null,null,"Bourguignon les la Charit",70190]
[null,null,"Lieffrans",70190]
[null,null,"Villers Pater",70190]
[null,null,"Linexert",70200]
[null,null,"La Basse Vaivre",70210]
[null,null,"Passavant la Rochere",70210]
[null,null,"Roche Linotte Sorans",70230]
[null,null,"Pomoy",70240]
[null,null,"Betoncourt les Brotte",70300]
[null,null,"Saint Sauveur",70300]
[null,null,"Les Fessey",70310]
[null,null,"Chagey",70400]
[null,null,"Tavey",70400]
[null,null,"Chateau Lambert",70440]
[null,null,"Jonvelle",70500]
[null,null,"Vernois sur Mance",70500]
[null,null,"Cugney",70700]
[null,null,"Velleclaire",70700]
[null,null,"Francalmont",70800]
[null,null,"Baugy",71110]
[null,null,"Fontenay",71120]
[null,null,"Viry",71120]
[null,null,"Dezize les Maranges",71150]
[null,null,"Perrigny sur Loire",71160]
[null,null,"Beaubery",71220]
[null,null,"Saint Bonnet de Joux",71220]
[null,null,"Marnay",71240]
[null,null,"Jalogny",71250]
[null,null,"Lugny",71260]
[null,null,"Verizet",71260]
[null,null,"L Abergement de Cuisery",71290]
[null,null,"Saint Berain sous Sanvignes",71300]
[null,null,"Allerey sur Saone",71350]
[null,null,"Sermesse",71350]
[null,null,"Lans",71380]
[null,null,"Antully",71400]
[null,null,"Palinges",71430]
[null,null,"Saint Andre en Bresse",71440]
[null,null,"Le Puley",71460]
[null,null,"Saint Micaud",71460]
[null,null,"Montagny Pres Louhans",71500]
[null,null,"Chatel Moron",71510]
[null,null,"Tramayes",71520]
[null,null,"La Chapelle Pontanevaux",71570]
[null,null,"Savigny en Revermont",71580]
[null,null,"Saint Leger les Paray",71600]
[null,null,"Germolles",71640]
[null,null,"Plottes",71700]
[null,null,"Issy l'Eveque",71760]
[null,null,"La Chapelle sous Dun",71800]
[null,null,"Bussieres",71960]
[null,null,"Jauze",72110]
[null,null,"Montaille",72120]
[null,null,"La Hutte",72130]
[null,null,"Saint Vincent du Lorouer",72150]
[null,null,"Vivoin",72170]
[null,null,"Saint Pavace",72190]
[null,null,"Saint Gervais en Belin",72220]
[null,null,"Challes",72250]
[null,null,"Courceboeufs",72290]
[null,null,"Precigne",72300]
[null,null,"Vance",72310]
[null,null,"Saint Ouen en Champagne",72350]
[null,null,"Sainte Jamme sur Sarthe",72380]
[null,null,"Semur en Vallon",72390]
[null,null,"Pirmil",72430]
[null,null,"Dissay sous Courcillon",72500]
[null,null,"Joue en Charnie",72540]
[null,null,"Change",72560]
[null,null,"Panon",72600]
[null,null,"La Bazoge",72650]
[null,null,"Saint Georges du Bois",72700]
[null,null,"Luche Pringe",72800]
[null,null,"Arvillard",73110]
[null,null,"Saint Colomban des Villards",73130]
[null,null,"Meyrieux Trouet",73170]
[null,null,"Saint Baldoph",73190]
[null,null,"La Plagne",73210]
[null,null,"Thoiry",73230]
[null,null,"La Lechere",73260]
[null,null,"Areches",73270]
[null,null,"Villargondran",73300]
[null,null,"Feissons sur Salins",73350]
[null,null,"Cessens",73410]
[null,null,"Les Menuires",73440]
[null,null,"Marcieux",73470]
[null,null,"La Bathie",73540]
[null,null,"Aiguebelette le Lac",73610]
[null,null,"Ecole",73630]
[null,null,"Montvalezan",73700]
[null,null,"Juvigny",74100]
[null,null,"Ballaison",74140]
[null,null,"Sciez",74140]
[null,null,"Thusy",74150]
[null,null,"La Forclaz",74200]
[null,null,"Dingy Saint Clair",74230]
[null,null,"Thones",74230]
[null,null,"Chatillon sur Cluses",74300]
[null,null,"Sevrier",74320]
[null,null,"Saint Blaise",74350]
[null,null,"Charvonnex",74370]
[null,null,"Entrevernes",74410]
[null,null,"Saint Jean de Sixt",74450]
[null,null,"Feternes",74500]
[null,null,"Publier",74500]
[null,null,"Viry",74580]
[null,null,"Sixt Fer A Cheval",74740]
[null,null,"Esery",74930]
[null,null,"Meythet",74960]
[null,null,"Paris 20ème Arrondissement",75020]
[null,null,"Sausseuzemare en Cau",76110]
[null,null,"Maneglise",76133]
[null,null,"Saint Martin du Bec",76133]
[null,null,"Blacqueville",76190]
[null,null,"Sainte Marie des Champs",76190]
[null,null,"Trouville Alliquerville",76210]
[null,null,"Dampierre en Bray",76220]
[null,null,"Etalondes",76260]
[null,null,"Fresles",76270]
[null,null,"La Poterie Cap d'Antifer",76280]
[null,null,"Sainte Marie au Bosc",76280]
[null,null,"Saint Leger aux Bois",76340]
[null,null,"Martin Eglise",76370]
[null,null,"Richemont",76390]
[null,null,"Fecamp",76400]
[null,null,"Sainneville",76430]
[null,null,"Mauquenchy",76440]
[null,null,"Ouainville",76450]
[null,null,"Saint Martin aux Buneaux",76450]
[null,null,"Sainte Marguerite sur Duclai",76480]
[null,null,"Meulers",76510]
[null,null,"Mauny",76530]
[null,null,"Limpiville",76540]
[null,null,"Le Petit Appeville",76550]
[null,null,"Hericourt en Caux",76560]
[null,null,"La Chapelle du Bourgay",76590]
[null,null,"Le Catelier",76590]
[null,null,"Intraville",76630]
[null,null,"Normanville",76640]
[null,null,"Saint Pierre des Jonquieres",76660]
[null,null,"Mathonville",76680]
[null,null,"La Houssaye Beranger",76690]
[null,null,"Eslettes",76710]
[null,null,"Anglesqueville la Bras Lo",76740]
[null,null,"Brametot",76740]
[null,null,"Ectot l'Auber",76760]
[null,null,"Elbeuf sur Andelle",76780]
[null,null,"Gruchet Saint Simeon",76810]
[null,null,"Etaimpuis",76850]
[null,null,"Calleville les Deux Eglis",76890]
[null,null,"Touffreville sur Eu",76910]
[null,null,"Blandy",77115]
[null,null,"Bazoches les Bray",77118]
[null,null,"Montereau Faut Yonne",77130]
[null,null,"Marcilly",77139]
[null,null,"Chalautre la Petite",77160]
[null,null,"Saint Brice",77160]
[null,null,"Ormesson",77167]
[null,null,"Villeneuve Saint Denis",77174]
[null,null,"Nantouillet",77230]
[null,null,"Thieux",77230]
[null,null,"Choisy en Brie",77320]
[null,null,"Saint Mars Vieux Maisons",77320]
[null,null,"Nangis",77370]
[null,null,"Argentieres",77390]
[null,null,"Bordeaux",77410]
[null,null,"Le Plessis Placy",77440]
[null,null,"Fontaine Fourches",77480]
[null,null,"Montigny le Guesdier",77480]
[null,null,"Paroy",77520]
[null,null,"Limoges Fourches",77550]
[null,null,"La Madeleine sur Loing",77570]
[null,null,"Crecy la Chapelle",77580]
[null,null,"Les Chapelles Bourbon",77610]
[null,null,"La Celle sur Seine",77670]
[null,null,"Grandpuits Bailly Carrois",77720]
[null,null,"Ozouer le Repos",77720]
[null,null,"Chatillon la Borde",77820]
[null,null,"Beaumont du Gatinais",77890]
[null,null,"Chambry",77910]
[null,null,"Moisenay",77950]
[null,null,"Cressely",78114]
[null,null,"Rambouillet",78125]
[null,null,"Viroflay",78220]
[null,null,"Chambourcy",78240]
[null,null,"La Verriere",78320]
[null,null,"Nezel",78410]
[null,null,"Guitrancourt",78440]
[null,null,"Les Mesnuls",78490]
[null,null,"Richebourg",78550]
[null,null,"Les Breviaires",78610]
[null,null,"Mantes la Ville",78711]
[null,null,"La Celle les Bordes",78720]
[null,null,"Septeuil",78790]
[null,null,"Flexanville",78910]
[null,null,"Neauphlette",78980]
[null,null,"Bessines",79000]
[null,null,"Saint Leger de Montbrun",79100]
[null,null,"Loize",79110]
[null,null,"Montravers",79140]
[null,null,"Massais",79150]
[null,null,"Ensigne",79170]
[null,null,"Maire Levescault",79190]
[null,null,"Saint Georges de Rex",79210]
[null,null,"Cours",79220]
[null,null,"Largeasse",79240]
[null,null,"Saint Symphorien",79270]
[null,null,"Le Breuil Bernard",79320]
[null,null,"Luche Thouarsais",79330]
[null,null,"Le Cormenier",79360]
[null,null,"La Foret sur Sevre",79380]
[null,null,"Saint Gelais",79410]
[null,null,"Saint Lin",79420]
[null,null,"Coulon",79510]
[null,null,"Saint Loup Lamaire",79600]
[null,null,"Demuin",80110]
[null,null,"Mezieres en Santerre",80110]
[null,null,"Quend",80120]
[null,null,"Caours",80132]
[null,null,"Rivery",80136]
[null,null,"Cannessieres",80140]
[null,null,"Rambures",80140]
[null,null,"Agenvillers",80150]
[null,null,"Essertaux",80160]
[null,null,"Monsures",80160]
[null,null,"Meharicourt",80170]
[null,null,"Rouy le Grand",80190]
[null,null,"Doingt",80200]
[null,null,"Flaucourt",80200]
[null,null,"Frettemeule",80220]
[null,null,"Saigneville",80230]
[null,null,"Louvrechy",80250]
[null,null,"Allonville",80260]
[null,null,"Saint Gratien",80260]
[null,null,"Famechon",80290]
[null,null,"Aveluy",80300]
[null,null,"Carnoy",80300]
[null,null,"Bourdon",80310]
[null,null,"Riencourt",80310]
[null,null,"Combles",80360]
[null,null,"Gueudecourt",80360]
[null,null,"Domleger Longvillers",80370]
[null,null,"Hombleux",80400]
[null,null,"Guemicourt",80430]
[null,null,"Saint Aubin Riviere",80430]
[null,null,"Citerne",80490]
[null,null,"Laboissiere en Santerre",80500]
[null,null,"Longpre les Corps Sts",80510]
[null,null,"Bougainville",80540]
[null,null,"Arqueves",80560]
[null,null,"Liercourt",80580]
[null,null,"Authieule",80600]
[null,null,"Longuevillette",80600]
[null,null,"Gouy l'Hopital",80640]
[null,null,"Francieres",80690]
[null,null,"Andechy",80700]
[null,null,"Liancourt Fosse",80700]
[null,null,"Cayeux en Santerre",80720]
[null,null,"Vaire sous Corbie",80800]
[null,null,"Toeufles",80870]
[null,null,"Valdurenque",81090]
[null,null,"Saint Antonin de Lacalm",81120]
[null,null,"Vaour",81140]
[null,null,"Cestayrols",81150]
[null,null,"Les Cabannes",81170]
[null,null,"Montauriol",81190]
[null,null,"Le Rialet",81240]
[null,null,"Angles",81260]
[null,null,"Labruguiere",81290]
[null,null,"Lacapelle Pinet",81340]
[null,null,"Saint Gauzens",81390]
[null,null,"Ambialet",81430]
[null,null,"Lacroisille",81470]
[null,null,"Garrigues",81500]
[null,null,"Vielmur sur Agout",81570]
[null,null,"Senouillac",81600]
[null,null,"Appelle",81700]
[null,null,"Carlus",81990]
[null,null,"Sainte Juliette",82110]
[null,null,"Gramont",82120]
[null,null,"Roquecor",82150]
[null,null,"Canals",82170]
[null,null,"Leojac",82230]
[null,null,"Laguepie",82250]
[null,null,"Donzac",82340]
[null,null,"Gasques",82400]
[null,null,"Garies",82500]
[null,null,"Maubec",82500]
[null,null,"Montricoux",82800]
[null,null,"Rocbaron",83136]
[null,null,"La Moutonne",83260]
[null,null,"Grimaud",83310]
[null,null,"Cuers",83390]
[null,null,"Seillans",83440]
[null,null,"Vidauban",83550]
[null,null,"Carces",83570]
[null,null,"Saint Zacharie",83640]
[null,null,"Grand Moulin",83740]
[null,null,"Uchaux",84100]
[null,null,"Saint Marcellin des Vaison",84110]
[null,null,"La Roque Alric",84190]
[null,null,"Ansouis",84240]
[null,null,"Morieres les Avignons",84310]
[null,null,"Courthezon",84350]
[null,null,"Saignon",84400]
[null,null,"Bollene",84500]
[null,null,"Camaret sur Aigues",84850]
[null,null,"Chantonnay",85110]
[null,null,"Les Landes Genusson",85130]
[null,null,"Vaire",85150]
[null,null,"Mervent",85200]
[null,null,"Saint Michel le Cloucq",85200]
[null,null,"La Rabateliere",85250]
[null,null,"Saint Laurent sur Sevre",85290]
[null,null,"Moutiers sur le Lay",85320]
[null,null,"Olonne sur Mer",85340]
[null,null,"Saint Laurent de la Salle",85410]
[null,null,"Talmont Saint Hilaire",85440]
[null,null,"Beaurepaire",85500]
[null,null,"Rochetrejoux",85510]
[null,null,"Saint Mars la Reorthe",85590]
[null,null,"Grand Landes",85670]
[null,null,"L Epine",85740]
[null,null,"Poitiers",86000]
[null,null,"Bournand",86120]
[null,null,"L Isle Jourdain",86150]
[null,null,"Massognes",86170]
[null,null,"Chalandray",86190]
[null,null,"Monthoiron",86210]
[null,null,"Usseau",86230]
[null,null,"Maire",86270]
[null,null,"Chapelle Morthemer",86300]
[null,null,"Saint Savin",86310]
[null,null,"Aslonnes",86340]
[null,null,"Cheneche",86380]
[null,null,"Champniers",86400]
[null,null,"Pleumartin",86450]
[null,null,"Brux",86510]
[null,null,"Couhe",86700]
[null,null,"Pouille",86800]
[null,null,"La Croisille sur Briance",87130]
[null,null,"Arnac la Poste",87160]
[null,null,"Le Dorat",87210]
[null,null,"Champsac",87230]
[null,null,"Blanzac",87300]
[null,null,"Darnac",87320]
[null,null,"Jabeilles les Bordes",87370]
[null,null,"Saint Germain les Belles",87380]
[null,null,"Pensol",87440]
[null,null,"Rilhac Rancon",87570]
[null,null,"Meilhac",87800]
[null,null,"Dignonville",88000]
[null,null,"Bouxurulles",88130]
[null,null,"Xaronval",88130]
[null,null,"Girmont",88150]
[null,null,"Le Menil",88160]
[null,null,"Pleuvezain",88170]
[null,null,"Denipaire",88210]
[null,null,"Urimenil",88220]
[null,null,"Gremifontaine",88240]
[null,null,"Sans Vallois",88260]
[null,null,"Derbamont",88270]
[null,null,"Saulxures sur Moselotte",88290]
[null,null,"Barville",88300]
[null,null,"Ventron",88310]
[null,null,"Damas aux Bois",88330]
[null,null,"Freville",88350]
[null,null,"Arches",88380]
[null,null,"Biffontaine",88430]
[null,null,"Docelles",88460]
[null,null,"Lusse",88490]
[null,null,"Baudricourt",88500]
[null,null,"Poussay",88500]
[null,null,"Bussang",88540]
[null,null,"Destord",88600]
[null,null,"La Neuville Devant Lepanc",88600]
[null,null,"Sionne",88630]
[null,null,"Bult",88700]
[null,null,"Housseras",88700]
[null,null,"Vomecourt",88700]
[null,null,"Malay le Grand",89100]
[null,null,"Villiers sur Tholon",89110]
[null,null,"Sepeaux",89116]
[null,null,"Dracy",89130]
[null,null,"Varennes",89144]
[null,null,"Argenteuil sur Armancon",89160]
[null,null,"Pacy sur Armancon",89160]
[null,null,"Lailly",89190]
[null,null,"Bligny en Othe",89210]
[null,null,"Villefargeau",89240]
[null,null,"La Chapelle sur Oreuse",89260]
[null,null,"Saint More",89270]
[null,null,"Molay",89310]
[null,null,"Saint Loup d'Ordon",89330]
[null,null,"Grandchamp",89350]
[null,null,"Cussy les Forges",89420]
[null,null,"Sauvigny le Beureal",89420]
[null,null,"Massangis",89440]
[null,null,"Saint Pere",89450]
[null,null,"Cornant",89500]
[null,null,"Saint Bris le Vineux",89530]
[null,null,"Charentenay",89580]
[null,null,"Avrolles",89600]
[null,null,"Serrigny",89700]
[null,null,"Senan",89710]
[null,null,"Licheres Pres Aigremont",89800]
[null,null,"Belfort",90000]
[null,null,"Felon",90110]
[null,null,"Frais",90150]
[null,null,"Rougegoutte",90200]
[null,null,"Valdoie",90300]
[null,null,"Evry",91000]
[null,null,"Abbeville la Riviere",91150]
[null,null,"Saint Germain les Arpajon",91180]
[null,null,"Mainville",91210]
[null,null,"Yerres",91330]
[null,null,"Saint Cyr sous Dourdan",91410]
[null,null,"Moigny sur Ecole",91490]
[null,null,"Saint Maurice Montcouronne",91530]
[null,null,"Briis sous Forges",91640]
[null,null,"Fontaine la Riviere",91690]
[null,null,"Pussay",91740]
[null,null,"Chalo Saint Mars",91780]
[null,null,"Villebon sur Yvette",91940]
[null,null,"Bois Colombes",92270]
[null,null,"Puteaux",92800]
[null,null,"La Courneuve",93120]
[null,null,"Sevran",93270]
[null,null,"Neuilly Plaisance",93360]
[null,null,"Coubron",93470]
[null,null,"Aulnay sous Bois",93600]
[null,null,"Villeneuve le Roi",94290]
[null,null,"Val Pompadour",94460]
[null,null,"Montmorency",95160]
[null,null,"Chatenay en France",95190]
[null,null,"Livilliers",95300]
[null,null,"Saint Prix",95390]
[null,null,"Clery en Vexin",95420]
[null,null,"Fremainville",95450]
[null,null,"Gadancourt",95450]
[null,null,"Gouzangrez",95450]
[null,null,"Guiry en Vexin",95450]
[null,null,"Le Perchay",95450]
[null,null,"Longuesse",95450]
[null,null,"Sagy",95450]
[null,null,"Seraincourt",95450]
[null,null,"Themericourt",95450]
[null,null,"Us",95450]
[null,null,"Vigny",95450]
[null,null,"Ezanville",95460]
[null,null,"Fosses",95470]
[null,null,"Saint Witz",95470]
[null,null,"Survilliers",95470]
[null,null,"Vemars",95470]
[null,null,"Pierrelaye",95480]
[null,null,"Vaureal",95490]
[null,null,"Bonneuil en France",95500]
[null,null,"Gonesse",95500]
[null,null,"Le Thillay",95500]
[null,null,"Vaudherland",95500]
[null,null,"Aincourt",95510]
[null,null,"Amenucourt",95510]
[null,null,"Cherence",95510]
[null,null,"Saint Cyr en Arthies",95510]
[null,null,"Vetheuil",95510]
[null,null,"Vienne en Arthies",95510]
[null,null,"Villers en Arthies",95510]
[null,null,"Osny",95520]
[null,null,"Frette sur Seine",95530]
[null,null,"Mery sur Oise",95540]
[null,null,"Bessancourt",95550]
[null,null,"Baillet en France",95560]
[null,null,"Chauvry",95560]
[null,null,"Maffliers",95560]
[null,null,"Montsoult",95560]
[null,null,"Attainville",95570]
[null,null,"Bouffemont",95570]
[null,null,"Moisselles",95570]
[null,null,"Villaines sous Bois",95570]
[null,null,"Andilly",95580]
[null,null,"Margency",95580]
[null,null,"Nerville la Foret",95590]
[null,null,"Nointel",95590]
[null,null,"Presles",95590]
[null,null,"Eaubonne",95600]
[null,null,"Eragny",95610]
[null,null,"Parmain",95620]
[null,null,"Meriel",95630]
[null,null,"Breancon",95640]
[null,null,"Brignancourt",95640]
[null,null,"Haravilliers",95640]
[null,null,"Le Heaulme",95640]
[null,null,"Marines",95640]
[null,null,"Moussy",95640]
[null,null,"Neuilly en Vexin",95640]
[null,null,"Santeuil",95640]
[null,null,"Boissy l'Aillerie",95650]
[null,null,"Courcelles sur Viosne",95650]
[null,null,"Genicourt",95650]
[null,null,"Montgeroult",95650]
[null,null,"Puiseux Pontoise",95650]
[null,null,"Champagne sur Oise",95660]
[null,null,"Marly la Ville",95670]
[null,null,"Montlignon",95680]
[null,null,"Frouville",95690]
[null,null,"Hedouville",95690]
[null,null,"Labbeville",95690]
[null,null,"Nesles la Vallee",95690]
[null,null,"Roissy Aeroport Ch de Gau",95700]
[null,null,"Roissy en France",95700]
[null,null,"Ambleville",95710]
[null,null,"Bray et Lu",95710]
[null,null,"Chaussy",95710]
[null,null,"Bouqueval",95720]
[null,null,"Le Mesnil Aubry",95720]
[null,null,"Le Plessis Gassot",95720]
[null,null,"Villiers le Sec",95720]
[null,null,"Frepillon",95740]
[null,null,"Chars",95750]
[null,null,"Le Bellay en Vexin",95750]
[null,null,"Auvers sur Oise",95760]
[null,null,"Valmondois",95760]
[null,null,"Buhy",95770]
[null,null,"Montreuil sur Epte",95770]
[null,null,"Saint Clair sur Epte",95770]
[null,null,"Haute Isle",95780]
[null,null,"La Roche Guyon",95780]
[null,null,"Cergy",95800]
[null,null,"Courdimanche",95800]
[null,null,"Arronville",95810]
[null,null,"Berville",95810]
[null,null,"Epiais Rhus",95810]
[null,null,"Grisy les Platres",95810]
[null,null,"Menouville",95810]
[null,null,"Theuville",95810]
[null,null,"Vallangoujard",95810]
[null,null,"Bruyeres sur Oise",95820]
[null,null,"Cormeilles en Vexin",95830]
[null,null,"Fremecourt",95830]
[null,null,"Bethemont la Foret",95840]
[null,null,"Villiers Adam",95840]
[null,null,"Jagny sous Bois",95850]
[null,null,"Mareil en France",95850]
[null,null,"Bezons",95870]
[null,null,"Enghien les Bains",95880]
[null,null,"Basse Terre",97100]
[null,null,"Pointe A Pitre",97110]
[null,null,"Morne A l'Eau",97111]
[null,null,"Grand Bourg",97112]
[null,null,"Gourbeyre",97113]
[null,null,"Trois Rivieres",97114]
[null,null,"Sainte Rose",97115]
[null,null,"Pointe Noire",97116]
[null,null,"Port Louis",97117]
[null,null,"Saint Francois",97118]
[null,null,"Vieux Habitants",97119]
[null,null,"Saint Claude",97120]
[null,null,"Anse Bertrand",97121]
[null,null,"Baie Mahault",97122]
[null,null,"Baillif",97123]
[null,null,"Bouillante",97125]
[null,null,"Deshaies",97126]
[null,null,"La Desirade",97127]
[null,null,"Goyave",97128]
[null,null,"Lamentin",97129]
[null,null,"Bananier",97130]
[null,null,"Capesterre Belle Eau",97130]
[null,null,"Capesterre Belle Eau",97130]
[null,null,"Sainte Marie",97130]
[null,null,"Les Mangles",97131]
[null,null,"Petit Canal",97131]
[null,null,"Pigeon",97132]
[null,null,"Saint Barthelemy",97133]
[null,null,"Saint Louis",97134]
[null,null,"Terre de Bas",97136]
[null,null,"Terre de Haut",97137]
[null,null,"Les Abymes",97139]
[null,null,"Capesterre de Marie Galan",97140]
[null,null,"Vieux Fort",97141]
[null,null,"Les Abymes",97142]
[null,null,"Saint Martin",97150]
[null,null,"Le Moule",97160]
[null,null,"Petit Bourg",97170]
[null,null,"Douville",97180]
[null,null,"Sainte Anne",97180]
[null,null,"Le Gosier",97190]
[null,null,"Fort de France",97200]
[null,null,"Riviere Pilote",97211]
[null,null,"Saint Joseph",97212]
[null,null,"Gros Morne",97213]
[null,null,"Le Lorrain",97214]
[null,null,"Riviere Salee",97215]
[null,null,"Riviere Salee Petit Bourg",97215]
[null,null,"L Ajoupa Bouillon",97216]
[null,null,"Les Anses d'Arlets",97217]
[null,null,"Basse Pointe",97218]
[null,null,"Grand Riviere",97218]
[null,null,"Macouba",97218]
[null,null,"La Trinite",97220]
[null,null,"Le Carbet",97221]
[null,null,"Bellefontaine",97222]
[null,null,"Case Pilote",97222]
[null,null,"Le Diamant",97223]
[null,null,"Ducos",97224]
[null,null,"Le Marigot",97225]
[null,null,"Le Morne Vert",97226]
[null,null,"Sainte Anne",97227]
[null,null,"Sainte Luce",97228]
[null,null,"Les Trois Ilets",97229]
[null,null,"Morne des Esses",97230]
[null,null,"Sainte Marie",97230]
[null,null,"Le Robert",97231]
[null,null,"Vert Pre",97231]
[null,null,"Le Lamentin",97232]
[null,null,"Schoelcher",97233]
[null,null,"Fort de France",97234]
[null,null,"Le Francois",97240]
[null,null,"Fonds Saint Denis",97250]
[null,null,"Le Precheur",97250]
[null,null,"Saint Pierre",97250]
[null,null,"Le Morne Rouge",97260]
[null,null,"Saint Esprit",97270]
[null,null,"Le Vauclin",97280]
[null,null,"Le Marin",97290]
[null,null,"Cayenne",97300]
[null,null,"Montsinery Tonnegrande",97300]
[null,null,"Kourou",97310]
[null,null,"Roura",97311]
[null,null,"Saint Elie",97312]
[null,null,"Saint Georges",97313]
[null,null,"Saul",97314]
[null,null,"Sinnamary",97315]
[null,null,"Grand Santi",97316]
[null,null,"Apatou",97317]
[null,null,"Javouhey",97318]
[null,null,"Saint Laurent du Maroni",97320]
[null,null,"Camopi",97330]
[null,null,"Grand Santi",97340]
[null,null,"Iracoubo",97350]
[null,null,"Matoury",97351]
[null,null,"La Comte",97352]
[null,null,"Kaw",97353]
[null,null,"Remire Montjoly",97354]
[null,null,"Macouria",97355]
[null,null,"Macouria",97355]
[null,null,"Mana",97360]
[null,null,"Maripasoula",97370]
[null,null,"Ouanary",97380]
[null,null,"Regina",97390]
[null,null,"Belle Pierre",97400]
[null,null,"Le Brule",97400]
[null,null,"Saint Denis",97400]
[null,null,"Saint Denis Camelias",97400]
[null,null,"Saint Denis Tadar",97400]
[null,null,"Saint Francois",97400]
[null,null,"Basse Terre",97410]
[null,null,"Grand Bois",97410]
[null,null,"Mont Vert",97410]
[null,null,"Ravine Blanche",97410]
[null,null,"Saint Pierre",97410]
[null,null,"Terre Ste",97410]
[null,null,"Bois de Nefles Saint Paul",97411]
[null,null,"Saint Paul",97411]
[null,null,"Bras Panon",97412]
[null,null,"Riviere du Mat",97412]
[null,null,"Cilaos",97413]
[null,null,"Palmiste Rouge",97413]
[null,null,"Entre Deux",97414]
[null,null,"La Chaloupe",97416]
[null,null,"Saint Leu",97416]
[null,null,"La Montagne",97417]
[null,null,"Saint Bernard",97417]
[null,null,"Saint Denis",97417]
[null,null,"La Plaine des Cafres",97418]
[null,null,"Le Tampon",97418]
[null,null,"La Possession",97419]
[null,null,"La Riviere des Galets",97419]
[null,null,"Le Dos d'Ane",97419]
[null,null,"Sainte Therese",97419]
[null,null,"Le Port",97420]
[null,null,"Le Port Marine",97420]
[null,null,"Le Port Zup",97420]
[null,null,"La Riviere",97421]
[null,null,"Les Makes",97421]
[null,null,"Saint Louis",97421]
[null,null,"La Saline",97422]
[null,null,"Saint Paul",97422]
[null,null,"Le Guillaume",97423]
[null,null,"Saint Paul",97423]
[null,null,"Le Piton Saint Leu",97424]
[null,null,"Le Plate",97424]
[null,null,"Saint Leu",97424]
[null,null,"Les Avirons",97425]
[null,null,"Tevelave",97425]
[null,null,"Les Trois Bassins",97426]
[null,null,"L Etang Sale",97427]
[null,null,"L Etang Sale les Bains",97427]
[null,null,"La Nouvelle",97428]
[null,null,"Petite Ile",97429]
[null,null,"Piton Goyaves",97429]
[null,null,"Le Quatorzieme",97430]
[null,null,"Le Tampon",97430]
[null,null,"Les Trois Mares",97430]
[null,null,"Pont d'Yves",97430]
[null,null,"Tampon 17Eme Km",97430]
[null,null,"La Plaine des Palmistes",97431]
[null,null,"Ravine des Cabris",97432]
[null,null,"Saint Pierre",97432]
[null,null,"Hell Bourg",97433]
[null,null,"Salazie",97433]
[null,null,"La Saline les Bains",97434]
[null,null,"Les Trois Bassins",97434]
[null,null,"Saint Gilles les Bains",97434]
[null,null,"Saint Paul",97434]
[null,null,"Bernica",97435]
[null,null,"Saint Gilles les Hauts",97435]
[null,null,"Saint Paul",97435]
[null,null,"Tan Rouge",97435]
[null,null,"Saint Leu",97436]
[null,null,"Saint Benoit",97437]
[null,null,"Sainte Anne",97437]
[null,null,"Gillot",97438]
[null,null,"La Grande Montee",97438]
[null,null,"Riviere des Pluies",97438]
[null,null,"Sainte Marie",97438]
[null,null,"Le Piton Sainte Rose",97439]
[null,null,"Sainte Rose",97439]
[null,null,"Cambuston",97440]
[null,null,"La Cressonniere",97440]
[null,null,"Saint Andre",97440]
[null,null,"Sainte Suzanne",97441]
[null,null,"Basse Vallee",97442]
[null,null,"Saint Philippe",97442]
[null,null,"Saint Louis",97450]
[null,null,"Bellemene",97460]
[null,null,"Plateau Cailloux",97460]
[null,null,"Saint Paul",97460]
[null,null,"Beaufonds",97470]
[null,null,"Saint Benoit",97470]
[null,null,"Jean Petit",97480]
[null,null,"Les Lianes",97480]
[null,null,"Saint Joseph",97480]
[null,null,"Vincendo",97480]
[null,null,"Bois de Nefles",97490]
[null,null,"La Bretagne",97490]
[null,null,"Moufia",97490]
[null,null,"Saint Denis",97490]
[null,null,"Saint Denis Chaudron",97490]
[null,null,"Sainte Clotilde",97490]
[null,null,"Langlade",97500]
[null,null,"Miquelon Langlade",97500]
[null,null,"Saint Pierre",97500]
[null,null,"Acoua",97600]
[null,null,"Bandrele",97600]
[null,null,"Boueni",97600]
[null,null,"Chiconi",97600]
[null,null,"Kaweni",97600]
[null,null,"Mamoudzou",97600]
[null,null,"Mtsangamouji",97600]
[null,null,"Ouangani",97600]
[null,null,"Tsingoni",97600]
[null,null,"Dzaoudzi",97610]
[null,null,"Labattoir",97610]
[null,null,"Pamandzi",97610]
[null,null,"Chirongui",97620]
[null,null,"Kani Keli",97625]
[null,null,"Mtsamboro",97630]
[null,null,"Sada",97640]
[null,null,"Bandraboua",97650]
[null,null,"Dzoumogne",97650]
[null,null,"Dembeni",97660]
[null,null,"Coconi",97670]
[null,null,"Combani",97680]
[null,null,"Koungou",97690]
[null,null,"Saint-Barthélemy",97700]
[null,null,"Sous le Vent",97710]
[null,null,"Centre",97710]
[null,null,"Au Vent",97710]
[null,null,"Saint-Martin",97720]
[null,null,"Terres-Basses",97720]
[null,null,"Baie-Nettlé",97730]
[null,null,"Sandy-Ground",97740]
[null,null,"Marigot Est et Nord",97740]
[null,null,"Marigot Centre et Sud",97740]
[null,null,"Saint-James",97740]
[null,null,"Diamant",97740]
[null,null,"Bellevue",97740]
[null,null,"Spring",97740]
[null,null,"Concordia",97740]
[null,null,"Galisbay",97740]
[null,null,"Agrément",97750]
[null,null,"Cripple Gate ",97750]
[null,null,"Saint-Louis",97760]
[null,null,"Rambaud",97765]
[null,null,"Colombier",97770]
[null,null,"Pic Paradis",97770]
[null,null,"La Savane ",97770]
[null,null,"Grand-Case ",97780]
[null,null,"Anse Marcel",97790]
[null,null,"Cul-de-Sac",97800]
[null,null,"Quartier d'Orléans",98100]
[null,null,"Gloire ",98200]
[null,null,"Griselle",98300]
[null,null,"Grand Fond",98400]
[null,null,"Belle Plaine ",98500]
[null,null,"Oyster Pond",98600]
[null,null,"ALO",98610]
[null,null,"Matā'utu",98600]
[null,null,"UVEA",98600]
[null,null,"SIGAVE",98620]
[null,null,"Tavaï ",98620]
[null,null,"ARUE",98701]
[null,null,"FAAA",98704]
[null,null,"HITIAA O TE RA",98705]
[null,null,"MAHAENA",98706]
[null,null,"PAPENOO",98707]
[null,null,"TIAREI",98708]
[null,null,"MAHINA",98709]
[null,null,"PAEA",98711]
[null,null,"PAPARA",98712]
[null,null,"PAPEETE",98714]
[null,null,"PIRAE",98716]
[null,null,"PUNAAUIA",98718]
[null,null,"AFAAHITI",98719]
[null,null,"FAAONE",98720]
[null,null,"PUEU",98721]
[null,null,"TAUTIRA",98722]
[null,null,"TEAHUPOO",98723]
[null,null,"TOAHOTU",98724]
[null,null,"VAIRAO",98725]
[null,null,"TEVA I UTA",98726]
[null,null,"PAPEARI",98727]
[null,null,"MOOREA MAIAO",98728]
[null,null,"PAPETOAI",98729]
[null,null,"HUAHINE",98731]
[null,null,"MAUPITI",98732]
[null,null,"TAHAA",98733]
[null,null,"TAPUTAPUATEA",98735]
[null,null,"TUMARAA",98735]
[null,null,"UTUROA",98735]
[null,null,"HIVA OA",98741]
[null,null,"NUKU HIVA",98742]
[null,null,"TAHUATA",98743]
[null,null,"UA HUKA",98744]
[null,null,"UA POU",98745]
[null,null,"RAIVAVAE",98750]
[null,null,"RAPA",98751]
[null,null,"RURUTU",98753]
[null,null,"TUBUAI",98754]
[null,null,"ANAA",98760]
[null,null,"ARUTUA",98761]
[null,null,"NIUTAHI",98762]
[null,null,"ARATIKA",98764]
[null,null,"HAO",98767]
[null,null,"HIKUERU",98768]
[null,null,"MAKEMO",98769]
[null,null,"KATIU",98770]
[null,null,"MANIHI",98771]
[null,null,"NAPUKA",98772]
[null,null,"NUKUTAVAKE",98773]
[null,null,"PUKAPUKA",98774]
[null,null,"RANGIROA",98776]
[null,null,"MATAIVA",98777]
[null,null,"TIKEHAU",98778]
[null,null,"REAO",98779]
[null,null,"PUKARUA",98780]
[null,null,"TAKAROA",98781]
[null,null,"TATAKOTO",98783]
[null,null,"TUREIA",98784]
[null,null,"MARUTEA SUD",98793]
[null,null,"MAROTIRI",98794]
[null,null,"MARIA",98795]
[null,null,"ILE DE CLIPPERTON",98799]
[null,null,"Nouméa",98800]
[null,null,"Mont Dore",98810]
[null,null,"Belep",98811]
[null,null,"Boulouparis",98812]
[null,null,"Canala",98813]
[null,null,"Fayaoué",98814]
[null,null,"Hienghène",98815]
[null,null,"Houaïlou",98816]
[null,null,"Kaala-gomen",98817]
[null,null,"Kouaoua",98818]
[null,null,"Moindou",98819]
[null,null,"Lifou",98820]
[null,null,"Ouégoa",98821]
[null,null,"Ponérihouen",98823]
[null,null,"Pouébo",98824]
[null,null,"Pouembout",98825]
[null,null,"Malabou",98826]
[null,null,"Poum",98826]
[null,null,"Poya",98827]
[null,null,"Tadine Maré",98828]
[null,null,"Thio",98829]
[null,null,"Dumbéa",98830]
[null,null,"Touho",98831]
[null,null,"Ile des Pins",98832]
[null,null,"Voh",98833]
[null,null,"Yaté",98834]
[null,null,"Tontouta",98840]
[null,null,"Koumac",98850]
[null,null,"Koné",98860]
[null,null,"Bourail",98870]
[null,null,"Farino",98880]
[null,null,"La Foa",98880]
[null,null,"Sarraméa",98880]
[null,null,"Poindimié",98882]
[null,null,"Ouaco",98883]
[null,null,"Païta",98890]
[null,null,"MONACO",99000]
[null,null,"Monaco-Ville",99138]
[null,null,"Anse de Canton",99000]
[null,null,"Anse de la Grue",99000]
[null,null,"Anse du Portier",99000]
[null,null,"Ciappaira",99050]
[null,null,"Commune de Monaco",99050]
[null,null,"Condamine",99100]
[null,null,"Fontvieille",99100]
[null,null,"Jardin Exotique",99100]
[null,null,"Jardin Japonais",99100]
[null,null,"La Condamine",99100]
[null,null,"Larvotto",99100]
[null,null,"Les Moneghetti",99100]
[null,null,"Monte-Carlo",99100]
[null,null,"Plage du Larvotto",99100]
[null,null,"Pointe de la Poudrière",99150]
[null,null,"Pointe Focinana",99150]
[null,null,"Pointe Saint-Antoine",99150]
[null,null,"Pointe Saint-Martin",99150]
[null,null,"Pointe Sainte-Barbe",99155]
[null,null,"Port de Fontvieille",99160]
[null,null,"Port de La Condamine",99165]
[null,null,"Port de Monaco",99165]
[null,null,"Port Hercule",99165]
[null,null,"Réserve Sous-marine de Monaco",99200]
[null,null,"Réserve Sous-marine du Larvotto",99200]
[null,null,"Rocher de Monaco",99300]
[null,null,"Stade Louis Deux",99350]